Transaction Date,Local Authority Department,BENEFICIARY,Purpose,Amount,Non Recoverable,Merchant Category
01-07-2022,Children and Young People,Nhs Property Services Ltd,Rents Payable,296.3,0,COMMERCIAL SUPPLIER
01-07-2022,Children and Young People,Nhs Property Services Ltd,Rents Payable,1219.8,0,COMMERCIAL SUPPLIER
01-07-2022,Adults & Health,Vibrance,Daycare - Private Contractors Payment,892.2,0,VOLUNTARY ORGANISATION
01-07-2022,Adults & Health,Vibrance,Daycare - Private Contractors Payment,892.2,0,VOLUNTARY ORGANISATION
01-07-2022,Adults & Health,Vibrance,Daycare - Private Contractors Payment,713.76,0,VOLUNTARY ORGANISATION
01-07-2022,Adults & Health,Vibrance,Daycare - Private Contractors Payment,892.2,0,VOLUNTARY ORGANISATION
01-07-2022,Children and Young People,Arrow Office Equipment,"Purchase - Equipment, Furniture And Materials",1850,0,COMMERCIAL SUPPLIER
01-07-2022,Adults & Health,Floron Residential Home,Residential Placements - Private Contractors Payment,750.68,0,COMMERCIAL SUPPLIER
01-07-2022,Adults & Health,Floron Residential Home,Residential Placements - Private Contractors Payment,602.48,0,COMMERCIAL SUPPLIER
01-07-2022,Adults & Health,Floron Residential Home,Residential Placements - Private Contractors Payment,602.48,0,COMMERCIAL SUPPLIER
01-07-2022,Adults & Health,Floron Residential Home,Residential Placements - Private Contractors Payment,602.48,0,COMMERCIAL SUPPLIER
01-07-2022,Adults & Health,Floron Residential Home,Residential Placements - Private Contractors Payment,602.48,0,COMMERCIAL SUPPLIER
01-07-2022,Adults & Health,Floron Residential Home,Residential Placements - Private Contractors Payment,602.48,0,COMMERCIAL SUPPLIER
01-07-2022,Adults & Health,Floron Residential Home,Residential Placements - Private Contractors Payment,750.68,0,COMMERCIAL SUPPLIER
01-07-2022,Adults & Health,Floron Residential Home,Residential Placements - Private Contractors Payment,602.48,0,COMMERCIAL SUPPLIER
01-07-2022,Adults & Health,Floron Residential Home,Residential Placements - Private Contractors Payment,602.48,0,COMMERCIAL SUPPLIER
01-07-2022,Adults & Health,Floron Residential Home,Residential Placements - Private Contractors Payment,602.48,0,COMMERCIAL SUPPLIER
01-07-2022,Adults & Health,Floron Residential Home,Residential Placements - Private Contractors Payment,750.68,0,COMMERCIAL SUPPLIER
01-07-2022,Adults & Health,Floron Residential Home,Residential Placements - Private Contractors Payment,602.48,0,COMMERCIAL SUPPLIER
01-07-2022,Inclusive Economy & Housing,Adam Khan Architects,"Maintenance - Equipment, Furniture And Materials",42276.28,0,COMMERCIAL SUPPLIER
01-07-2022,Environment and Sustainable Transport,Floglass Limited,"Purchase - Equipment, Furniture And Materials",275,0,COMMERCIAL SUPPLIER
01-07-2022,Adults & Health,Aevus Ltd t/a Home Instead,Home Care - Private Contractors Payment,513,0,INDIVIDUALS
01-07-2022,Adults & Health,Aevus Ltd t/a Home Instead,Home Care - Private Contractors Payment,513,0,INDIVIDUALS
01-07-2022,Adults & Health,Aevus Ltd t/a Home Instead,Home Care - Private Contractors Payment,285,0,INDIVIDUALS
01-07-2022,Adults & Health,Aevus Ltd t/a Home Instead,Home Care - Private Contractors Payment,513,0,INDIVIDUALS
01-07-2022,Adults & Health,Aevus Ltd t/a Home Instead,Home Care - Private Contractors Payment,285,0,INDIVIDUALS
01-07-2022,Housing Revenue Account,CTR Triangle Ltd,Professional Services - General,133140,0,VENDOR
01-07-2022,Housing Revenue Account,Veritas Solicitors,Legal Fees,6718.91,0,NON COMMERCIAL SUPPLIER
01-07-2022,Adults & Health,Stannah Lift Services Ltd,Private Contractors Payment - Other,8126,0,CIS
01-07-2022,Adults & Health,Caronne Care Ltd,Home Care - Private Contractors Payment,38.32,0,NON COMMERCIAL SUPPLIER
01-07-2022,Adults & Health,Caronne Care Ltd,Home Care - Private Contractors Payment,100.59,0,NON COMMERCIAL SUPPLIER
01-07-2022,Adults & Health,Caronne Care Ltd,Daycare - Private Contractors Payment,57.48,0,NON COMMERCIAL SUPPLIER
01-07-2022,Adults & Health,Caronne Care Ltd,Home Care - Private Contractors Payment,234.71,0,NON COMMERCIAL SUPPLIER
01-07-2022,Adults & Health,Caronne Care Ltd,Home Care - Private Contractors Payment,19.16,0,NON COMMERCIAL SUPPLIER
01-07-2022,Adults & Health,Caronne Care Ltd,Home Care - Private Contractors Payment,67.06,0,NON COMMERCIAL SUPPLIER
01-07-2022,Adults & Health,Caronne Care Ltd,Daycare - Private Contractors Payment,38.32,0,NON COMMERCIAL SUPPLIER
01-07-2022,Adults & Health,Caronne Care Ltd,Home Care - Private Contractors Payment,234.71,0,NON COMMERCIAL SUPPLIER
01-07-2022,Adults & Health,Caronne Care Ltd,Daycare - Private Contractors Payment,57.48,0,NON COMMERCIAL SUPPLIER
01-07-2022,Adults & Health,Caronne Care Ltd,Home Care - Private Contractors Payment,100.59,0,NON COMMERCIAL SUPPLIER
01-07-2022,Adults & Health,Caronne Care Ltd,Home Care - Private Contractors Payment,110.17,0,NON COMMERCIAL SUPPLIER
01-07-2022,Adults & Health,Caronne Care Ltd,Daycare - Private Contractors Payment,38.32,0,NON COMMERCIAL SUPPLIER
01-07-2022,Adults & Health,Caronne Care Ltd,Home Care - Private Contractors Payment,570.01,0,NON COMMERCIAL SUPPLIER
01-07-2022,Adults & Health,Caronne Care Ltd,Home Care - Private Contractors Payment,100.59,0,NON COMMERCIAL SUPPLIER
01-07-2022,Adults & Health,Caronne Care Ltd,Home Care - Private Contractors Payment,215.55,0,NON COMMERCIAL SUPPLIER
01-07-2022,Adults & Health,Caronne Care Ltd,Home Care - Private Contractors Payment,95.8,0,NON COMMERCIAL SUPPLIER
01-07-2022,Adults & Health,Caronne Care Ltd,Home Care - Private Contractors Payment,167.65,0,NON COMMERCIAL SUPPLIER
01-07-2022,Adults & Health,Caronne Care Ltd,Home Care - Private Contractors Payment,134.12,0,NON COMMERCIAL SUPPLIER
01-07-2022,Adults & Health,Caronne Care Ltd,Home Care - Private Contractors Payment,19.16,0,NON COMMERCIAL SUPPLIER
01-07-2022,Adults & Health,Caronne Care Ltd,Home Care - Private Contractors Payment,100.59,0,NON COMMERCIAL SUPPLIER
01-07-2022,Adults & Health,Caronne Care Ltd,Home Care - Private Contractors Payment,172.44,0,NON COMMERCIAL SUPPLIER
01-07-2022,Adults & Health,Caronne Care Ltd,Home Care - Private Contractors Payment,28.74,0,NON COMMERCIAL SUPPLIER
01-07-2022,Adults & Health,Caronne Care Ltd,Home Care - Private Contractors Payment,402.36,0,NON COMMERCIAL SUPPLIER
01-07-2022,Adults & Health,Caronne Care Ltd,Home Care - Private Contractors Payment,536.48,0,NON COMMERCIAL SUPPLIER
01-07-2022,Adults & Health,Caronne Care Ltd,Home Care - Private Contractors Payment,469.42,0,NON COMMERCIAL SUPPLIER
01-07-2022,Adults & Health,Caronne Care Ltd,Home Care - Private Contractors Payment,38.32,0,NON COMMERCIAL SUPPLIER
01-07-2022,Adults & Health,Caronne Care Ltd,Home Care - Private Contractors Payment,19.16,0,NON COMMERCIAL SUPPLIER
01-07-2022,Adults & Health,Caronne Care Ltd,Home Care - Private Contractors Payment,100.59,0,NON COMMERCIAL SUPPLIER
01-07-2022,Adults & Health,Caronne Care Ltd,Home Care - Private Contractors Payment,570.01,0,NON COMMERCIAL SUPPLIER
01-07-2022,Adults & Health,Caronne Care Ltd,Home Care - Private Contractors Payment,234.71,0,NON COMMERCIAL SUPPLIER
01-07-2022,Adults & Health,Caronne Care Ltd,Home Care - Private Contractors Payment,134.12,0,NON COMMERCIAL SUPPLIER
01-07-2022,Adults & Health,Caronne Care Ltd,Home Care - Private Contractors Payment,129.33,0,NON COMMERCIAL SUPPLIER
01-07-2022,Adults & Health,Caronne Care Ltd,Home Care - Private Contractors Payment,234.71,0,NON COMMERCIAL SUPPLIER
01-07-2022,Adults & Health,Caronne Care Ltd,Home Care - Private Contractors Payment,234.71,0,NON COMMERCIAL SUPPLIER
01-07-2022,Adults & Health,Caronne Care Ltd,Home Care - Private Contractors Payment,105.38,0,NON COMMERCIAL SUPPLIER
01-07-2022,Adults & Health,Caronne Care Ltd,Home Care - Private Contractors Payment,134.12,0,NON COMMERCIAL SUPPLIER
01-07-2022,Adults & Health,Caronne Care Ltd,Home Care - Private Contractors Payment,100.59,0,NON COMMERCIAL SUPPLIER
01-07-2022,Adults & Health,Caronne Care Ltd,Home Care - Private Contractors Payment,234.71,0,NON COMMERCIAL SUPPLIER
01-07-2022,Adults & Health,Caronne Care Ltd,Home Care - Private Contractors Payment,301.77,0,NON COMMERCIAL SUPPLIER
01-07-2022,Adults & Health,Caronne Care Ltd,Home Care - Private Contractors Payment,167.65,0,NON COMMERCIAL SUPPLIER
01-07-2022,Adults & Health,Caronne Care Ltd,Home Care - Private Contractors Payment,201.18,0,NON COMMERCIAL SUPPLIER
01-07-2022,Adults & Health,Caronne Care Ltd,Daycare - Private Contractors Payment,57.48,0,NON COMMERCIAL SUPPLIER
01-07-2022,Adults & Health,Caronne Care Ltd,Home Care - Private Contractors Payment,301.77,0,NON COMMERCIAL SUPPLIER
01-07-2022,Adults & Health,Caronne Care Ltd,Home Care - Private Contractors Payment,186.81,0,NON COMMERCIAL SUPPLIER
01-07-2022,Adults & Health,Caronne Care Ltd,Home Care - Private Contractors Payment,234.71,0,NON COMMERCIAL SUPPLIER
01-07-2022,Adults & Health,Caronne Care Ltd,Home Care - Private Contractors Payment,100.59,0,NON COMMERCIAL SUPPLIER
01-07-2022,Adults & Health,Caronne Care Ltd,Home Care - Private Contractors Payment,234.71,0,NON COMMERCIAL SUPPLIER
01-07-2022,Adults & Health,Caronne Care Ltd,Home Care - Private Contractors Payment,201.18,0,NON COMMERCIAL SUPPLIER
01-07-2022,Adults & Health,Caronne Care Ltd,Home Care - Private Contractors Payment,191.6,0,NON COMMERCIAL SUPPLIER
01-07-2022,Adults & Health,Caronne Care Ltd,Home Care - Private Contractors Payment,167.65,0,NON COMMERCIAL SUPPLIER
01-07-2022,Adults & Health,Caronne Care Ltd,Home Care - Private Contractors Payment,570.01,0,NON COMMERCIAL SUPPLIER
01-07-2022,Adults & Health,Caronne Care Ltd,Home Care - Private Contractors Payment,201.18,0,NON COMMERCIAL SUPPLIER
01-07-2022,Adults & Health,Caronne Care Ltd,Daycare - Private Contractors Payment,57.48,0,NON COMMERCIAL SUPPLIER
01-07-2022,Adults & Health,Caronne Care Ltd,Home Care - Private Contractors Payment,201.18,0,NON COMMERCIAL SUPPLIER
01-07-2022,Adults & Health,Caronne Care Ltd,Home Care - Private Contractors Payment,134.12,0,NON COMMERCIAL SUPPLIER
01-07-2022,Adults & Health,Caronne Care Ltd,Reablement,397.57,0,NON COMMERCIAL SUPPLIER
01-07-2022,Adults & Health,Caronne Care Ltd,Home Care - Private Contractors Payment,536.48,0,NON COMMERCIAL SUPPLIER
01-07-2022,Adults & Health,Caronne Care Ltd,Home Care - Private Contractors Payment,402.36,0,NON COMMERCIAL SUPPLIER
01-07-2022,Adults & Health,Caronne Care Ltd,Home Care - Private Contractors Payment,234.71,0,NON COMMERCIAL SUPPLIER
01-07-2022,Adults & Health,Caronne Care Ltd,Home Care - Private Contractors Payment,215.55,0,NON COMMERCIAL SUPPLIER
01-07-2022,Adults & Health,Caronne Care Ltd,Home Care - Private Contractors Payment,67.06,0,NON COMMERCIAL SUPPLIER
01-07-2022,Adults & Health,Caronne Care Ltd,Home Care - Private Contractors Payment,134.12,0,NON COMMERCIAL SUPPLIER
01-07-2022,Adults & Health,Caronne Care Ltd,Home Care - Private Contractors Payment,19.16,0,NON COMMERCIAL SUPPLIER
01-07-2022,Adults & Health,Caronne Care Ltd,Home Care - Private Contractors Payment,100.59,0,NON COMMERCIAL SUPPLIER
01-07-2022,Adults & Health,Caronne Care Ltd,Daycare - Private Contractors Payment,38.32,0,NON COMMERCIAL SUPPLIER
01-07-2022,Adults & Health,Caronne Care Ltd,Home Care - Private Contractors Payment,19.16,0,NON COMMERCIAL SUPPLIER
01-07-2022,Adults & Health,Caronne Care Ltd,Home Care - Private Contractors Payment,469.42,0,NON COMMERCIAL SUPPLIER
01-07-2022,Adults & Health,Caronne Care Ltd,Home Care - Private Contractors Payment,167.65,0,NON COMMERCIAL SUPPLIER
01-07-2022,Adults & Health,Caronne Care Ltd,Home Care - Private Contractors Payment,100.59,0,NON COMMERCIAL SUPPLIER
01-07-2022,Adults & Health,Caronne Care Ltd,Home Care - Private Contractors Payment,167.65,0,NON COMMERCIAL SUPPLIER
01-07-2022,Adults & Health,Caronne Care Ltd,Home Care - Private Contractors Payment,570.01,0,NON COMMERCIAL SUPPLIER
01-07-2022,Adults & Health,Caronne Care Ltd,Home Care - Private Contractors Payment,134.12,0,NON COMMERCIAL SUPPLIER
01-07-2022,Adults & Health,Caronne Care Ltd,Home Care - Private Contractors Payment,38.32,0,NON COMMERCIAL SUPPLIER
01-07-2022,Adults & Health,Caronne Care Ltd,Home Care - Private Contractors Payment,38.32,0,NON COMMERCIAL SUPPLIER
01-07-2022,Adults & Health,Caronne Care Ltd,Home Care - Private Contractors Payment,134.12,0,NON COMMERCIAL SUPPLIER
01-07-2022,Adults & Health,Caronne Care Ltd,Home Care - Private Contractors Payment,134.12,0,NON COMMERCIAL SUPPLIER
01-07-2022,Adults & Health,Caronne Care Ltd,Home Care - Private Contractors Payment,570.01,0,NON COMMERCIAL SUPPLIER
01-07-2022,Adults & Health,Caronne Care Ltd,Home Care - Private Contractors Payment,153.28,0,NON COMMERCIAL SUPPLIER
01-07-2022,Adults & Health,Caronne Care Ltd,Home Care - Private Contractors Payment,19.16,0,NON COMMERCIAL SUPPLIER
01-07-2022,Adults & Health,Caronne Care Ltd,Home Care - Private Contractors Payment,100.59,0,NON COMMERCIAL SUPPLIER
01-07-2022,Adults & Health,Caronne Care Ltd,Home Care - Private Contractors Payment,469.42,0,NON COMMERCIAL SUPPLIER
01-07-2022,Adults & Health,Caronne Care Ltd,Home Care - Private Contractors Payment,28.74,0,NON COMMERCIAL SUPPLIER
01-07-2022,Adults & Health,Caronne Care Ltd,Home Care - Private Contractors Payment,25,0,NON COMMERCIAL SUPPLIER
01-07-2022,Adults & Health,Caronne Care Ltd,Home Care - Private Contractors Payment,234.71,0,NON COMMERCIAL SUPPLIER
01-07-2022,Adults & Health,Caronne Care Ltd,Home Care - Private Contractors Payment,86.22,0,NON COMMERCIAL SUPPLIER
01-07-2022,Adults & Health,Caronne Care Ltd,Home Care - Private Contractors Payment,234.71,0,NON COMMERCIAL SUPPLIER
01-07-2022,Adults & Health,Caronne Care Ltd,Home Care - Private Contractors Payment,28.74,0,NON COMMERCIAL SUPPLIER
01-07-2022,Adults & Health,Caronne Care Ltd,Home Care - Private Contractors Payment,43.11,0,NON COMMERCIAL SUPPLIER
01-07-2022,Adults & Health,Caronne Care Ltd,Daycare - Private Contractors Payment,38.32,0,NON COMMERCIAL SUPPLIER
01-07-2022,Adults & Health,Caronne Care Ltd,Home Care - Private Contractors Payment,52.69,0,NON COMMERCIAL SUPPLIER
01-07-2022,Adults & Health,Caronne Care Ltd,Home Care - Private Contractors Payment,100.59,0,NON COMMERCIAL SUPPLIER
01-07-2022,Adults & Health,Caronne Care Ltd,Home Care - Private Contractors Payment,570.01,0,NON COMMERCIAL SUPPLIER
01-07-2022,Adults & Health,Caronne Care Ltd,Home Care - Private Contractors Payment,134.12,0,NON COMMERCIAL SUPPLIER
01-07-2022,Adults & Health,Caronne Care Ltd,Home Care - Private Contractors Payment,19.16,0,NON COMMERCIAL SUPPLIER
01-07-2022,Adults & Health,Caronne Care Ltd,Home Care - Private Contractors Payment,57.48,0,NON COMMERCIAL SUPPLIER
01-07-2022,Adults & Health,Caronne Care Ltd,Home Care - Private Contractors Payment,100.59,0,NON COMMERCIAL SUPPLIER
01-07-2022,Adults & Health,Caronne Care Ltd,Home Care - Private Contractors Payment,43.11,0,NON COMMERCIAL SUPPLIER
01-07-2022,Adults & Health,Caronne Care Ltd,Home Care - Private Contractors Payment,536.48,0,NON COMMERCIAL SUPPLIER
01-07-2022,Adults & Health,Caronne Care Ltd,Home Care - Private Contractors Payment,469.42,0,NON COMMERCIAL SUPPLIER
01-07-2022,Adults & Health,Caronne Care Ltd,Home Care - Private Contractors Payment,19.16,0,NON COMMERCIAL SUPPLIER
01-07-2022,Adults & Health,Caronne Care Ltd,Home Care - Private Contractors Payment,4.79,0,NON COMMERCIAL SUPPLIER
01-07-2022,Adults & Health,Caronne Care Ltd,Home Care - Private Contractors Payment,220.34,0,NON COMMERCIAL SUPPLIER
01-07-2022,Adults & Health,Caronne Care Ltd,Home Care - Private Contractors Payment,38.32,0,NON COMMERCIAL SUPPLIER
01-07-2022,Adults & Health,Caronne Care Ltd,Home Care - Private Contractors Payment,134.12,0,NON COMMERCIAL SUPPLIER
01-07-2022,Adults & Health,Caronne Care Ltd,Home Care - Private Contractors Payment,234.71,0,NON COMMERCIAL SUPPLIER
01-07-2022,Adults & Health,Caronne Care Ltd,Home Care - Private Contractors Payment,234.71,0,NON COMMERCIAL SUPPLIER
01-07-2022,Adults & Health,Caronne Care Ltd,Home Care - Private Contractors Payment,220.34,0,NON COMMERCIAL SUPPLIER
01-07-2022,Adults & Health,Caronne Care Ltd,Home Care - Private Contractors Payment,100.59,0,NON COMMERCIAL SUPPLIER
01-07-2022,Adults & Health,Caronne Care Ltd,Home Care - Private Contractors Payment,134.12,0,NON COMMERCIAL SUPPLIER
01-07-2022,Adults & Health,Caronne Care Ltd,Home Care - Private Contractors Payment,560.43,0,NON COMMERCIAL SUPPLIER
01-07-2022,Adults & Health,Caronne Care Ltd,Home Care - Private Contractors Payment,440.68,0,NON COMMERCIAL SUPPLIER
01-07-2022,Adults & Health,Caronne Care Ltd,Home Care - Private Contractors Payment,167.65,0,NON COMMERCIAL SUPPLIER
01-07-2022,Adults & Health,Caronne Care Ltd,Home Care - Private Contractors Payment,124.54,0,NON COMMERCIAL SUPPLIER
01-07-2022,Adults & Health,Supply Chain Coordination Ltd (SCCL),Salaries,3599.33,0,NHS BODIES
01-07-2022,Adults & Health,Supply Chain Coordination Ltd (SCCL),Salaries,907.11,0,NHS BODIES
01-07-2022,Children and Young People,Power Hygiene & Safety Products Ltd,Cleaning Services,575.4,0,COMMERCIAL SUPPLIER
01-07-2022,oneSource,Daisy Corporate Services Trading Ltd,Land Line Telephone Costs,411.18,0,COMMERCIAL SUPPLIER
01-07-2022,oneSource,Daisy Corporate Services Trading Ltd,Land Line Telephone Costs,2061.02,0,COMMERCIAL SUPPLIER
01-07-2022,Housing Revenue Account,Daisy Corporate Services Trading Ltd,Cyclical/Planned Maintenance - Mechanical And Electrical,321.18,0,COMMERCIAL SUPPLIER
01-07-2022,oneSource,Daisy Corporate Services Trading Ltd,Land Line Telephone Costs,14946.26,0,COMMERCIAL SUPPLIER
01-07-2022,Housing Revenue Account,Daisy Corporate Services Trading Ltd,Land Line Telephone Costs,311.58,0,COMMERCIAL SUPPLIER
01-07-2022,Housing Revenue Account,Daisy Corporate Services Trading Ltd,Land Line Telephone Costs,3006.27,0,COMMERCIAL SUPPLIER
01-07-2022,oneSource - Non Shared,Royal Docks Management Authority Ltd,Facilities Management,5313,0,VENDOR
01-07-2022,Environment and Sustainable Transport,Datanet.Co.UK,Ict Maintenance And Support,479.76,0,COMMERCIAL SUPPLIER
01-07-2022,Marketing,Personal Information - Redacted,Consultancy Fees,875,0,VENDOR
01-07-2022,RMS,A M Forktrucks Ltd,Vehicle Hire,810.33,0,COMMERCIAL SUPPLIER
01-07-2022,RMS,A M Forktrucks Ltd,Vehicle Hire,433.33,0,COMMERCIAL SUPPLIER
01-07-2022,Environment and Sustainable Transport,Enterprise Flex-E-Rent,Client Transport,395.08,0,COMMERCIAL SUPPLIER
01-07-2022,oneSource,Judge & Priestley Solicitors,Legal Fees,12,0,LEGAL SERVICES
01-07-2022,oneSource,Judge & Priestley Solicitors,Legal Fees,418,0,LEGAL SERVICES
01-07-2022,oneSource,Judge & Priestley Solicitors,Legal Fees,587,0,LEGAL SERVICES
01-07-2022,oneSource,Judge & Priestley Solicitors,Legal Fees,20,0,LEGAL SERVICES
01-07-2022,Marketing,Community Links Trading Ltd,Events,389.5,0,COMMERCIAL SUPPLIER
01-07-2022,Children and Young People,Lavender Health & Social Care Limited,Agency Staff,2073.44,0,COMMERCIAL SUPPLIER
01-07-2022,Children and Young People,Lavender Health & Social Care Limited,Agency Staff,2786.56,0,COMMERCIAL SUPPLIER
01-07-2022,Children and Young People,Lavender Health & Social Care Limited,Agency Staff,9309.5,0,COMMERCIAL SUPPLIER
01-07-2022,oneSource,Bdi Securities,Security Services (Excluding Premises),1107,0,COMMERCIAL SUPPLIER
01-07-2022,oneSource,Bdi Securities,Security Services (Excluding Premises),270,0,COMMERCIAL SUPPLIER
01-07-2022,oneSource,Hilbery Chaplin Surveyors Ltd,General Office Expenses,1000,0,LOCAL AUTHORITY SERVICES
01-07-2022,Dedicated Schools Budget,C Franklin Ltd,Building Alterations And Materials,540,0,
01-07-2022,Dedicated Schools Budget,C Franklin Ltd,Building Alterations And Materials,2486.53,0,
01-07-2022,Housing Revenue Account,John Rowan & Partners,Facilities Management,6162.65,0,NON COMMERCIAL SUPPLIER
01-07-2022,Environment and Sustainable Transport,Smart Platform Rental Ltd,Vehicle Hire,375,0,COMMERCIAL SUPPLIER
01-07-2022,Marketing,London Councils,Private Contractors Payment - Other,65786,0,CENTRAL/GOVERNMENT DEPARTMENTS
01-07-2022,Environment and Sustainable Transport,Rushton Workwear Ltd,Highway Services,330,0,COMMERCIAL SUPPLIER
01-07-2022,Environment and Sustainable Transport,Rushton Workwear Ltd,Highway Services,29.9,0,COMMERCIAL SUPPLIER
01-07-2022,Environment and Sustainable Transport,Rushton Workwear Ltd,Highway Services,44.5,0,COMMERCIAL SUPPLIER
01-07-2022,Environment and Sustainable Transport,Rushton Workwear Ltd,Highway Services,114,0,COMMERCIAL SUPPLIER
01-07-2022,Environment and Sustainable Transport,Rushton Workwear Ltd,Highway Services,29.1,0,COMMERCIAL SUPPLIER
01-07-2022,RMS,Travis Perkins Trading Company Ltd,Building Alterations And Materials,517.5,0,COMMERCIAL SUPPLIER
01-07-2022,RMS,Travis Perkins Trading Company Ltd,Building Alterations And Materials,1026.8,0,COMMERCIAL SUPPLIER
01-07-2022,RMS,Travis Perkins Trading Company Ltd,Building Alterations And Materials,1485.62,0,COMMERCIAL SUPPLIER
01-07-2022,RMS,Travis Perkins Trading Company Ltd,Building Alterations And Materials,1677.78,0,COMMERCIAL SUPPLIER
01-07-2022,RMS,Travis Perkins Trading Company Ltd,Building Alterations And Materials,390.83,0,COMMERCIAL SUPPLIER
01-07-2022,RMS,Travis Perkins Trading Company Ltd,Building Alterations And Materials,738,0,COMMERCIAL SUPPLIER
01-07-2022,RMS,Travis Perkins Trading Company Ltd,Building Alterations And Materials,208,0,COMMERCIAL SUPPLIER
01-07-2022,RMS,Travis Perkins Trading Company Ltd,Building Alterations And Materials,296.5,0,COMMERCIAL SUPPLIER
01-07-2022,RMS,Travis Perkins Trading Company Ltd,Building Alterations And Materials,147,0,COMMERCIAL SUPPLIER
01-07-2022,RMS,Travis Perkins Trading Company Ltd,Building Alterations And Materials,1975.3,0,COMMERCIAL SUPPLIER
01-07-2022,RMS,Travis Perkins Trading Company Ltd,Building Alterations And Materials,318.4,0,COMMERCIAL SUPPLIER
01-07-2022,RMS,Travis Perkins Trading Company Ltd,Building Alterations And Materials,642.5,0,COMMERCIAL SUPPLIER
01-07-2022,RMS,Travis Perkins Trading Company Ltd,Building Alterations And Materials,1171.8,0,COMMERCIAL SUPPLIER
01-07-2022,RMS,Travis Perkins Trading Company Ltd,Building Alterations And Materials,1068.75,0,COMMERCIAL SUPPLIER
01-07-2022,RMS,Travis Perkins Trading Company Ltd,Building Alterations And Materials,664.8,0,COMMERCIAL SUPPLIER
01-07-2022,RMS,Travis Perkins Trading Company Ltd,Building Alterations And Materials,70,0,COMMERCIAL SUPPLIER
01-07-2022,RMS,Travis Perkins Trading Company Ltd,Building Alterations And Materials,344.85,0,COMMERCIAL SUPPLIER
01-07-2022,RMS,Travis Perkins Trading Company Ltd,Building Alterations And Materials,1469,0,COMMERCIAL SUPPLIER
01-07-2022,RMS,Travis Perkins Trading Company Ltd,Building Alterations And Materials,565.2,0,COMMERCIAL SUPPLIER
01-07-2022,Digital,Lucent Talking Ltd,Private Contractors Payment - Other,3860,0,COMMERCIAL SUPPLIER
01-07-2022,RMS,J B Jessop East Ham Ltd,Building Alterations And Materials,333,0,VENDOR
01-07-2022,RMS,J B Jessop East Ham Ltd,Building Alterations And Materials,864,0,VENDOR
01-07-2022,RMS,Capsticks Solicitors LLP,Legal Fees,1002.8,0,LEGAL SERVICES
01-07-2022,RMS,Capsticks Solicitors LLP,Legal Fees,1099.5,0,LEGAL SERVICES
01-07-2022,RMS,Capsticks Solicitors LLP,Legal Fees,1341,0,LEGAL SERVICES
01-07-2022,Environment and Sustainable Transport,Worldline IT Services UK Ltd Re Fuel Genie,Transport Fuel,323.27,0,COMMERCIAL SUPPLIER
01-07-2022,Environment and Sustainable Transport,Worldline IT Services UK Ltd Re Fuel Genie,Transport Fuel,263.3,0,COMMERCIAL SUPPLIER
01-07-2022,Environment and Sustainable Transport,Worldline IT Services UK Ltd Re Fuel Genie,Transport Fuel,1379.96,0,COMMERCIAL SUPPLIER
01-07-2022,Children and Young People,Britannia K9 Security Ltd,Security Of Premises,5562.5,0,COMMERCIAL SUPPLIER
01-07-2022,Environment and Sustainable Transport,Portakabin Ltd,Premises Hire - Facilities,2373.33,0,COMMERCIAL SUPPLIER
01-07-2022,oneSource - Non Shared,Newham Learning Partnership (Project Co) Limited,"Maintenance - Equipment, Furniture And Materials",318521.23,0,VENDOR
01-07-2022,oneSource - Non Shared,Newham Learning Partnership (Project Co) Limited,"Maintenance - Equipment, Furniture And Materials",393678.07,0,VENDOR
01-07-2022,oneSource - Non Shared,Building A Future (Newham Schools) Limited,"Maintenance - Equipment, Furniture And Materials",72313.93,0,VENDOR
01-07-2022,oneSource - Non Shared,Building A Future (Newham Schools) Limited,"Maintenance - Equipment, Furniture And Materials",276481.1,0,VENDOR
01-07-2022,oneSource - Non Shared,Building A Future (Newham Schools) Limited,"Maintenance - Equipment, Furniture And Materials",72819.36,0,VENDOR
01-07-2022,oneSource - Non Shared,Sureserve Fire & Electrical Limited,Building Alterations And Materials,20821.51,0,
01-07-2022,Adults & Health,Subco Trust,Daycare - Private Contractors Payment,65,0,VENDOR
01-07-2022,Adults & Health,Subco Trust,Daycare - Private Contractors Payment,65,0,VENDOR
01-07-2022,Adults & Health,Subco Trust,Payments To Voluntary Sector,5,0,VENDOR
01-07-2022,Adults & Health,Subco Trust,Daycare - Private Contractors Payment,65,0,VENDOR
01-07-2022,Adults & Health,Subco Trust,Payments To Voluntary Sector,5,0,VENDOR
01-07-2022,Adults & Health,Subco Trust,Daycare - Private Contractors Payment,65,0,VENDOR
01-07-2022,Adults & Health,Subco Trust,Payments To Voluntary Sector,5,0,VENDOR
01-07-2022,Adults & Health,Subco Trust,Payments To Voluntary Sector,5,0,VENDOR
01-07-2022,Children and Young People,Citron Hygiene UK Limited,Cleaning Services,362.35,0,COMMERCIAL SUPPLIER
01-07-2022,RMS,Personal Information - Redacted,Compensation,350,0,INDIVIDUALS
01-07-2022,Adults & Health,Subco Trust,Daycare - Private Contractors Payment,150,0,VENDOR
01-07-2022,Adults & Health,Subco Trust,Payments To Voluntary Sector,15,0,VENDOR
01-07-2022,Adults & Health,Subco Trust,Daycare - Private Contractors Payment,150,0,VENDOR
01-07-2022,Adults & Health,Subco Trust,Payments To Voluntary Sector,15,0,VENDOR
01-07-2022,Adults & Health,Subco Trust,Payments To Voluntary Sector,15,0,VENDOR
01-07-2022,Adults & Health,Subco Trust,Daycare - Private Contractors Payment,150,0,VENDOR
01-07-2022,Adults & Health,Subco Trust,Payments To Voluntary Sector,15,0,VENDOR
01-07-2022,Adults & Health,Subco Trust,Daycare - Private Contractors Payment,150,0,VENDOR
01-07-2022,Children and Young People,J Thorpe,Open Spaces Works,570,0,VENDOR
01-07-2022,Adults & Health,Rainbow Homecare Ltd,Daycare - Private Contractors Payment,84751.39,0,VENDOR
01-07-2022,Housing Revenue Account,Bond Turner,Legal Fees,1200,0,INDIVIDUALS
01-07-2022,Adults & Health,Subco Trust,Daycare - Private Contractors Payment,120,0,VENDOR
01-07-2022,Adults & Health,Subco Trust,Daycare - Private Contractors Payment,120,0,VENDOR
01-07-2022,Adults & Health,Subco Trust,Payments To Voluntary Sector,10,0,VENDOR
01-07-2022,Adults & Health,Subco Trust,Daycare - Private Contractors Payment,120,0,VENDOR
01-07-2022,Adults & Health,Subco Trust,Payments To Voluntary Sector,10,0,VENDOR
01-07-2022,Adults & Health,Subco Trust,Daycare - Private Contractors Payment,120,0,VENDOR
01-07-2022,Adults & Health,Subco Trust,Payments To Voluntary Sector,10,0,VENDOR
01-07-2022,Adults & Health,Subco Trust,Payments To Voluntary Sector,10,0,VENDOR
01-07-2022,Adults & Health,Subco Trust,Daycare - Private Contractors Payment,100,0,VENDOR
01-07-2022,Adults & Health,Subco Trust,Daycare - Private Contractors Payment,100,0,VENDOR
01-07-2022,Adults & Health,Subco Trust,Daycare - Private Contractors Payment,100,0,VENDOR
01-07-2022,Adults & Health,Subco Trust,Daycare - Private Contractors Payment,100,0,VENDOR
01-07-2022,Adults & Health,Subco Trust,Daycare - Private Contractors Payment,100,0,VENDOR
01-07-2022,Adults & Health,Subco Trust,Daycare - Private Contractors Payment,100,0,VENDOR
01-07-2022,Adults & Health,Subco Trust,Daycare - Private Contractors Payment,100,0,VENDOR
01-07-2022,Adults & Health,Subco Trust,Daycare - Private Contractors Payment,100,0,VENDOR
01-07-2022,Adults & Health,Subco Trust,Daycare - Private Contractors Payment,80,0,VENDOR
01-07-2022,Adults & Health,Subco Trust,Daycare - Private Contractors Payment,80,0,VENDOR
01-07-2022,Adults & Health,Subco Trust,Payments To Voluntary Sector,10,0,VENDOR
01-07-2022,Adults & Health,Subco Trust,Payments To Voluntary Sector,10,0,VENDOR
01-07-2022,Adults & Health,Subco Trust,Daycare - Private Contractors Payment,80,0,VENDOR
01-07-2022,Adults & Health,Subco Trust,Payments To Voluntary Sector,10,0,VENDOR
01-07-2022,Adults & Health,Subco Trust,Payments To Voluntary Sector,10,0,VENDOR
01-07-2022,Adults & Health,Subco Trust,Daycare - Private Contractors Payment,80,0,VENDOR
01-07-2022,Adults & Health,Subco Trust,Payments To Voluntary Sector,10,0,VENDOR
01-07-2022,Adults & Health,Subco Trust,Daycare - Private Contractors Payment,80,0,VENDOR
01-07-2022,Adults & Health,Subco Trust,Daycare - Private Contractors Payment,80,0,VENDOR
01-07-2022,Adults & Health,Subco Trust,Payments To Voluntary Sector,10,0,VENDOR
01-07-2022,Adults & Health,Subco Trust,Payments To Voluntary Sector,10,0,VENDOR
01-07-2022,Adults & Health,Subco Trust,Daycare - Private Contractors Payment,80,0,VENDOR
01-07-2022,Adults & Health,Subco Trust,Payments To Voluntary Sector,10,0,VENDOR
01-07-2022,Adults & Health,Subco Trust,Daycare - Private Contractors Payment,80,0,VENDOR
01-07-2022,Environment and Sustainable Transport,Group Tyre Wholesale Ltd,Highway Services,301.8,0,COMMERCIAL SUPPLIER
01-07-2022,Marketing,Highway Vineyard Church,Premises Hire - Facilities,650,0,COMMERCIAL SUPPLIER
01-07-2022,Environment and Sustainable Transport,RFW Engineering Ltd,"Purchase - Equipment, Furniture And Materials",1660,0,COMMERCIAL SUPPLIER
01-07-2022,Children and Young People,Early Start Group Ltd,Private Contractors Payment - Other,54709,0,COMMERCIAL SUPPLIER
01-07-2022,Children and Young People,Early Start Group Ltd,Private Contractors Payment - Other,112879,0,COMMERCIAL SUPPLIER
01-07-2022,RMS,Beacon Scaffolding Ltd,Private Contractors Payment - Other,495.36,0,CIS
01-07-2022,RMS,Beacon Scaffolding Ltd,Private Contractors Payment - Other,557.28,0,CIS
01-07-2022,RMS,Beacon Scaffolding Ltd,Private Contractors Payment - Other,557.28,0,CIS
01-07-2022,RMS,Beacon Scaffolding Ltd,Private Contractors Payment - Other,0,0,CIS
01-07-2022,RMS,Beacon Scaffolding Ltd,Private Contractors Payment - Other,1114.56,0,CIS
01-07-2022,RMS,Beacon Scaffolding Ltd,Private Contractors Payment - Other,1362.24,0,CIS
01-07-2022,RMS,Beacon Scaffolding Ltd,Private Contractors Payment - Other,557.28,0,CIS
01-07-2022,Children and Young People,CVA Education Consultancy Ltd,Consultancy Fees,1875,0,PUBLIC CORPORATION
01-07-2022,Marketing,Wildsuga,Events,600,0,COMMERCIAL SUPPLIER
01-07-2022,Children and Young People,Personal Information - Redacted,Legal Fees,760,0,NON COMMERCIAL SUPPLIER
01-07-2022,Adults & Health,Subco Trust,Daycare - Private Contractors Payment,120,0,VENDOR
01-07-2022,Adults & Health,Subco Trust,Payments To Voluntary Sector,10,0,VENDOR
01-07-2022,Adults & Health,Subco Trust,Payments To Voluntary Sector,10,0,VENDOR
01-07-2022,Adults & Health,Subco Trust,Daycare - Private Contractors Payment,120,0,VENDOR
01-07-2022,Adults & Health,Subco Trust,Payments To Voluntary Sector,10,0,VENDOR
01-07-2022,Adults & Health,Subco Trust,Daycare - Private Contractors Payment,120,0,VENDOR
01-07-2022,Adults & Health,Subco Trust,Daycare - Private Contractors Payment,120,0,VENDOR
01-07-2022,Adults & Health,Subco Trust,Payments To Voluntary Sector,10,0,VENDOR
01-07-2022,Adults & Health,Subco Trust,Daycare - Private Contractors Payment,80,0,VENDOR
01-07-2022,Adults & Health,Subco Trust,Daycare - Private Contractors Payment,80,0,VENDOR
01-07-2022,Adults & Health,Subco Trust,Daycare - Private Contractors Payment,80,0,VENDOR
01-07-2022,Adults & Health,Subco Trust,Daycare - Private Contractors Payment,80,0,VENDOR
01-07-2022,Inclusive Economy & Housing,London Letting & Management Ltd t/a Marlin Apartment,Rents Payable,209008.8,0,COMMERCIAL SUPPLIER
01-07-2022,Housing Revenue Account,Personal Information - Redacted,Catering And Vending Supplies,6.25,0,Employee
01-07-2022,Housing Revenue Account,Personal Information - Redacted,Catering And Vending Supplies,1.21,0,Employee
01-07-2022,Housing Revenue Account,Personal Information - Redacted,Catering And Vending Supplies,5.54,0,Employee
01-07-2022,Housing Revenue Account,Personal Information - Redacted,Building Alterations And Materials,48.96,0,Employee
01-07-2022,Housing Revenue Account,Personal Information - Redacted,Building Alterations And Materials,180,0,Employee
01-07-2022,Housing Revenue Account,Personal Information - Redacted,Building Alterations And Materials,61,0,Employee
01-07-2022,Housing Revenue Account,Personal Information - Redacted,Catering And Vending Supplies,1.75,0,Employee
01-07-2022,Housing Revenue Account,Personal Information - Redacted,"Purchase - Equipment, Furniture And Materials",35.82,0,Employee
01-07-2022,Housing Revenue Account,Personal Information - Redacted,"Purchase - Equipment, Furniture And Materials",249.18,0,Employee
01-07-2022,Housing Revenue Account,Personal Information - Redacted,Catering And Vending Supplies,154.33,0,Employee
01-07-2022,Housing Revenue Account,Personal Information - Redacted,Catering And Vending Supplies,28.37,0,Employee
01-07-2022,Children and Young People,Personal Information - Redacted,Transport Costs - Staff,86,0,Employee
01-07-2022,Children and Young People,Personal Information - Redacted,Transport Costs - Staff,182,0,Employee
01-07-2022,Children and Young People,Personal Information - Redacted,Transport Costs - Staff,43,0,Employee
01-07-2022,Children and Young People,Personal Information - Redacted,Transport Costs - Staff,44,0,Employee
01-07-2022,Children and Young People,Personal Information - Redacted,Transport Costs - Staff,311,0,Employee
01-07-2022,Children and Young People,Personal Information - Redacted,Transport Costs - Staff,43,0,Employee
01-07-2022,Children and Young People,Personal Information - Redacted,Transport Costs - Staff,172,0,Employee
01-07-2022,Children and Young People,Personal Information - Redacted,Transport Costs - Staff,-43,0,Employee
01-07-2022,Children and Young People,Personal Information - Redacted,"Purchase - Equipment, Furniture And Materials",331.63,0,Employee
01-07-2022,Environment and Sustainable Transport,Personal Information - Redacted,"Purchase - Equipment, Furniture And Materials",23.5,0,Employee
01-07-2022,Environment and Sustainable Transport,Personal Information - Redacted,"Advertising, Publicity And Marketing",54.99,0,Employee
01-07-2022,Adults & Health,Subco Trust,Daycare - Private Contractors Payment,110,0,VENDOR
01-07-2022,Adults & Health,Subco Trust,Payments To Voluntary Sector,10,0,VENDOR
01-07-2022,Adults & Health,Subco Trust,Daycare - Private Contractors Payment,110,0,VENDOR
01-07-2022,Adults & Health,Subco Trust,Payments To Voluntary Sector,10,0,VENDOR
01-07-2022,Adults & Health,Subco Trust,Payments To Voluntary Sector,10,0,VENDOR
01-07-2022,Adults & Health,Subco Trust,Daycare - Private Contractors Payment,110,0,VENDOR
01-07-2022,Adults & Health,Subco Trust,Daycare - Private Contractors Payment,110,0,VENDOR
01-07-2022,Adults & Health,Subco Trust,Payments To Voluntary Sector,10,0,VENDOR
01-07-2022,Adults & Health,Subco Trust,Daycare - Private Contractors Payment,150,0,VENDOR
01-07-2022,Adults & Health,Subco Trust,Daycare - Private Contractors Payment,150,0,VENDOR
01-07-2022,Adults & Health,Subco Trust,Payments To Voluntary Sector,10,0,VENDOR
01-07-2022,Adults & Health,Subco Trust,Daycare - Private Contractors Payment,150,0,VENDOR
01-07-2022,Adults & Health,Subco Trust,Payments To Voluntary Sector,10,0,VENDOR
01-07-2022,Adults & Health,Subco Trust,Daycare - Private Contractors Payment,150,0,VENDOR
01-07-2022,Adults & Health,Subco Trust,Payments To Voluntary Sector,10,0,VENDOR
01-07-2022,Adults & Health,Subco Trust,Payments To Voluntary Sector,10,0,VENDOR
01-07-2022,Children and Young People,Edulaw Training,Staff Development And Training,2802.82,0,VENDOR
01-07-2022,Children and Young People,Residential Group,Supported Other Accommodation - Private Contractors Payment,3950,0,COMMERCIAL SUPPLIER
01-07-2022,Children and Young People,Residential Group,Supported Other Accommodation - Private Contractors Payment,3950,0,COMMERCIAL SUPPLIER
01-07-2022,Children and Young People,Residential Group,Supported Other Accommodation - Private Contractors Payment,3950,0,COMMERCIAL SUPPLIER
01-07-2022,Children and Young People,Residential Group,Supported Other Accommodation - Private Contractors Payment,3950,0,COMMERCIAL SUPPLIER
01-07-2022,oneSource,Promotional Sourcing Global Ltd,Printing,244.92,0,COMMERCIAL SUPPLIER
01-07-2022,Marketing,Personal Information - Redacted,"Advertising, Publicity And Marketing",334.92,0,INDIVIDUALS
01-07-2022,Adults & Health,Subco Trust,Daycare - Private Contractors Payment,225,0,VENDOR
01-07-2022,Adults & Health,Subco Trust,Daycare - Private Contractors Payment,225,0,VENDOR
01-07-2022,Adults & Health,Subco Trust,Daycare - Private Contractors Payment,225,0,VENDOR
01-07-2022,Adults & Health,Subco Trust,Daycare - Private Contractors Payment,225,0,VENDOR
01-07-2022,Adults & Health,Subco Trust,Daycare - Private Contractors Payment,225,0,VENDOR
01-07-2022,Adults & Health,Subco Trust,Daycare - Private Contractors Payment,225,0,VENDOR
01-07-2022,Adults & Health,Subco Trust,Daycare - Private Contractors Payment,225,0,VENDOR
01-07-2022,Adults & Health,Subco Trust,Daycare - Private Contractors Payment,225,0,VENDOR
01-07-2022,Adults & Health,Subco Trust,Daycare - Private Contractors Payment,140,0,VENDOR
01-07-2022,Adults & Health,Subco Trust,Payments To Voluntary Sector,10,0,VENDOR
01-07-2022,Adults & Health,Subco Trust,Payments To Voluntary Sector,10,0,VENDOR
01-07-2022,Adults & Health,Subco Trust,Daycare - Private Contractors Payment,140,0,VENDOR
01-07-2022,Adults & Health,Subco Trust,Payments To Voluntary Sector,10,0,VENDOR
01-07-2022,Adults & Health,Subco Trust,Payments To Voluntary Sector,10,0,VENDOR
01-07-2022,Adults & Health,Subco Trust,Daycare - Private Contractors Payment,140,0,VENDOR
01-07-2022,Adults & Health,Subco Trust,Daycare - Private Contractors Payment,140,0,VENDOR
01-07-2022,Dedicated Schools Budget,Stormont House School,Professional Services - General,6250,0,LOCAL AUTHORITY SERVICES
01-07-2022,oneSource,Panther Print & Design Ltd,Printing,966,0,VENDOR
01-07-2022,oneSource - Non Shared,Education Support (Newham) Ltd,"Maintenance - Equipment, Furniture And Materials",329487.81,0,VENDOR
01-07-2022,Inclusive Economy & Housing,Single Homeless Project,Private Contractors Payment - Other,10000,0,COMMERCIAL SUPPLIER
01-07-2022,Adults & Health,Subco Trust,Daycare - Private Contractors Payment,195,0,VENDOR
01-07-2022,Adults & Health,Subco Trust,Payments To Voluntary Sector,15,0,VENDOR
01-07-2022,Adults & Health,Subco Trust,Daycare - Private Contractors Payment,195,0,VENDOR
01-07-2022,Adults & Health,Subco Trust,Payments To Voluntary Sector,15,0,VENDOR
01-07-2022,Adults & Health,Subco Trust,Daycare - Private Contractors Payment,195,0,VENDOR
01-07-2022,Adults & Health,Subco Trust,Payments To Voluntary Sector,15,0,VENDOR
01-07-2022,Adults & Health,Subco Trust,Daycare - Private Contractors Payment,195,0,VENDOR
01-07-2022,Adults & Health,Subco Trust,Payments To Voluntary Sector,15,0,VENDOR
01-07-2022,Adults & Health,Subco Trust,Daycare - Private Contractors Payment,65,0,VENDOR
01-07-2022,Adults & Health,Subco Trust,Daycare - Private Contractors Payment,65,0,VENDOR
01-07-2022,Adults & Health,Subco Trust,Daycare - Private Contractors Payment,65,0,VENDOR
01-07-2022,Adults & Health,Subco Trust,Daycare - Private Contractors Payment,65,0,VENDOR
01-07-2022,Adults & Health,Subco Trust,Daycare - Private Contractors Payment,65,0,VENDOR
01-07-2022,Adults & Health,Subco Trust,Daycare - Private Contractors Payment,65,0,VENDOR
01-07-2022,Adults & Health,Subco Trust,Daycare - Private Contractors Payment,65,0,VENDOR
01-07-2022,Adults & Health,Subco Trust,Daycare - Private Contractors Payment,65,0,VENDOR
01-07-2022,Inclusive Economy & Housing,St Lukes C Of E Primary School,Payment To Health Authorities,2706,0,VENDOR
01-07-2022,Inclusive Economy & Housing,St Michael's Rc Primary School,Payment To Health Authorities,3234,0,VENDOR
01-07-2022,Inclusive Economy & Housing,St Helens t/a Our Lady of Grace Academy,Payment To Health Authorities,6732,0,INDIVIDUALS
01-07-2022,Inclusive Economy & Housing,Tollgate Primary School t/a Boleyn Trust,Payment To Health Authorities,8184,0,COMMERCIAL SUPPLIER
01-07-2022,Inclusive Economy & Housing,The Tunmarsh School,Payment To Health Authorities,2838,0,VENDOR
01-07-2022,Inclusive Economy & Housing,Winsor Primary School,Payment To Health Authorities,12870,0,LOCAL AUTHORITY SERVICES
01-07-2022,Inclusive Economy & Housing,Vicarage Primary School t/a New Vision Trust,Payment To Health Authorities,17820,0,NON COMMERCIAL SUPPLIER
01-07-2022,Inclusive Economy & Housing,West Ham C Of E Primary School,Payment To Health Authorities,6402,0,VENDOR
01-07-2022,Inclusive Economy & Housing,The Royal Docks Community School t/a Burnt Mill Academy Trust,Payment To Health Authorities,27258,0,COMMERCIAL SUPPLIER
01-07-2022,Inclusive Economy & Housing,Stratford School t/a Stratford Academy Trust,Payment To Health Authorities,35574,0,VENDOR
01-07-2022,Inclusive Economy & Housing,St Stephens Primary School,Payment To Health Authorities,11022,0,VENDOR
01-07-2022,Inclusive Economy & Housing,St Winefride's Rc Primary Sch,Payment To Health Authorities,5478,0,VENDOR
01-07-2022,Inclusive Economy & Housing,Woodgrange Infants School,Payment To Health Authorities,4620,0,VENDOR
01-07-2022,Inclusive Economy & Housing,Upton Cross Primary School t/a Learning in Harmony,Payment To Health Authorities,14454,0,VENDOR
01-07-2022,Inclusive Economy & Housing,William Davies Primary School,Payment To Health Authorities,4950,0,VENDOR
01-07-2022,Inclusive Economy & Housing,Selwyn Primary School t/a Leading Learning Trust,Payment To Health Authorities,9438,0,COMMERCIAL SUPPLIER
01-07-2022,Inclusive Economy & Housing,Salisbury Primary School,Payment To Health Authorities,13728,0,NON COMMERCIAL SUPPLIER
01-07-2022,Inclusive Economy & Housing,School 360 t/a Big Education Trust,Payment To Health Authorities,594,0,COMMERCIAL SUPPLIER
01-07-2022,Inclusive Economy & Housing,Big Education Trust t/a School 21,Payment To Health Authorities,24618,0,VENDOR
01-07-2022,Inclusive Economy & Housing,Shaftesbury Primary School t/a The Boleyn Trust,Payment To Health Authorities,11946,0,NON COMMERCIAL SUPPLIER
01-07-2022,Inclusive Economy & Housing,St Bonaventures Rc School,Payment To Health Authorities,23100,0,VENDOR
01-07-2022,Inclusive Economy & Housing,Our Lady of Grace Catholic Academy Trust t/a St Francis Catholic Primary School,Payment To Health Authorities,7062,0,COMMERCIAL SUPPLIER
01-07-2022,Inclusive Economy & Housing,Sheringham Primary School t/a Learning in Harmony,Payment To Health Authorities,14388,0,VENDOR
01-07-2022,Inclusive Economy & Housing,Sir John Heron Primary School,Payment To Health Authorities,6930,0,NON COMMERCIAL SUPPLIER
01-07-2022,Inclusive Economy & Housing,Our Lady of Grace Catholic Academy Trust t/a St Anthony's Catholic Primary School,Payment To Health Authorities,7854,0,COMMERCIAL SUPPLIER
01-07-2022,Inclusive Economy & Housing,Royal Wharf Primary School,Payment To Health Authorities,2772,0,COMMERCIAL SUPPLIER
01-07-2022,Inclusive Economy & Housing,St Angelas Ursuline School,Payment To Health Authorities,20988,0,NON COMMERCIAL SUPPLIER
01-07-2022,Inclusive Economy & Housing,Roman Road Primary School,Payment To Health Authorities,6204,0,VENDOR
01-07-2022,Inclusive Economy & Housing,Sandringham Primary School,Payment To Health Authorities,14982,0,VENDOR
01-07-2022,Inclusive Economy & Housing,Agate Momentum Trust T/A Scott Wilkie Primary School,Payment To Health Authorities,10626,0,COMMERCIAL SUPPLIER
01-07-2022,Inclusive Economy & Housing,Southern Road Primary School.,Payment To Health Authorities,10494,0,VENDOR
01-07-2022,Inclusive Economy & Housing,Sarah Bonnell School t/a Newham Community Schools Trust,Payment To Health Authorities,31746,0,COMMERCIAL SUPPLIER
01-07-2022,Inclusive Economy & Housing,Our Lady of Grace Catholic Academy Trust t/a St Edward's Catholic Primary School,Payment To Health Authorities,6732,0,COMMERCIAL SUPPLIER
01-07-2022,Inclusive Economy & Housing,Rosetta Primary School t/a Boleyn Academy Trust,Payment To Health Authorities,16698,0,NON COMMERCIAL SUPPLIER
01-07-2022,Housing Revenue Account,Swan Housing Group,Professional Services - General,856630.69,0,VENDOR
01-07-2022,oneSource - Non Shared,Serjeant Security Ltd,Security Of Premises,699.84,0,VENDOR
01-07-2022,oneSource - Non Shared,Serjeant Security Ltd,Security Of Premises,7884.26,0,VENDOR
01-07-2022,oneSource - Non Shared,Serjeant Security Ltd,Security Of Premises,6190.35,0,VENDOR
01-07-2022,oneSource - Non Shared,Serjeant Security Ltd,Security Of Premises,714.72,0,VENDOR
01-07-2022,oneSource - Non Shared,Serjeant Security Ltd,Security Of Premises,5280.19,0,VENDOR
01-07-2022,oneSource - Non Shared,Serjeant Security Ltd,Security Of Premises,7061.78,0,VENDOR
02-07-2022,Inclusive Economy & Housing,Prontaprint,Printing,2000,0,COMMERCIAL SUPPLIER
03-07-2022,RMS,cer Financial Ltd,Agency Staff,475,0,COMMERCIAL SUPPLIER
03-07-2022,RMS,cer Financial Ltd,Agency Staff,360,0,COMMERCIAL SUPPLIER
03-07-2022,RMS,cer Financial Ltd,Agency Staff,360,0,COMMERCIAL SUPPLIER
03-07-2022,RMS,cer Financial Ltd,Agency Staff,360,0,COMMERCIAL SUPPLIER
03-07-2022,RMS,cer Financial Ltd,Agency Staff,360,0,COMMERCIAL SUPPLIER
03-07-2022,RMS,cer Financial Ltd,Agency Staff,480,0,COMMERCIAL SUPPLIER
03-07-2022,RMS,cer Financial Ltd,Agency Staff,480,0,COMMERCIAL SUPPLIER
03-07-2022,RMS,cer Financial Ltd,Agency Staff,420,0,COMMERCIAL SUPPLIER
03-07-2022,RMS,cer Financial Ltd,Agency Staff,320,0,COMMERCIAL SUPPLIER
03-07-2022,RMS,cer Financial Ltd,Agency Staff,360,0,COMMERCIAL SUPPLIER
03-07-2022,RMS,cer Financial Ltd,Agency Staff,360,0,COMMERCIAL SUPPLIER
03-07-2022,RMS,cer Financial Ltd,Agency Staff,480,0,COMMERCIAL SUPPLIER
03-07-2022,RMS,cer Financial Ltd,Agency Staff,480,0,COMMERCIAL SUPPLIER
03-07-2022,RMS,cer Financial Ltd,Agency Staff,360,0,COMMERCIAL SUPPLIER
03-07-2022,RMS,cer Financial Ltd,Agency Staff,360,0,COMMERCIAL SUPPLIER
03-07-2022,RMS,cer Financial Ltd,Agency Staff,360,0,COMMERCIAL SUPPLIER
03-07-2022,RMS,cer Financial Ltd,Agency Staff,360,0,COMMERCIAL SUPPLIER
03-07-2022,RMS,cer Financial Ltd,Agency Staff,360,0,COMMERCIAL SUPPLIER
03-07-2022,RMS,cer Financial Ltd,Agency Staff,360,0,COMMERCIAL SUPPLIER
03-07-2022,RMS,cer Financial Ltd,Agency Staff,360,0,COMMERCIAL SUPPLIER
03-07-2022,RMS,cer Financial Ltd,Agency Staff,360,0,COMMERCIAL SUPPLIER
03-07-2022,RMS,cer Financial Ltd,Agency Staff,360,0,COMMERCIAL SUPPLIER
03-07-2022,RMS,cer Financial Ltd,Agency Staff,360,0,COMMERCIAL SUPPLIER
03-07-2022,RMS,cer Financial Ltd,Agency Staff,360,0,COMMERCIAL SUPPLIER
03-07-2022,RMS,cer Financial Ltd,Agency Staff,360,0,COMMERCIAL SUPPLIER
03-07-2022,RMS,cer Financial Ltd,Agency Staff,320,0,COMMERCIAL SUPPLIER
03-07-2022,RMS,cer Financial Ltd,Agency Staff,400,0,COMMERCIAL SUPPLIER
03-07-2022,RMS,cer Financial Ltd,Agency Staff,320,0,COMMERCIAL SUPPLIER
03-07-2022,Children and Young People,Personal Information - Redacted,Ict Software,76.67,0,Employee
03-07-2022,Children and Young People,Personal Information - Redacted,"Purchase - Equipment, Furniture And Materials",44.77,0,Employee
03-07-2022,Children and Young People,Personal Information - Redacted,Ict Software,6.66,0,Employee
03-07-2022,Children and Young People,Personal Information - Redacted,"Purchase - Equipment, Furniture And Materials",100.26,0,Employee
03-07-2022,Children and Young People,Personal Information - Redacted,Photocopying,15.82,0,Employee
03-07-2022,Adults & Health,Personal Information - Redacted,Day Care Income,-16.2,0,INDIVIDUALS
03-07-2022,Adults & Health,Personal Information - Redacted,Day Care Income,-16.2,0,INDIVIDUALS
03-07-2022,Adults & Health,Personal Information - Redacted,Day Care Income,-16.2,0,INDIVIDUALS
03-07-2022,Adults & Health,Personal Information - Redacted,Day Care Income,-16.2,0,INDIVIDUALS
03-07-2022,Adults & Health,Personal Information - Redacted,Day Care Income,-85.6,0,INDIVIDUALS
03-07-2022,Adults & Health,Personal Information - Redacted,Day Care Income,-85.6,0,INDIVIDUALS
03-07-2022,Adults & Health,Personal Information - Redacted,Day Care Income,-85.6,0,INDIVIDUALS
03-07-2022,Adults & Health,Personal Information - Redacted,Day Care Income,-85.6,0,INDIVIDUALS
03-07-2022,Adults & Health,Personal Information - Redacted,Day Care Income,-12.15,0,FOSTER CARERS
03-07-2022,Adults & Health,Personal Information - Redacted,Day Care Income,-12.15,0,FOSTER CARERS
03-07-2022,Adults & Health,Personal Information - Redacted,Day Care Income,-12.15,0,FOSTER CARERS
03-07-2022,Adults & Health,Personal Information - Redacted,Day Care Income,-12.15,0,FOSTER CARERS
03-07-2022,Adults & Health,Personal Information - Redacted,Respite Care - Private Contractors Payment,790.33,0,INDIVIDUALS
03-07-2022,Adults & Health,Personal Information - Redacted,Respite Care - Private Contractors Payment,790.33,0,INDIVIDUALS
03-07-2022,Adults & Health,Personal Information - Redacted,Respite Care - Private Contractors Payment,790.33,0,INDIVIDUALS
03-07-2022,Adults & Health,Personal Information - Redacted,Respite Care - Private Contractors Payment,790.33,0,INDIVIDUALS
03-07-2022,Adults & Health,Personal Information - Redacted,Day Care Income,-6.34,0,FOSTER CARERS
03-07-2022,Adults & Health,Personal Information - Redacted,Day Care Income,-6.34,0,FOSTER CARERS
03-07-2022,Adults & Health,Personal Information - Redacted,Day Care Income,-6.34,0,FOSTER CARERS
03-07-2022,Adults & Health,Personal Information - Redacted,Day Care Income,-6.34,0,FOSTER CARERS
03-07-2022,Adults & Health,Personal Information - Redacted,Day Care Income,-16.2,0,INDIVIDUALS
03-07-2022,Adults & Health,Personal Information - Redacted,Day Care Income,-16.2,0,INDIVIDUALS
03-07-2022,Adults & Health,Personal Information - Redacted,Day Care Income,-16.2,0,INDIVIDUALS
03-07-2022,Adults & Health,Personal Information - Redacted,Day Care Income,-16.2,0,INDIVIDUALS
03-07-2022,Adults & Health,Personal Information - Redacted,Day Care Income,-5.85,0,FOSTER CARERS
03-07-2022,Adults & Health,Personal Information - Redacted,Day Care Income,-5.85,0,FOSTER CARERS
03-07-2022,Adults & Health,Personal Information - Redacted,Day Care Income,-5.85,0,FOSTER CARERS
03-07-2022,Adults & Health,Personal Information - Redacted,Day Care Income,-5.85,0,FOSTER CARERS
03-07-2022,Adults & Health,Your Ideal Ltd,Respite Care - Private Contractors Payment,2949.84,0,NON COMMERCIAL SUPPLIER
03-07-2022,Adults & Health,Personal Information - Redacted,Day Care Income,-33.9,0,INDIVIDUALS
03-07-2022,Adults & Health,Personal Information - Redacted,Day Care Income,-33.9,0,INDIVIDUALS
03-07-2022,Adults & Health,Personal Information - Redacted,Day Care Income,-33.9,0,INDIVIDUALS
03-07-2022,Adults & Health,Personal Information - Redacted,Day Care Income,-33.9,0,INDIVIDUALS
03-07-2022,Adults & Health,Personal Information - Redacted,Day Care Income,-30.65,0,FOSTER CARERS
03-07-2022,Adults & Health,Personal Information - Redacted,Day Care Income,-30.65,0,FOSTER CARERS
03-07-2022,Adults & Health,Personal Information - Redacted,Day Care Income,-30.65,0,FOSTER CARERS
03-07-2022,Adults & Health,Personal Information - Redacted,Day Care Income,-30.65,0,FOSTER CARERS
03-07-2022,Adults & Health,Personal Information - Redacted,Day Care Income,-17.57,0,INDIVIDUALS
03-07-2022,Adults & Health,Personal Information - Redacted,Day Care Income,-17.57,0,INDIVIDUALS
03-07-2022,Adults & Health,Personal Information - Redacted,Day Care Income,-17.57,0,INDIVIDUALS
03-07-2022,Adults & Health,Personal Information - Redacted,Day Care Income,-17.57,0,INDIVIDUALS
03-07-2022,Adults & Health,Personal Information - Redacted,Day Care Income,-8,0,INDIVIDUALS
03-07-2022,Adults & Health,Personal Information - Redacted,Day Care Income,-8,0,INDIVIDUALS
03-07-2022,Adults & Health,Personal Information - Redacted,Day Care Income,-8,0,INDIVIDUALS
03-07-2022,Adults & Health,Personal Information - Redacted,Day Care Income,-8,0,INDIVIDUALS
03-07-2022,Adults & Health,Personal Information - Redacted,Day Care Income,-300,0,INDIVIDUALS
03-07-2022,Adults & Health,Personal Information - Redacted,Day Care Income,-300,0,INDIVIDUALS
03-07-2022,Adults & Health,Personal Information - Redacted,Day Care Income,-300,0,INDIVIDUALS
03-07-2022,Adults & Health,Personal Information - Redacted,Day Care Income,-300,0,INDIVIDUALS
03-07-2022,Adults & Health,Personal Information - Redacted,Day Care Income,-12.26,0,INDIVIDUALS
03-07-2022,Adults & Health,Personal Information - Redacted,Day Care Income,-5.2,0,INDIVIDUALS
03-07-2022,Adults & Health,Personal Information - Redacted,Day Care Income,-5.2,0,INDIVIDUALS
03-07-2022,Adults & Health,Personal Information - Redacted,Day Care Income,-5.2,0,INDIVIDUALS
03-07-2022,Adults & Health,Personal Information - Redacted,Day Care Income,-5.2,0,INDIVIDUALS
03-07-2022,Adults & Health,Personal Information - Redacted,Day Care Income,-41.92,0,FOSTER CARERS
03-07-2022,Adults & Health,Personal Information - Redacted,Day Care Income,-41.92,0,FOSTER CARERS
03-07-2022,Adults & Health,Personal Information - Redacted,Day Care Income,-41.92,0,FOSTER CARERS
03-07-2022,Adults & Health,Personal Information - Redacted,Day Care Income,-41.92,0,FOSTER CARERS
03-07-2022,Adults & Health,Personal Information - Redacted,Day Care Income,-13.16,0,FOSTER CARERS
03-07-2022,Adults & Health,Personal Information - Redacted,Day Care Income,-13.16,0,FOSTER CARERS
03-07-2022,Adults & Health,Personal Information - Redacted,Day Care Income,-13.16,0,FOSTER CARERS
03-07-2022,Adults & Health,Personal Information - Redacted,Day Care Income,-13.16,0,FOSTER CARERS
03-07-2022,Children and Young People,Personal Information - Redacted,Payment To Private Sector Landlords (Psl),875,0,INDIVIDUALS
03-07-2022,Children and Young People,Personal Information - Redacted,Payment To Private Sector Landlords (Psl),675,0,INDIVIDUALS
03-07-2022,Adults & Health,Personal Information - Redacted,Day Care Income,-12.15,0,INDIVIDUALS
03-07-2022,Adults & Health,Personal Information - Redacted,Day Care Income,-12.15,0,INDIVIDUALS
03-07-2022,Adults & Health,Personal Information - Redacted,Day Care Income,-4.71,0,INDIVIDUALS
03-07-2022,Adults & Health,Personal Information - Redacted,Day Care Income,-4.71,0,INDIVIDUALS
03-07-2022,Adults & Health,Personal Information - Redacted,Day Care Income,-4.71,0,INDIVIDUALS
03-07-2022,Adults & Health,Personal Information - Redacted,Day Care Income,-4.71,0,INDIVIDUALS
03-07-2022,Adults & Health,Personal Information - Redacted,Day Care Income,-12.15,0,INDIVIDUALS
03-07-2022,Adults & Health,Personal Information - Redacted,Day Care Income,-12.15,0,INDIVIDUALS
03-07-2022,Children and Young People,Personal Information - Redacted,Payment To Private Sector Landlords (Psl),675,0,INDIVIDUALS
03-07-2022,Adults & Health,Personal Information - Redacted,Day Care Income,-10.15,0,INDIVIDUALS
03-07-2022,Adults & Health,Personal Information - Redacted,Day Care Income,-10.15,0,INDIVIDUALS
03-07-2022,Adults & Health,Personal Information - Redacted,Day Care Income,-10.15,0,INDIVIDUALS
03-07-2022,Adults & Health,Personal Information - Redacted,Day Care Income,-10.15,0,INDIVIDUALS
03-07-2022,Adults & Health,Personal Information - Redacted,Day Care Income,-47.14,0,INDIVIDUALS
03-07-2022,Adults & Health,Personal Information - Redacted,Day Care Income,-47.14,0,INDIVIDUALS
03-07-2022,Adults & Health,Personal Information - Redacted,Day Care Income,-47.14,0,INDIVIDUALS
03-07-2022,Adults & Health,Personal Information - Redacted,Day Care Income,-47.14,0,INDIVIDUALS
03-07-2022,Adults & Health,Personal Information - Redacted,Day Care Income,-31.7,0,INDIVIDUALS
03-07-2022,Adults & Health,Personal Information - Redacted,Day Care Income,-31.7,0,INDIVIDUALS
03-07-2022,Adults & Health,Personal Information - Redacted,Day Care Income,-31.7,0,INDIVIDUALS
03-07-2022,Adults & Health,Personal Information - Redacted,Day Care Income,-31.7,0,INDIVIDUALS
03-07-2022,Adults & Health,Vibrance,Day Care Income,-59.08,0,VOLUNTARY ORGANISATION
03-07-2022,Adults & Health,Vibrance,Day Care Income,-59.08,0,VOLUNTARY ORGANISATION
03-07-2022,Adults & Health,Vibrance,Day Care Income,-59.08,0,VOLUNTARY ORGANISATION
03-07-2022,Adults & Health,Vibrance,Day Care Income,-59.08,0,VOLUNTARY ORGANISATION
03-07-2022,Adults & Health,Personal Information - Redacted,Day Care Income,-70.19,0,FOSTER CARERS
03-07-2022,Adults & Health,Personal Information - Redacted,Day Care Income,-70.19,0,FOSTER CARERS
03-07-2022,Adults & Health,Personal Information - Redacted,Day Care Income,-70.19,0,FOSTER CARERS
03-07-2022,Adults & Health,Personal Information - Redacted,Day Care Income,-70.19,0,FOSTER CARERS
03-07-2022,Adults & Health,Personal Information - Redacted,Day Care Income,-12.15,0,INDIVIDUALS
03-07-2022,Adults & Health,Personal Information - Redacted,Day Care Income,-12.15,0,INDIVIDUALS
03-07-2022,Adults & Health,Personal Information - Redacted,Day Care Income,-12.15,0,INDIVIDUALS
03-07-2022,Adults & Health,Personal Information - Redacted,Day Care Income,-12.15,0,INDIVIDUALS
03-07-2022,Adults & Health,Personal Information - Redacted,Day Care Income,-36.75,0,INDIVIDUALS
03-07-2022,Adults & Health,Personal Information - Redacted,Day Care Income,-36.75,0,INDIVIDUALS
03-07-2022,Adults & Health,Personal Information - Redacted,Day Care Income,-36.75,0,INDIVIDUALS
03-07-2022,Adults & Health,Personal Information - Redacted,Day Care Income,-36.75,0,INDIVIDUALS
03-07-2022,Adults & Health,Personal Information - Redacted,Day Care Income,-20.52,0,FOSTER CARERS
03-07-2022,Adults & Health,Personal Information - Redacted,Day Care Income,-20.52,0,FOSTER CARERS
03-07-2022,Adults & Health,Personal Information - Redacted,Day Care Income,-20.52,0,FOSTER CARERS
03-07-2022,Adults & Health,Personal Information - Redacted,Day Care Income,-20.52,0,FOSTER CARERS
03-07-2022,Adults & Health,Personal Information - Redacted,Day Care Income,-24.75,0,INDIVIDUALS
03-07-2022,Adults & Health,Personal Information - Redacted,Day Care Income,-24.75,0,INDIVIDUALS
03-07-2022,Adults & Health,Personal Information - Redacted,Day Care Income,-24.75,0,INDIVIDUALS
03-07-2022,Adults & Health,Personal Information - Redacted,Day Care Income,-24.75,0,INDIVIDUALS
03-07-2022,Adults & Health,Personal Information - Redacted,Day Care Income,-18.96,0,INDIVIDUALS
03-07-2022,Adults & Health,Personal Information - Redacted,Day Care Income,-18.96,0,INDIVIDUALS
03-07-2022,Adults & Health,Personal Information - Redacted,Day Care Income,-18.96,0,INDIVIDUALS
03-07-2022,Adults & Health,Personal Information - Redacted,Day Care Income,-18.96,0,INDIVIDUALS
03-07-2022,Adults & Health,Personal Information - Redacted,Day Care Income,-5.9,0,INDIVIDUALS
03-07-2022,Adults & Health,Personal Information - Redacted,Day Care Income,-5.9,0,INDIVIDUALS
03-07-2022,Adults & Health,Personal Information - Redacted,Day Care Income,-5.9,0,INDIVIDUALS
03-07-2022,Adults & Health,Personal Information - Redacted,Day Care Income,-5.9,0,INDIVIDUALS
03-07-2022,Adults & Health,Personal Information - Redacted,Day Care Income,-20.02,0,INDIVIDUALS
03-07-2022,Adults & Health,Personal Information - Redacted,Day Care Income,-20.02,0,INDIVIDUALS
03-07-2022,Adults & Health,Personal Information - Redacted,Day Care Income,-20.02,0,INDIVIDUALS
03-07-2022,Adults & Health,Personal Information - Redacted,Day Care Income,-20.02,0,INDIVIDUALS
03-07-2022,Adults & Health,Personal Information - Redacted,Day Care Income,-22.16,0,FOSTER CARERS
03-07-2022,Adults & Health,Personal Information - Redacted,Day Care Income,-22.16,0,FOSTER CARERS
03-07-2022,Adults & Health,Personal Information - Redacted,Day Care Income,-22.16,0,FOSTER CARERS
03-07-2022,Adults & Health,Personal Information - Redacted,Day Care Income,-22.16,0,FOSTER CARERS
03-07-2022,Adults & Health,Personal Information - Redacted,Day Care Income,-44.66,0,INDIVIDUALS
03-07-2022,Adults & Health,Personal Information - Redacted,Day Care Income,-44.66,0,INDIVIDUALS
03-07-2022,Adults & Health,Personal Information - Redacted,Day Care Income,-44.66,0,INDIVIDUALS
03-07-2022,Adults & Health,Personal Information - Redacted,Day Care Income,-44.66,0,INDIVIDUALS
03-07-2022,Adults & Health,Personal Information - Redacted,Day Care Income,-24.75,0,INDIVIDUALS
03-07-2022,Adults & Health,Personal Information - Redacted,Day Care Income,-24.75,0,INDIVIDUALS
03-07-2022,Adults & Health,Personal Information - Redacted,Day Care Income,-24.75,0,INDIVIDUALS
03-07-2022,Adults & Health,Personal Information - Redacted,Day Care Income,-24.75,0,INDIVIDUALS
03-07-2022,Adults & Health,Personal Information - Redacted,Day Care Income,-75.82,0,INDIVIDUALS
03-07-2022,Adults & Health,Personal Information - Redacted,Day Care Income,-75.82,0,INDIVIDUALS
03-07-2022,Adults & Health,Personal Information - Redacted,Day Care Income,-75.82,0,INDIVIDUALS
03-07-2022,Adults & Health,Personal Information - Redacted,Day Care Income,-75.82,0,INDIVIDUALS
03-07-2022,Adults & Health,Personal Information - Redacted,Day Care Income,-55.11,0,INDIVIDUALS
03-07-2022,Adults & Health,Personal Information - Redacted,Day Care Income,-55.11,0,INDIVIDUALS
03-07-2022,Adults & Health,Personal Information - Redacted,Day Care Income,-55.11,0,INDIVIDUALS
03-07-2022,Adults & Health,Personal Information - Redacted,Day Care Income,-55.11,0,INDIVIDUALS
03-07-2022,Adults & Health,Personal Information - Redacted,Day Care Income,-31.05,0,NON COMMERCIAL SUPPLIER
03-07-2022,Adults & Health,Personal Information - Redacted,Day Care Income,-31.05,0,NON COMMERCIAL SUPPLIER
03-07-2022,Adults & Health,Personal Information - Redacted,Day Care Income,-31.05,0,NON COMMERCIAL SUPPLIER
03-07-2022,Adults & Health,Personal Information - Redacted,Day Care Income,-31.05,0,NON COMMERCIAL SUPPLIER
03-07-2022,Adults & Health,Personal Information - Redacted,Day Care Income,-34.75,0,INDIVIDUALS
03-07-2022,Adults & Health,Personal Information - Redacted,Day Care Income,-34.75,0,INDIVIDUALS
03-07-2022,Adults & Health,Personal Information - Redacted,Day Care Income,-34.75,0,INDIVIDUALS
03-07-2022,Adults & Health,Personal Information - Redacted,Day Care Income,-34.75,0,INDIVIDUALS
03-07-2022,Adults & Health,Personal Information - Redacted,Day Care Income,-4.97,0,INDIVIDUALS
03-07-2022,Adults & Health,Personal Information - Redacted,Day Care Income,-4.97,0,INDIVIDUALS
03-07-2022,Adults & Health,Personal Information - Redacted,Day Care Income,-4.97,0,INDIVIDUALS
03-07-2022,Adults & Health,Personal Information - Redacted,Day Care Income,-4.97,0,INDIVIDUALS
03-07-2022,Adults & Health,Personal Information - Redacted,Day Care Income,-24.75,0,INDIVIDUALS
03-07-2022,Adults & Health,Personal Information - Redacted,Day Care Income,-24.75,0,INDIVIDUALS
03-07-2022,Adults & Health,Personal Information - Redacted,Day Care Income,-24.75,0,INDIVIDUALS
03-07-2022,Adults & Health,Personal Information - Redacted,Day Care Income,-24.75,0,INDIVIDUALS
03-07-2022,Adults & Health,Personal Information - Redacted,Day Care Income,-45.06,0,FOSTER CARERS
03-07-2022,Adults & Health,Personal Information - Redacted,Day Care Income,-45.06,0,FOSTER CARERS
03-07-2022,Adults & Health,Personal Information - Redacted,Day Care Income,-8.66,0,INDIVIDUALS
03-07-2022,Adults & Health,Personal Information - Redacted,Day Care Income,-45.06,0,FOSTER CARERS
03-07-2022,Adults & Health,Personal Information - Redacted,Day Care Income,-45.06,0,FOSTER CARERS
03-07-2022,Adults & Health,Personal Information - Redacted,Day Care Income,-8.66,0,INDIVIDUALS
03-07-2022,Adults & Health,Personal Information - Redacted,Day Care Income,-9.78,0,FOSTER CARERS
03-07-2022,Adults & Health,Personal Information - Redacted,Day Care Income,-9.78,0,FOSTER CARERS
03-07-2022,Adults & Health,Personal Information - Redacted,Day Care Income,-8.66,0,INDIVIDUALS
03-07-2022,Adults & Health,Personal Information - Redacted,Day Care Income,-9.78,0,FOSTER CARERS
03-07-2022,Adults & Health,Personal Information - Redacted,Day Care Income,-8.66,0,INDIVIDUALS
03-07-2022,Adults & Health,Personal Information - Redacted,Day Care Income,-9.78,0,FOSTER CARERS
03-07-2022,Adults & Health,Personal Information - Redacted,Day Care Income,-59.08,0,INDIVIDUALS
03-07-2022,Adults & Health,Personal Information - Redacted,Day Care Income,-51.7,0,INDIVIDUALS
03-07-2022,Adults & Health,Personal Information - Redacted,Day Care Income,-25.95,0,INDIVIDUALS
03-07-2022,Adults & Health,Personal Information - Redacted,Day Care Income,-36.05,0,FOSTER CARERS
03-07-2022,Adults & Health,Personal Information - Redacted,Day Care Income,-58.39,0,INDIVIDUALS
03-07-2022,Adults & Health,Personal Information - Redacted,Day Care Income,-28.85,0,FOSTER CARERS
03-07-2022,Adults & Health,Personal Information - Redacted,Day Care Income,-25.95,0,FOSTER CARERS
03-07-2022,Adults & Health,Personal Information - Redacted,Day Care Income,-28.85,0,FOSTER CARERS
03-07-2022,Adults & Health,Personal Information - Redacted,Day Care Income,-25.95,0,FOSTER CARERS
03-07-2022,Adults & Health,Personal Information - Redacted,Day Care Income,-59.08,0,INDIVIDUALS
03-07-2022,Adults & Health,Personal Information - Redacted,Day Care Income,-51.7,0,INDIVIDUALS
03-07-2022,Adults & Health,Personal Information - Redacted,Day Care Income,-25.95,0,INDIVIDUALS
03-07-2022,Adults & Health,Personal Information - Redacted,Day Care Income,-36.05,0,FOSTER CARERS
03-07-2022,Adults & Health,Personal Information - Redacted,Day Care Income,-28.85,0,FOSTER CARERS
03-07-2022,Adults & Health,Personal Information - Redacted,Day Care Income,-25.95,0,FOSTER CARERS
03-07-2022,Adults & Health,Personal Information - Redacted,Day Care Income,-51.7,0,INDIVIDUALS
03-07-2022,Adults & Health,Personal Information - Redacted,Day Care Income,-10.33,0,INDIVIDUALS
03-07-2022,Adults & Health,Personal Information - Redacted,Day Care Income,-105.44,0,INDIVIDUALS
03-07-2022,Adults & Health,Personal Information - Redacted,Day Care Income,-25.95,0,FOSTER CARERS
03-07-2022,Adults & Health,Personal Information - Redacted,Day Care Income,-59.08,0,INDIVIDUALS
03-07-2022,Adults & Health,Personal Information - Redacted,Day Care Income,-51.7,0,INDIVIDUALS
03-07-2022,Adults & Health,Personal Information - Redacted,Day Care Income,-58.39,0,INDIVIDUALS
03-07-2022,Adults & Health,Personal Information - Redacted,Day Care Income,-10.33,0,INDIVIDUALS
03-07-2022,Adults & Health,Personal Information - Redacted,Day Care Income,-105.44,0,INDIVIDUALS
03-07-2022,Adults & Health,Personal Information - Redacted,Day Care Income,-59.08,0,INDIVIDUALS
03-07-2022,Adults & Health,Personal Information - Redacted,Day Care Income,-105.44,0,INDIVIDUALS
03-07-2022,Adults & Health,Personal Information - Redacted,Day Care Income,-5.5,0,INDIVIDUALS
03-07-2022,Adults & Health,Personal Information - Redacted,Day Care Income,-25.95,0,INDIVIDUALS
03-07-2022,Adults & Health,Personal Information - Redacted,Day Care Income,-10.33,0,INDIVIDUALS
03-07-2022,Adults & Health,Personal Information - Redacted,Day Care Income,-105.44,0,INDIVIDUALS
03-07-2022,Adults & Health,Personal Information - Redacted,Day Care Income,-5.5,0,INDIVIDUALS
03-07-2022,Adults & Health,Personal Information - Redacted,Day Care Income,-25.95,0,INDIVIDUALS
03-07-2022,Adults & Health,Personal Information - Redacted,Day Care Income,-58.39,0,INDIVIDUALS
03-07-2022,Adults & Health,Personal Information - Redacted,Day Care Income,-5.5,0,INDIVIDUALS
03-07-2022,Adults & Health,Personal Information - Redacted,Day Care Income,-36.05,0,FOSTER CARERS
03-07-2022,Adults & Health,Personal Information - Redacted,Day Care Income,-5.5,0,INDIVIDUALS
03-07-2022,Adults & Health,Personal Information - Redacted,Day Care Income,-36.05,0,FOSTER CARERS
03-07-2022,Adults & Health,Personal Information - Redacted,Day Care Income,-58.39,0,INDIVIDUALS
03-07-2022,Adults & Health,Personal Information - Redacted,Day Care Income,-10.33,0,INDIVIDUALS
03-07-2022,Adults & Health,Personal Information - Redacted,Day Care Income,-28.85,0,FOSTER CARERS
03-07-2022,Adults & Health,Personal Information - Redacted,Day Care Income,-59.15,0,INDIVIDUALS
03-07-2022,Adults & Health,Personal Information - Redacted,Day Care Income,-8.96,0,INDIVIDUALS
03-07-2022,Adults & Health,Personal Information - Redacted,Day Care Income,-16.2,0,FOSTER CARERS
03-07-2022,Adults & Health,Personal Information - Redacted,Day Care Income,-16.2,0,FOSTER CARERS
03-07-2022,Adults & Health,Personal Information - Redacted,Day Care Income,-5.9,0,FOSTER CARERS
03-07-2022,Adults & Health,Personal Information - Redacted,Day Care Income,-16.2,0,FOSTER CARERS
03-07-2022,Adults & Health,Personal Information - Redacted,Day Care Income,-5.9,0,FOSTER CARERS
03-07-2022,Adults & Health,Personal Information - Redacted,Day Care Income,-51.84,0,INDIVIDUALS
03-07-2022,Adults & Health,Personal Information - Redacted,Day Care Income,-16.2,0,FOSTER CARERS
03-07-2022,Adults & Health,Personal Information - Redacted,Day Care Income,-59.15,0,INDIVIDUALS
03-07-2022,Adults & Health,Personal Information - Redacted,Day Care Income,-51.84,0,INDIVIDUALS
03-07-2022,Adults & Health,Personal Information - Redacted,Day Care Income,-59.15,0,INDIVIDUALS
03-07-2022,Adults & Health,Personal Information - Redacted,Day Care Income,-51.84,0,INDIVIDUALS
03-07-2022,Adults & Health,Personal Information - Redacted,Day Care Income,-8.96,0,INDIVIDUALS
03-07-2022,Adults & Health,Personal Information - Redacted,Day Care Income,-5.9,0,FOSTER CARERS
03-07-2022,Adults & Health,Personal Information - Redacted,Day Care Income,-59.15,0,INDIVIDUALS
03-07-2022,Adults & Health,Personal Information - Redacted,Day Care Income,-51.84,0,INDIVIDUALS
03-07-2022,Adults & Health,Personal Information - Redacted,Day Care Income,-8.96,0,INDIVIDUALS
03-07-2022,Adults & Health,Personal Information - Redacted,Day Care Income,-5.9,0,FOSTER CARERS
03-07-2022,Adults & Health,Personal Information - Redacted,Day Care Income,-8.96,0,INDIVIDUALS
03-07-2022,Adults & Health,Personal Information - Redacted,Day Care Income,-12.15,0,INDIVIDUALS
03-07-2022,Adults & Health,Personal Information - Redacted,Day Care Income,-12.15,0,INDIVIDUALS
03-07-2022,Adults & Health,Personal Information - Redacted,Day Care Income,-12.15,0,INDIVIDUALS
03-07-2022,Adults & Health,Personal Information - Redacted,Day Care Income,-12.15,0,INDIVIDUALS
03-07-2022,Adults & Health,Personal Information - Redacted,Day Care Income,-15.54,0,INDIVIDUALS
03-07-2022,Adults & Health,Personal Information - Redacted,Day Care Income,-15.54,0,INDIVIDUALS
03-07-2022,Adults & Health,Personal Information - Redacted,Day Care Income,-15.54,0,INDIVIDUALS
03-07-2022,Adults & Health,Personal Information - Redacted,Day Care Income,-15.54,0,INDIVIDUALS
03-07-2022,Adults & Health,Personal Information - Redacted,Day Care Income,-24.18,0,INDIVIDUALS
03-07-2022,Adults & Health,Personal Information - Redacted,Day Care Income,-24.18,0,INDIVIDUALS
03-07-2022,Adults & Health,Personal Information - Redacted,Day Care Income,-24.18,0,INDIVIDUALS
03-07-2022,Adults & Health,Personal Information - Redacted,Day Care Income,-24.18,0,INDIVIDUALS
03-07-2022,Adults & Health,Personal Information - Redacted,Day Care Income,-22.04,0,INDIVIDUALS
03-07-2022,Adults & Health,Personal Information - Redacted,Day Care Income,-22.04,0,INDIVIDUALS
03-07-2022,Adults & Health,Personal Information - Redacted,Day Care Income,-22.04,0,INDIVIDUALS
03-07-2022,Adults & Health,Personal Information - Redacted,Day Care Income,-22.04,0,INDIVIDUALS
03-07-2022,Adults & Health,Personal Information - Redacted,Private Contractors Payment - Other,14390,0,INDIVIDUALS
03-07-2022,Adults & Health,Personal Information - Redacted,Private Contractors Payment - Other,307,0,INDIVIDUALS
04-07-2022,Environment and Sustainable Transport,Protectavan Solutions Ltd,Highway Services,213.5,0,VENDOR
04-07-2022,Children and Young People,Seca Ltd,"Purchase - Equipment, Furniture And Materials",1363.44,0,COMMERCIAL SUPPLIER
04-07-2022,oneSource - Non Shared,Castle Water Ltd,Water And Sewerage,2371.81,0,COMMERCIAL SUPPLIER
04-07-2022,Adults & Health,Castle Water Ltd,Water And Sewerage,590.75,0,COMMERCIAL SUPPLIER
04-07-2022,Inclusive Economy & Housing,Castle Water Ltd,Water And Sewerage,3994.43,0,COMMERCIAL SUPPLIER
04-07-2022,Inclusive Economy & Housing,Castle Water Ltd,Water And Sewerage,133.52,0,COMMERCIAL SUPPLIER
04-07-2022,Inclusive Economy & Housing,Castle Water Ltd,Water And Sewerage,140.37,0,COMMERCIAL SUPPLIER
04-07-2022,Inclusive Economy & Housing,Castle Water Ltd,Water And Sewerage,11.37,0,COMMERCIAL SUPPLIER
04-07-2022,Inclusive Economy & Housing,Castle Water Ltd,Water And Sewerage,339.92,0,COMMERCIAL SUPPLIER
04-07-2022,Inclusive Economy & Housing,Castle Water Ltd,Water And Sewerage,531.23,0,COMMERCIAL SUPPLIER
04-07-2022,Inclusive Economy & Housing,Castle Water Ltd,Water And Sewerage,3228.93,0,COMMERCIAL SUPPLIER
04-07-2022,Adults & Health,Paul Policy Practice Ltd,Consultancy Fees,5250,0,COMMERCIAL SUPPLIER
04-07-2022,oneSource,Law Morgan Ltd,Agency Staff,3288.8,0,COMMERCIAL SUPPLIER
04-07-2022,Children and Young People,Law Morgan Ltd,Agency Staff,1746.25,0,COMMERCIAL SUPPLIER
04-07-2022,Housing Revenue Account,PG Building & Construction Services Limited,Facilities Management,855,0,COMMERCIAL SUPPLIER
04-07-2022,Environment and Sustainable Transport,R.A.M Fleet Solutions Ltd,"Purchase - Equipment, Furniture And Materials",3570,0,COMMERCIAL SUPPLIER
04-07-2022,Adults & Health,BNTL Care Ltd t/a Summerdale Court,Miscellaneous Expenses,4824,0,NON COMMERCIAL SUPPLIER
04-07-2022,Marketing,Askews and Holts Library Services Ltd,"Books, Publications And Resources",1774.35,0,COMMERCIAL SUPPLIER
04-07-2022,Marketing,Askews and Holts Library Services Ltd,"Books, Publications And Resources",563.19,0,COMMERCIAL SUPPLIER
04-07-2022,Marketing,Askews and Holts Library Services Ltd,"Books, Publications And Resources",619.92,0,COMMERCIAL SUPPLIER
04-07-2022,Marketing,Askews and Holts Library Services Ltd,"Books, Publications And Resources",641.64,0,COMMERCIAL SUPPLIER
04-07-2022,Environment and Sustainable Transport,Hands on Skills Training Ltd,Staff Development And Training,642.31,0,COMMERCIAL SUPPLIER
04-07-2022,Dedicated Schools Budget,Jigsaw Occupational Therapy Ltd,Occupational Health,1932,0,COMMERCIAL SUPPLIER
04-07-2022,Dedicated Schools Budget,Personal Information - Redacted,Private Contractors Payment - Other,1932,0,COMMERCIAL SUPPLIER
04-07-2022,Children and Young People,Goldline Cars Ltd,Client Transport,1196.4,0,COMMERCIAL SUPPLIER
04-07-2022,Children and Young People,Goldline Cars Ltd,Client Transport,380,0,COMMERCIAL SUPPLIER
04-07-2022,Children and Young People,Goldline Cars Ltd,Client Transport,1520,0,COMMERCIAL SUPPLIER
04-07-2022,Children and Young People,Goldline Cars Ltd,Client Transport,694.4,0,COMMERCIAL SUPPLIER
04-07-2022,Children and Young People,Goldline Cars Ltd,Client Transport,276.4,0,COMMERCIAL SUPPLIER
04-07-2022,Children and Young People,Goldline Cars Ltd,Client Transport,540,0,COMMERCIAL SUPPLIER
04-07-2022,Children and Young People,Goldline Cars Ltd,Client Transport,1260,0,COMMERCIAL SUPPLIER
04-07-2022,Children and Young People,Goldline Cars Ltd,Client Transport,344.8,0,COMMERCIAL SUPPLIER
04-07-2022,Environment and Sustainable Transport,Greener Solutions,Highway Services,165,0,VENDOR
04-07-2022,Environment and Sustainable Transport,Greener Solutions,Highway Services,93,0,VENDOR
04-07-2022,Environment and Sustainable Transport,Greener Solutions,Highway Services,78.5,0,VENDOR
04-07-2022,Environment and Sustainable Transport,Greener Solutions,Highway Services,150,0,VENDOR
04-07-2022,Environment and Sustainable Transport,Greener Solutions,Highway Services,102,0,VENDOR
04-07-2022,Environment and Sustainable Transport,Greener Solutions,Highway Services,230,0,VENDOR
04-07-2022,Environment and Sustainable Transport,Greener Solutions,Highway Services,69.9,0,VENDOR
04-07-2022,Environment and Sustainable Transport,Greener Solutions,Highway Services,30,0,VENDOR
04-07-2022,Environment and Sustainable Transport,Greener Solutions,Highway Services,312.5,0,VENDOR
04-07-2022,Environment and Sustainable Transport,Greener Solutions,Highway Services,59.4,0,VENDOR
04-07-2022,Environment and Sustainable Transport,Greener Solutions,Highway Services,480,0,VENDOR
04-07-2022,Environment and Sustainable Transport,Greener Solutions,Highway Services,107.7,0,VENDOR
04-07-2022,Environment and Sustainable Transport,Greener Solutions,Highway Services,58,0,VENDOR
04-07-2022,Environment and Sustainable Transport,Greener Solutions,Highway Services,74.4,0,VENDOR
04-07-2022,Environment and Sustainable Transport,Greener Solutions,Highway Services,98,0,VENDOR
04-07-2022,Environment and Sustainable Transport,Greener Solutions,Highway Services,125,0,VENDOR
04-07-2022,Environment and Sustainable Transport,Greener Solutions,Highway Services,42.2,0,VENDOR
04-07-2022,Environment and Sustainable Transport,Greener Solutions,Highway Services,8.55,0,VENDOR
04-07-2022,Environment and Sustainable Transport,Greener Solutions,Highway Services,84.4,0,VENDOR
04-07-2022,Environment and Sustainable Transport,Greener Solutions,Highway Services,6951.4,0,VENDOR
04-07-2022,RMS,GB Macks Skips,Refuse Collection,1129.4,0,COMMERCIAL SUPPLIER
04-07-2022,Inclusive Economy & Housing,Compactor Rentals Ltd,Hire - Equipment Furniture And Materials,520,0,COMMERCIAL SUPPLIER
04-07-2022,Children and Young People,Creighton & Partners Solicitors,Legal Fees,1138.92,0,COMMERCIAL SUPPLIER
04-07-2022,Adults & Health,Positive East,Professional Services - General,25000,0,COMMERCIAL SUPPLIER
04-07-2022,Children and Young People,ZED SW LTD,Legal Fees,220,0,NON COMMERCIAL SUPPLIER
04-07-2022,Environment and Sustainable Transport,Ernest Doe & Sons Ltd,Highway Services,3.26,0,COMMERCIAL SUPPLIER
04-07-2022,Environment and Sustainable Transport,Ernest Doe & Sons Ltd,Highway Services,7.96,0,COMMERCIAL SUPPLIER
04-07-2022,Environment and Sustainable Transport,Ernest Doe & Sons Ltd,Highway Services,131.8,0,COMMERCIAL SUPPLIER
04-07-2022,Environment and Sustainable Transport,Ernest Doe & Sons Ltd,Highway Services,28.56,0,COMMERCIAL SUPPLIER
04-07-2022,Environment and Sustainable Transport,Ernest Doe & Sons Ltd,Highway Services,49.9,0,COMMERCIAL SUPPLIER
04-07-2022,Adults & Health,Futures for Shared Lives Ltd,Adult Placement Scheme - Private Contractors Payment,536.27,0,NON COMMERCIAL SUPPLIER
04-07-2022,Adults & Health,Futures for Shared Lives Ltd,Adult Placement Scheme - Private Contractors Payment,153.22,0,NON COMMERCIAL SUPPLIER
04-07-2022,Adults & Health,Futures for Shared Lives Ltd,Adult Placement Scheme - Private Contractors Payment,536.27,0,NON COMMERCIAL SUPPLIER
04-07-2022,Adults & Health,Futures for Shared Lives Ltd,Adult Placement Scheme - Private Contractors Payment,536.27,0,NON COMMERCIAL SUPPLIER
04-07-2022,Adults & Health,Futures for Shared Lives Ltd,Adult Placement Scheme - Private Contractors Payment,536.27,0,NON COMMERCIAL SUPPLIER
04-07-2022,Environment and Sustainable Transport,Enterprise Flex-E-Rent,Client Transport,395.08,0,COMMERCIAL SUPPLIER
04-07-2022,Environment and Sustainable Transport,Enterprise Flex-E-Rent,Client Transport,395.08,0,COMMERCIAL SUPPLIER
04-07-2022,Environment and Sustainable Transport,Enterprise Flex-E-Rent,Client Transport,248.26,0,COMMERCIAL SUPPLIER
04-07-2022,Environment and Sustainable Transport,Enterprise Flex-E-Rent,Client Transport,395.08,0,COMMERCIAL SUPPLIER
04-07-2022,Environment and Sustainable Transport,Enterprise Flex-E-Rent,Client Transport,592.88,0,COMMERCIAL SUPPLIER
04-07-2022,Environment and Sustainable Transport,Enterprise Flex-E-Rent,Client Transport,1071.42,0,COMMERCIAL SUPPLIER
04-07-2022,Environment and Sustainable Transport,Enterprise Flex-E-Rent,Client Transport,369.58,0,COMMERCIAL SUPPLIER
04-07-2022,Environment and Sustainable Transport,Enterprise Flex-E-Rent,Client Transport,227.36,0,COMMERCIAL SUPPLIER
04-07-2022,Environment and Sustainable Transport,Enterprise Flex-E-Rent,Client Transport,957.98,0,COMMERCIAL SUPPLIER
04-07-2022,Environment and Sustainable Transport,Enterprise Flex-E-Rent,Client Transport,534.5,0,COMMERCIAL SUPPLIER
04-07-2022,Environment and Sustainable Transport,Enterprise Flex-E-Rent,Client Transport,534.5,0,COMMERCIAL SUPPLIER
04-07-2022,Environment and Sustainable Transport,Enterprise Flex-E-Rent,Client Transport,248.26,0,COMMERCIAL SUPPLIER
04-07-2022,Adults & Health,BNTL Care Ltd t/a Summerdale Court,Miscellaneous Expenses,1032,0,NON COMMERCIAL SUPPLIER
04-07-2022,Environment and Sustainable Transport,Ford Motor Company Ltd t/a PartsPlus,Highway Services,30.74,0,COMMERCIAL SUPPLIER
04-07-2022,Environment and Sustainable Transport,Ford Motor Company Ltd t/a PartsPlus,Highway Services,5.68,0,COMMERCIAL SUPPLIER
04-07-2022,Environment and Sustainable Transport,Ford Motor Company Ltd t/a PartsPlus,Highway Services,17.76,0,COMMERCIAL SUPPLIER
04-07-2022,Environment and Sustainable Transport,Ford Motor Company Ltd t/a PartsPlus,Highway Services,8.74,0,COMMERCIAL SUPPLIER
04-07-2022,Environment and Sustainable Transport,Ford Motor Company Ltd t/a PartsPlus,Highway Services,7.75,0,COMMERCIAL SUPPLIER
04-07-2022,Environment and Sustainable Transport,Ford Motor Company Ltd t/a PartsPlus,Highway Services,13.02,0,COMMERCIAL SUPPLIER
04-07-2022,Environment and Sustainable Transport,Ford Motor Company Ltd t/a PartsPlus,Highway Services,5.7,0,COMMERCIAL SUPPLIER
04-07-2022,Environment and Sustainable Transport,Ford Motor Company Ltd t/a PartsPlus,Highway Services,11.92,0,COMMERCIAL SUPPLIER
04-07-2022,Environment and Sustainable Transport,Ford Motor Company Ltd t/a PartsPlus,Highway Services,16.68,0,COMMERCIAL SUPPLIER
04-07-2022,Environment and Sustainable Transport,Ford Motor Company Ltd t/a PartsPlus,Highway Services,82.98,0,COMMERCIAL SUPPLIER
04-07-2022,Environment and Sustainable Transport,Ford Motor Company Ltd t/a PartsPlus,Highway Services,44.02,0,COMMERCIAL SUPPLIER
04-07-2022,Environment and Sustainable Transport,Ford Motor Company Ltd t/a PartsPlus,Highway Services,27.45,0,COMMERCIAL SUPPLIER
04-07-2022,Environment and Sustainable Transport,Ford Motor Company Ltd t/a PartsPlus,Highway Services,30.76,0,COMMERCIAL SUPPLIER
04-07-2022,Environment and Sustainable Transport,Ford Motor Company Ltd t/a PartsPlus,Highway Services,29.24,0,COMMERCIAL SUPPLIER
04-07-2022,Environment and Sustainable Transport,Ford Motor Company Ltd t/a PartsPlus,Highway Services,5.21,0,COMMERCIAL SUPPLIER
04-07-2022,Environment and Sustainable Transport,Ford Motor Company Ltd t/a PartsPlus,Highway Services,15.28,0,COMMERCIAL SUPPLIER
04-07-2022,Environment and Sustainable Transport,Ford Motor Company Ltd t/a PartsPlus,Highway Services,7.39,0,COMMERCIAL SUPPLIER
04-07-2022,Environment and Sustainable Transport,Fountaineers Ltd,Open Spaces Works,1212,0,COMMERCIAL SUPPLIER
04-07-2022,Environment and Sustainable Transport,Blackwater Tree Specialists,Tree Works,3540,0,COMMERCIAL SUPPLIER
04-07-2022,Children and Young People,Missing Piece Training Limited,Payment To Other Local Authorities,300,0,COMMERCIAL SUPPLIER
04-07-2022,Children and Young People,Language Link Plus Ltd,Legal Fees,3381,0,NON COMMERCIAL SUPPLIER
04-07-2022,Housing Revenue Account,F R Roofing Ltd,"Maintenance - Equipment, Furniture And Materials",210,0,CIS
04-07-2022,Housing Revenue Account,F R Roofing Ltd,"Maintenance - Equipment, Furniture And Materials",1300,0,CIS
04-07-2022,Adults & Health,Guy's And St Thomas' Nhs Foundation Trust,Professional Services - General,8317.17,0,VENDOR
04-07-2022,Adults & Health,Guy's And St Thomas' Nhs Foundation Trust,Professional Services - General,10832.46,0,VENDOR
04-07-2022,Children and Young People,The Knowledge Academy Ltd,Staff Development And Training,1495,0,VENDOR
04-07-2022,Housing Revenue Account,John Rowan & Partners,Facilities Management,2153,0,NON COMMERCIAL SUPPLIER
04-07-2022,Environment and Sustainable Transport,Rushton Workwear Ltd,Highway Services,128.75,0,COMMERCIAL SUPPLIER
04-07-2022,Environment and Sustainable Transport,Rushton Workwear Ltd,Highway Services,128.75,0,COMMERCIAL SUPPLIER
04-07-2022,Environment and Sustainable Transport,Rushton Workwear Ltd,Highway Services,515,0,COMMERCIAL SUPPLIER
04-07-2022,Environment and Sustainable Transport,Rushton Workwear Ltd,Highway Services,515,0,COMMERCIAL SUPPLIER
04-07-2022,Environment and Sustainable Transport,Rushton Workwear Ltd,Highway Services,412,0,COMMERCIAL SUPPLIER
04-07-2022,Environment and Sustainable Transport,Rushton Workwear Ltd,Highway Services,154.5,0,COMMERCIAL SUPPLIER
04-07-2022,Environment and Sustainable Transport,Rushton Workwear Ltd,Highway Services,257.5,0,COMMERCIAL SUPPLIER
04-07-2022,Environment and Sustainable Transport,Rushton Workwear Ltd,Highway Services,128.75,0,COMMERCIAL SUPPLIER
04-07-2022,Environment and Sustainable Transport,Rushton Workwear Ltd,Highway Services,128.75,0,COMMERCIAL SUPPLIER
04-07-2022,Environment and Sustainable Transport,Rushton Workwear Ltd,Highway Services,257.5,0,COMMERCIAL SUPPLIER
04-07-2022,Environment and Sustainable Transport,Rushton Workwear Ltd,Highway Services,243.2,0,COMMERCIAL SUPPLIER
04-07-2022,Environment and Sustainable Transport,Rushton Workwear Ltd,Highway Services,243.2,0,COMMERCIAL SUPPLIER
04-07-2022,Environment and Sustainable Transport,Rushton Workwear Ltd,Highway Services,243.2,0,COMMERCIAL SUPPLIER
04-07-2022,Environment and Sustainable Transport,Rushton Workwear Ltd,Highway Services,243.2,0,COMMERCIAL SUPPLIER
04-07-2022,oneSource - Non Shared,Rs Construction & Property Services Ltd,"Maintenance - Equipment, Furniture And Materials",267.27,0,CIS
04-07-2022,oneSource - Non Shared,Rs Construction & Property Services Ltd,"Maintenance - Equipment, Furniture And Materials",267.27,0,CIS
04-07-2022,oneSource - Non Shared,Rs Construction & Property Services Ltd,"Maintenance - Equipment, Furniture And Materials",267.27,0,CIS
04-07-2022,oneSource - Non Shared,Rs Construction & Property Services Ltd,"Maintenance - Equipment, Furniture And Materials",267.27,0,CIS
04-07-2022,oneSource - Non Shared,Rs Construction & Property Services Ltd,"Maintenance - Equipment, Furniture And Materials",267.27,0,CIS
04-07-2022,oneSource - Non Shared,Rs Construction & Property Services Ltd,"Maintenance - Equipment, Furniture And Materials",267.27,0,CIS
04-07-2022,oneSource - Non Shared,Rs Construction & Property Services Ltd,"Maintenance - Equipment, Furniture And Materials",267.27,0,CIS
04-07-2022,oneSource - Non Shared,Rs Construction & Property Services Ltd,"Maintenance - Equipment, Furniture And Materials",267.27,0,CIS
04-07-2022,oneSource - Non Shared,Rs Construction & Property Services Ltd,"Maintenance - Equipment, Furniture And Materials",267.27,0,CIS
04-07-2022,oneSource - Non Shared,Rs Construction & Property Services Ltd,"Maintenance - Equipment, Furniture And Materials",302.83,0,CIS
04-07-2022,oneSource - Non Shared,Rs Construction & Property Services Ltd,"Maintenance - Equipment, Furniture And Materials",302.82,0,CIS
04-07-2022,oneSource - Non Shared,Rs Construction & Property Services Ltd,"Maintenance - Equipment, Furniture And Materials",302.83,0,CIS
04-07-2022,oneSource - Non Shared,Rs Construction & Property Services Ltd,"Maintenance - Equipment, Furniture And Materials",302.82,0,CIS
04-07-2022,oneSource - Non Shared,Rs Construction & Property Services Ltd,"Maintenance - Equipment, Furniture And Materials",302.84,0,CIS
04-07-2022,oneSource - Non Shared,Rs Construction & Property Services Ltd,"Maintenance - Equipment, Furniture And Materials",302.82,0,CIS
04-07-2022,oneSource - Non Shared,Rs Construction & Property Services Ltd,"Maintenance - Equipment, Furniture And Materials",302.82,0,CIS
04-07-2022,oneSource - Non Shared,Rs Construction & Property Services Ltd,"Maintenance - Equipment, Furniture And Materials",302.83,0,CIS
04-07-2022,oneSource - Non Shared,Rs Construction & Property Services Ltd,"Maintenance - Equipment, Furniture And Materials",302.83,0,CIS
04-07-2022,oneSource - Non Shared,Rs Construction & Property Services Ltd,"Maintenance - Equipment, Furniture And Materials",634.24,0,CIS
04-07-2022,oneSource - Non Shared,Rs Construction & Property Services Ltd,"Maintenance - Equipment, Furniture And Materials",634.24,0,CIS
04-07-2022,oneSource - Non Shared,Rs Construction & Property Services Ltd,"Maintenance - Equipment, Furniture And Materials",634.24,0,CIS
04-07-2022,oneSource - Non Shared,Rs Construction & Property Services Ltd,"Maintenance - Equipment, Furniture And Materials",634.24,0,CIS
04-07-2022,Environment and Sustainable Transport,Sparshatt Truck & Van Ltd,Highway Services,267.66,0,COMMERCIAL SUPPLIER
04-07-2022,Environment and Sustainable Transport,Sparshatt Truck & Van Ltd,Highway Services,38.58,0,COMMERCIAL SUPPLIER
04-07-2022,Environment and Sustainable Transport,Sparshatt Truck & Van Ltd,Highway Services,232.88,0,COMMERCIAL SUPPLIER
04-07-2022,Environment and Sustainable Transport,Sparshatt Truck & Van Ltd,Highway Services,0.03,0,COMMERCIAL SUPPLIER
04-07-2022,RMS,Travis Perkins Trading Company Ltd,Building Alterations And Materials,247.68,0,COMMERCIAL SUPPLIER
04-07-2022,RMS,Travis Perkins Trading Company Ltd,Building Alterations And Materials,253.2,0,COMMERCIAL SUPPLIER
04-07-2022,RMS,Travis Perkins Trading Company Ltd,Building Alterations And Materials,120.5,0,COMMERCIAL SUPPLIER
04-07-2022,RMS,Travis Perkins Trading Company Ltd,Building Alterations And Materials,109.8,0,COMMERCIAL SUPPLIER
04-07-2022,RMS,Travis Perkins Trading Company Ltd,Building Alterations And Materials,111,0,COMMERCIAL SUPPLIER
04-07-2022,RMS,Travis Perkins Trading Company Ltd,Building Alterations And Materials,175,0,COMMERCIAL SUPPLIER
04-07-2022,RMS,Travis Perkins Trading Company Ltd,Building Alterations And Materials,135,0,COMMERCIAL SUPPLIER
04-07-2022,RMS,Travis Perkins Trading Company Ltd,Building Alterations And Materials,133.8,0,COMMERCIAL SUPPLIER
04-07-2022,RMS,Travis Perkins Trading Company Ltd,Building Alterations And Materials,78,0,COMMERCIAL SUPPLIER
04-07-2022,RMS,Travis Perkins Trading Company Ltd,Building Alterations And Materials,126,0,COMMERCIAL SUPPLIER
04-07-2022,RMS,Travis Perkins Trading Company Ltd,Building Alterations And Materials,112,0,COMMERCIAL SUPPLIER
04-07-2022,RMS,Travis Perkins Trading Company Ltd,Building Alterations And Materials,38.4,0,COMMERCIAL SUPPLIER
04-07-2022,RMS,Travis Perkins Trading Company Ltd,Building Alterations And Materials,320,0,COMMERCIAL SUPPLIER
04-07-2022,RMS,Travis Perkins Trading Company Ltd,Building Alterations And Materials,154.05,0,COMMERCIAL SUPPLIER
04-07-2022,RMS,Travis Perkins Trading Company Ltd,Building Alterations And Materials,69.5,0,COMMERCIAL SUPPLIER
04-07-2022,RMS,Travis Perkins Trading Company Ltd,Building Alterations And Materials,1528.8,0,COMMERCIAL SUPPLIER
04-07-2022,RMS,Travis Perkins Trading Company Ltd,Building Alterations And Materials,268.25,0,COMMERCIAL SUPPLIER
04-07-2022,RMS,Travis Perkins Trading Company Ltd,Building Alterations And Materials,432.8,0,COMMERCIAL SUPPLIER
04-07-2022,RMS,Travis Perkins Trading Company Ltd,Building Alterations And Materials,450,0,COMMERCIAL SUPPLIER
04-07-2022,RMS,Travis Perkins Trading Company Ltd,Building Alterations And Materials,361,0,COMMERCIAL SUPPLIER
04-07-2022,RMS,Travis Perkins Trading Company Ltd,Building Alterations And Materials,162,0,COMMERCIAL SUPPLIER
04-07-2022,RMS,Travis Perkins Trading Company Ltd,Building Alterations And Materials,24,0,COMMERCIAL SUPPLIER
04-07-2022,RMS,Travis Perkins Trading Company Ltd,Building Alterations And Materials,94,0,COMMERCIAL SUPPLIER
04-07-2022,RMS,Travis Perkins Trading Company Ltd,Building Alterations And Materials,54,0,COMMERCIAL SUPPLIER
04-07-2022,RMS,Travis Perkins Trading Company Ltd,Building Alterations And Materials,100,0,COMMERCIAL SUPPLIER
04-07-2022,RMS,Travis Perkins Trading Company Ltd,Building Alterations And Materials,54,0,COMMERCIAL SUPPLIER
04-07-2022,RMS,Travis Perkins Trading Company Ltd,Building Alterations And Materials,55,0,COMMERCIAL SUPPLIER
04-07-2022,RMS,Travis Perkins Trading Company Ltd,Building Alterations And Materials,44,0,COMMERCIAL SUPPLIER
04-07-2022,RMS,Travis Perkins Trading Company Ltd,Building Alterations And Materials,720,0,COMMERCIAL SUPPLIER
04-07-2022,RMS,Travis Perkins Trading Company Ltd,Building Alterations And Materials,309.36,0,COMMERCIAL SUPPLIER
04-07-2022,RMS,Travis Perkins Trading Company Ltd,Building Alterations And Materials,411,0,COMMERCIAL SUPPLIER
04-07-2022,RMS,Travis Perkins Trading Company Ltd,Building Alterations And Materials,460,0,COMMERCIAL SUPPLIER
04-07-2022,RMS,Travis Perkins Trading Company Ltd,Building Alterations And Materials,340,0,COMMERCIAL SUPPLIER
04-07-2022,RMS,Travis Perkins Trading Company Ltd,Building Alterations And Materials,460,0,COMMERCIAL SUPPLIER
04-07-2022,RMS,Travis Perkins Trading Company Ltd,Building Alterations And Materials,1474.2,0,COMMERCIAL SUPPLIER
04-07-2022,RMS,Travis Perkins Trading Company Ltd,Building Alterations And Materials,213.5,0,COMMERCIAL SUPPLIER
04-07-2022,RMS,Travis Perkins Trading Company Ltd,Building Alterations And Materials,221.5,0,COMMERCIAL SUPPLIER
04-07-2022,RMS,Travis Perkins Trading Company Ltd,Building Alterations And Materials,255.5,0,COMMERCIAL SUPPLIER
04-07-2022,RMS,Travis Perkins Trading Company Ltd,Building Alterations And Materials,210.5,0,COMMERCIAL SUPPLIER
04-07-2022,RMS,Travis Perkins Trading Company Ltd,Building Alterations And Materials,78,0,COMMERCIAL SUPPLIER
04-07-2022,RMS,Travis Perkins Trading Company Ltd,Building Alterations And Materials,194,0,COMMERCIAL SUPPLIER
04-07-2022,RMS,Travis Perkins Trading Company Ltd,Building Alterations And Materials,280,0,COMMERCIAL SUPPLIER
04-07-2022,RMS,Travis Perkins Trading Company Ltd,Building Alterations And Materials,265.17,0,COMMERCIAL SUPPLIER
04-07-2022,RMS,Travis Perkins Trading Company Ltd,Building Alterations And Materials,53.34,0,COMMERCIAL SUPPLIER
04-07-2022,RMS,Travis Perkins Trading Company Ltd,Building Alterations And Materials,222.76,0,COMMERCIAL SUPPLIER
04-07-2022,RMS,Travis Perkins Trading Company Ltd,Building Alterations And Materials,1902,0,COMMERCIAL SUPPLIER
04-07-2022,RMS,Travis Perkins Trading Company Ltd,Building Alterations And Materials,1888,0,COMMERCIAL SUPPLIER
04-07-2022,RMS,Travis Perkins Trading Company Ltd,Building Alterations And Materials,499.4,0,COMMERCIAL SUPPLIER
04-07-2022,RMS,Travis Perkins Trading Company Ltd,Building Alterations And Materials,853.16,0,COMMERCIAL SUPPLIER
04-07-2022,RMS,Travis Perkins Trading Company Ltd,Building Alterations And Materials,1431.36,0,COMMERCIAL SUPPLIER
04-07-2022,RMS,Travis Perkins Trading Company Ltd,Building Alterations And Materials,307.5,0,COMMERCIAL SUPPLIER
04-07-2022,RMS,Travis Perkins Trading Company Ltd,Building Alterations And Materials,206,0,COMMERCIAL SUPPLIER
04-07-2022,RMS,Travis Perkins Trading Company Ltd,Building Alterations And Materials,300,0,COMMERCIAL SUPPLIER
04-07-2022,RMS,Travis Perkins Trading Company Ltd,Building Alterations And Materials,104.5,0,COMMERCIAL SUPPLIER
04-07-2022,RMS,Travis Perkins Trading Company Ltd,Building Alterations And Materials,305.5,0,COMMERCIAL SUPPLIER
04-07-2022,RMS,Travis Perkins Trading Company Ltd,Building Alterations And Materials,449.5,0,COMMERCIAL SUPPLIER
04-07-2022,RMS,Travis Perkins Trading Company Ltd,Building Alterations And Materials,278.4,0,COMMERCIAL SUPPLIER
04-07-2022,RMS,Travis Perkins Trading Company Ltd,Building Alterations And Materials,809.04,0,COMMERCIAL SUPPLIER
04-07-2022,RMS,Travis Perkins Trading Company Ltd,Building Alterations And Materials,1807.6,0,COMMERCIAL SUPPLIER
04-07-2022,RMS,Travis Perkins Trading Company Ltd,Building Alterations And Materials,964.8,0,COMMERCIAL SUPPLIER
04-07-2022,RMS,Travis Perkins Trading Company Ltd,Building Alterations And Materials,333.4,0,COMMERCIAL SUPPLIER
04-07-2022,Environment and Sustainable Transport,Harris Commercial Repairs Ltd,Highway Services,36.48,0,VENDOR
04-07-2022,Environment and Sustainable Transport,Harris Commercial Repairs Ltd,Highway Services,36.48,0,VENDOR
04-07-2022,Environment and Sustainable Transport,Harris Commercial Repairs Ltd,Highway Services,163.53,0,VENDOR
04-07-2022,Environment and Sustainable Transport,Harris Commercial Repairs Ltd,Highway Services,65.42,0,VENDOR
04-07-2022,Environment and Sustainable Transport,Harris Commercial Repairs Ltd,Highway Services,198.26,0,VENDOR
04-07-2022,Environment and Sustainable Transport,Harris Commercial Repairs Ltd,Highway Services,12.95,0,VENDOR
04-07-2022,Environment and Sustainable Transport,Harris Commercial Repairs Ltd,Highway Services,11.92,0,VENDOR
04-07-2022,Environment and Sustainable Transport,Harris Commercial Repairs Ltd,Highway Services,16.9,0,VENDOR
04-07-2022,Environment and Sustainable Transport,Harris Commercial Repairs Ltd,Highway Services,22.81,0,VENDOR
04-07-2022,Environment and Sustainable Transport,Harris Commercial Repairs Ltd,Highway Services,193.18,0,VENDOR
04-07-2022,Environment and Sustainable Transport,Harris Commercial Repairs Ltd,Highway Services,13.1,0,VENDOR
04-07-2022,Environment and Sustainable Transport,Harris Commercial Repairs Ltd,Highway Services,81.89,0,VENDOR
04-07-2022,Environment and Sustainable Transport,Harris Commercial Repairs Ltd,Highway Services,198.26,0,VENDOR
04-07-2022,Environment and Sustainable Transport,Harris Commercial Repairs Ltd,Highway Services,169.31,0,VENDOR
04-07-2022,Marketing,Ellwood and Atfield Ltd,Staff Recruitment Costs,9600,0,COMMERCIAL SUPPLIER
04-07-2022,oneSource,Royal Mail Group Plc,Postage And Courier Services,174.24,0,COMMERCIAL SUPPLIER
04-07-2022,oneSource,Royal Mail Group Plc,Postage And Courier Services,27513.32,0,COMMERCIAL SUPPLIER
04-07-2022,RMS,Benchmarx Kitchens and Joinery,Building Alterations And Materials,1231.65,0,COMMERCIAL SUPPLIER
04-07-2022,oneSource,FDS Solutions Ltd,Printing,529.92,0,VENDOR
04-07-2022,Adults & Health,The Regard Partnership Ltd,Daycare - Private Contractors Payment,198.04,0,NON COMMERCIAL SUPPLIER
04-07-2022,Adults & Health,The Regard Partnership Ltd,Daycare - Private Contractors Payment,198.04,0,NON COMMERCIAL SUPPLIER
04-07-2022,Adults & Health,The Regard Partnership Ltd,Daycare - Private Contractors Payment,197.88,0,NON COMMERCIAL SUPPLIER
04-07-2022,Adults & Health,The Regard Partnership Ltd,Daycare - Private Contractors Payment,198.04,0,NON COMMERCIAL SUPPLIER
04-07-2022,Adults & Health,The Regard Partnership Ltd,Daycare - Private Contractors Payment,448,0,NON COMMERCIAL SUPPLIER
04-07-2022,Adults & Health,The Regard Partnership Ltd,Daycare - Private Contractors Payment,448,0,NON COMMERCIAL SUPPLIER
04-07-2022,Adults & Health,The Regard Partnership Ltd,Daycare - Private Contractors Payment,448,0,NON COMMERCIAL SUPPLIER
04-07-2022,Adults & Health,The Regard Partnership Ltd,Daycare - Private Contractors Payment,448,0,NON COMMERCIAL SUPPLIER
04-07-2022,Adults & Health,The Regard Partnership Ltd,Daycare - Private Contractors Payment,194.88,0,NON COMMERCIAL SUPPLIER
04-07-2022,Adults & Health,The Regard Partnership Ltd,Daycare - Private Contractors Payment,176.32,0,NON COMMERCIAL SUPPLIER
04-07-2022,Adults & Health,The Regard Partnership Ltd,Daycare - Private Contractors Payment,194.88,0,NON COMMERCIAL SUPPLIER
04-07-2022,Adults & Health,The Regard Partnership Ltd,Daycare - Private Contractors Payment,194.88,0,NON COMMERCIAL SUPPLIER
04-07-2022,Adults & Health,The Regard Partnership Ltd,Daycare - Private Contractors Payment,194.88,0,NON COMMERCIAL SUPPLIER
04-07-2022,Adults & Health,The Regard Partnership Ltd,Daycare - Private Contractors Payment,278.4,0,NON COMMERCIAL SUPPLIER
04-07-2022,Adults & Health,The Regard Partnership Ltd,Daycare - Private Contractors Payment,278.4,0,NON COMMERCIAL SUPPLIER
04-07-2022,Adults & Health,The Regard Partnership Ltd,Daycare - Private Contractors Payment,278.4,0,NON COMMERCIAL SUPPLIER
04-07-2022,Adults & Health,The Regard Partnership Ltd,Daycare - Private Contractors Payment,278.4,0,NON COMMERCIAL SUPPLIER
04-07-2022,Adults & Health,The Regard Partnership Ltd,Daycare - Private Contractors Payment,278.4,0,NON COMMERCIAL SUPPLIER
04-07-2022,oneSource - Non Shared,British Gas,Electricity,359.42,0,COMMERCIAL SUPPLIER
04-07-2022,Adults & Health,Aevus Ltd t/a Home Instead,Home Care - Private Contractors Payment,256.5,0,INDIVIDUALS
04-07-2022,Adults & Health,Aevus Ltd t/a Home Instead,Home Care - Private Contractors Payment,256.5,0,INDIVIDUALS
04-07-2022,Adults & Health,Aevus Ltd t/a Home Instead,Home Care - Private Contractors Payment,541.5,0,INDIVIDUALS
04-07-2022,Adults & Health,Aevus Ltd t/a Home Instead,Home Care - Private Contractors Payment,114,0,INDIVIDUALS
04-07-2022,Adults & Health,Aevus Ltd t/a Home Instead,Home Care - Private Contractors Payment,313.5,0,INDIVIDUALS
04-07-2022,Adults & Health,Aevus Ltd t/a Home Instead,Home Care - Private Contractors Payment,85.5,0,INDIVIDUALS
04-07-2022,Adults & Health,Aevus Ltd t/a Home Instead,Home Care - Private Contractors Payment,57,0,INDIVIDUALS
04-07-2022,Adults & Health,Aevus Ltd t/a Home Instead,Home Care - Private Contractors Payment,456,0,INDIVIDUALS
04-07-2022,Adults & Health,Aevus Ltd t/a Home Instead,Home Care - Private Contractors Payment,142.5,0,INDIVIDUALS
04-07-2022,Adults & Health,Aevus Ltd t/a Home Instead,Home Care - Private Contractors Payment,513,0,INDIVIDUALS
04-07-2022,Adults & Health,Aevus Ltd t/a Home Instead,Home Care - Private Contractors Payment,171,0,INDIVIDUALS
04-07-2022,Adults & Health,Aevus Ltd t/a Home Instead,Home Care - Private Contractors Payment,313.5,0,INDIVIDUALS
04-07-2022,Adults & Health,Aevus Ltd t/a Home Instead,Home Care - Private Contractors Payment,-427.5,0,INDIVIDUALS
04-07-2022,Adults & Health,Aevus Ltd t/a Home Instead,Home Care - Private Contractors Payment,741,0,INDIVIDUALS
04-07-2022,Adults & Health,Highland Care Uk Ltd,Home Care - Private Contractors Payment,670.6,0,VENDOR
04-07-2022,Adults & Health,Highland Care Uk Ltd,Daycare - Private Contractors Payment,57.48,0,VENDOR
04-07-2022,Adults & Health,Highland Care Uk Ltd,Home Care - Private Contractors Payment,670.6,0,VENDOR
04-07-2022,Adults & Health,Highland Care Uk Ltd,Daycare - Private Contractors Payment,57.48,0,VENDOR
04-07-2022,Adults & Health,Highland Care Uk Ltd,Daycare - Private Contractors Payment,57.48,0,VENDOR
04-07-2022,Adults & Health,Highland Care Uk Ltd,Home Care - Private Contractors Payment,670.6,0,VENDOR
04-07-2022,Adults & Health,Highland Care Uk Ltd,Home Care - Private Contractors Payment,670.6,0,VENDOR
04-07-2022,Adults & Health,Highland Care Uk Ltd,Daycare - Private Contractors Payment,57.48,0,VENDOR
04-07-2022,Adults & Health,Highland Care Uk Ltd,Home Care - Private Contractors Payment,268.24,0,VENDOR
04-07-2022,Adults & Health,Highland Care Uk Ltd,Home Care - Private Contractors Payment,268.24,0,VENDOR
04-07-2022,Adults & Health,Highland Care Uk Ltd,Home Care - Private Contractors Payment,268.24,0,VENDOR
04-07-2022,Adults & Health,Highland Care Uk Ltd,Home Care - Private Contractors Payment,268.24,0,VENDOR
04-07-2022,Adults & Health,Highland Care Uk Ltd,Daycare - Private Contractors Payment,57.48,0,VENDOR
04-07-2022,Adults & Health,Highland Care Uk Ltd,Daycare - Private Contractors Payment,57.48,0,VENDOR
04-07-2022,Adults & Health,Highland Care Uk Ltd,Home Care - Private Contractors Payment,134.12,0,VENDOR
04-07-2022,Adults & Health,Highland Care Uk Ltd,Home Care - Private Contractors Payment,134.12,0,VENDOR
04-07-2022,Adults & Health,Highland Care Uk Ltd,Home Care - Private Contractors Payment,134.12,0,VENDOR
04-07-2022,Adults & Health,Highland Care Uk Ltd,Daycare - Private Contractors Payment,47.9,0,VENDOR
04-07-2022,Adults & Health,Highland Care Uk Ltd,Home Care - Private Contractors Payment,134.12,0,VENDOR
04-07-2022,Adults & Health,Highland Care Uk Ltd,Daycare - Private Contractors Payment,57.48,0,VENDOR
04-07-2022,Adults & Health,Highland Care Uk Ltd,Home Care - Private Contractors Payment,167.65,0,VENDOR
04-07-2022,Adults & Health,Highland Care Uk Ltd,Home Care - Private Contractors Payment,167.65,0,VENDOR
04-07-2022,Adults & Health,Highland Care Uk Ltd,Home Care - Private Contractors Payment,167.65,0,VENDOR
04-07-2022,Adults & Health,Highland Care Uk Ltd,Home Care - Private Contractors Payment,167.65,0,VENDOR
04-07-2022,Adults & Health,Highland Care Uk Ltd,Home Care - Private Contractors Payment,100.59,0,VENDOR
04-07-2022,Adults & Health,Highland Care Uk Ltd,Home Care - Private Contractors Payment,100.59,0,VENDOR
04-07-2022,Adults & Health,Highland Care Uk Ltd,Home Care - Private Contractors Payment,100.59,0,VENDOR
04-07-2022,Adults & Health,Highland Care Uk Ltd,Home Care - Private Contractors Payment,100.59,0,VENDOR
04-07-2022,Adults & Health,Subco Trust,Daycare - Private Contractors Payment,65,0,VENDOR
04-07-2022,Adults & Health,Subco Trust,Payments To Voluntary Sector,5,0,VENDOR
04-07-2022,Adults & Health,Subco Trust,Payments To Voluntary Sector,5,0,VENDOR
04-07-2022,Adults & Health,Subco Trust,Daycare - Private Contractors Payment,65,0,VENDOR
04-07-2022,Adults & Health,Subco Trust,Daycare - Private Contractors Payment,65,0,VENDOR
04-07-2022,Adults & Health,Subco Trust,Payments To Voluntary Sector,5,0,VENDOR
04-07-2022,Adults & Health,Subco Trust,Daycare - Private Contractors Payment,65,0,VENDOR
04-07-2022,Adults & Health,Subco Trust,Payments To Voluntary Sector,5,0,VENDOR
04-07-2022,Adults & Health,Highland Care Uk Ltd,Home Care - Private Contractors Payment,182.02,0,VENDOR
04-07-2022,Adults & Health,Highland Care Uk Ltd,Daycare - Private Contractors Payment,134.12,0,VENDOR
04-07-2022,Adults & Health,Highland Care Uk Ltd,Home Care - Private Contractors Payment,38.32,0,VENDOR
04-07-2022,Adults & Health,Highland Care Uk Ltd,Home Care - Private Contractors Payment,201.18,0,VENDOR
04-07-2022,Adults & Health,Highland Care Uk Ltd,Home Care - Private Contractors Payment,38.32,0,VENDOR
04-07-2022,Adults & Health,Highland Care Uk Ltd,Home Care - Private Contractors Payment,201.18,0,VENDOR
04-07-2022,Adults & Health,Highland Care Uk Ltd,Daycare - Private Contractors Payment,38.32,0,VENDOR
04-07-2022,Adults & Health,Highland Care Uk Ltd,Home Care - Private Contractors Payment,201.18,0,VENDOR
04-07-2022,Adults & Health,Highland Care Uk Ltd,Daycare - Private Contractors Payment,38.32,0,VENDOR
04-07-2022,Adults & Health,Highland Care Uk Ltd,Home Care - Private Contractors Payment,38.32,0,VENDOR
04-07-2022,Adults & Health,Subco Trust,Daycare - Private Contractors Payment,150,0,VENDOR
04-07-2022,Adults & Health,Subco Trust,Payments To Voluntary Sector,15,0,VENDOR
04-07-2022,Adults & Health,Subco Trust,Payments To Voluntary Sector,15,0,VENDOR
04-07-2022,Adults & Health,Subco Trust,Daycare - Private Contractors Payment,150,0,VENDOR
04-07-2022,Adults & Health,Subco Trust,Daycare - Private Contractors Payment,150,0,VENDOR
04-07-2022,Adults & Health,Subco Trust,Payments To Voluntary Sector,15,0,VENDOR
04-07-2022,Adults & Health,Subco Trust,Daycare - Private Contractors Payment,150,0,VENDOR
04-07-2022,Adults & Health,Subco Trust,Payments To Voluntary Sector,15,0,VENDOR
04-07-2022,Adults & Health,Highland Care Uk Ltd,Home Care - Private Contractors Payment,234.71,0,VENDOR
04-07-2022,Adults & Health,Highland Care Uk Ltd,Home Care - Private Contractors Payment,234.71,0,VENDOR
04-07-2022,Adults & Health,Highland Care Uk Ltd,Home Care - Private Contractors Payment,234.71,0,VENDOR
04-07-2022,Adults & Health,Highland Care Uk Ltd,Home Care - Private Contractors Payment,234.71,0,VENDOR
04-07-2022,Adults & Health,Highland Care Uk Ltd,Home Care - Private Contractors Payment,86.22,0,VENDOR
04-07-2022,Adults & Health,Highland Care Uk Ltd,Home Care - Private Contractors Payment,124.54,0,VENDOR
04-07-2022,Adults & Health,Highland Care Uk Ltd,Home Care - Private Contractors Payment,95.8,0,VENDOR
04-07-2022,Adults & Health,Highland Care Uk Ltd,Home Care - Private Contractors Payment,134.12,0,VENDOR
04-07-2022,Adults & Health,Highland Care Uk Ltd,Home Care - Private Contractors Payment,86.22,0,VENDOR
04-07-2022,Adults & Health,Highland Care Uk Ltd,Home Care - Private Contractors Payment,86.22,0,VENDOR
04-07-2022,Adults & Health,Highland Care Uk Ltd,Home Care - Private Contractors Payment,134.12,0,VENDOR
04-07-2022,Adults & Health,Highland Care Uk Ltd,Home Care - Private Contractors Payment,134.12,0,VENDOR
04-07-2022,Adults & Health,Highland Care Uk Ltd,Home Care - Private Contractors Payment,201.18,0,VENDOR
04-07-2022,Adults & Health,Highland Care Uk Ltd,Home Care - Private Contractors Payment,201.18,0,VENDOR
04-07-2022,Adults & Health,Highland Care Uk Ltd,Home Care - Private Contractors Payment,201.18,0,VENDOR
04-07-2022,Adults & Health,Highland Care Uk Ltd,Home Care - Private Contractors Payment,201.18,0,VENDOR
04-07-2022,Adults & Health,Highland Care Uk Ltd,Home Care - Private Contractors Payment,397.57,0,VENDOR
04-07-2022,Adults & Health,Highland Care Uk Ltd,Home Care - Private Contractors Payment,435.89,0,VENDOR
04-07-2022,Adults & Health,Highland Care Uk Ltd,Home Care - Private Contractors Payment,435.89,0,VENDOR
04-07-2022,Adults & Health,Highland Care Uk Ltd,Home Care - Private Contractors Payment,435.89,0,VENDOR
04-07-2022,Adults & Health,Highland Care Uk Ltd,Daycare - Private Contractors Payment,114.96,0,VENDOR
04-07-2022,Adults & Health,Highland Care Uk Ltd,Home Care - Private Contractors Payment,19.16,0,VENDOR
04-07-2022,Adults & Health,Highland Care Uk Ltd,Daycare - Private Contractors Payment,114.96,0,VENDOR
04-07-2022,Adults & Health,Highland Care Uk Ltd,Daycare - Private Contractors Payment,114.96,0,VENDOR
04-07-2022,Adults & Health,Highland Care Uk Ltd,Home Care - Private Contractors Payment,19.16,0,VENDOR
04-07-2022,Adults & Health,Highland Care Uk Ltd,Daycare - Private Contractors Payment,114.96,0,VENDOR
04-07-2022,Adults & Health,Highland Care Uk Ltd,Home Care - Private Contractors Payment,19.16,0,VENDOR
04-07-2022,Adults & Health,Highland Care Uk Ltd,Home Care - Private Contractors Payment,570.01,0,VENDOR
04-07-2022,Adults & Health,Highland Care Uk Ltd,Home Care - Private Contractors Payment,570.01,0,VENDOR
04-07-2022,Adults & Health,Highland Care Uk Ltd,Home Care - Private Contractors Payment,570.01,0,VENDOR
04-07-2022,Adults & Health,Highland Care Uk Ltd,Home Care - Private Contractors Payment,570.01,0,VENDOR
04-07-2022,Adults & Health,Highland Care Uk Ltd,Home Care - Private Contractors Payment,129.33,0,VENDOR
04-07-2022,Adults & Health,Highland Care Uk Ltd,Home Care - Private Contractors Payment,167.65,0,VENDOR
04-07-2022,Adults & Health,Highland Care Uk Ltd,Home Care - Private Contractors Payment,167.65,0,VENDOR
04-07-2022,Adults & Health,Highland Care Uk Ltd,Home Care - Private Contractors Payment,234.71,0,VENDOR
04-07-2022,Adults & Health,Highland Care Uk Ltd,Home Care - Private Contractors Payment,234.71,0,VENDOR
04-07-2022,Adults & Health,Highland Care Uk Ltd,Home Care - Private Contractors Payment,167.65,0,VENDOR
04-07-2022,Adults & Health,Highland Care Uk Ltd,Home Care - Private Contractors Payment,167.65,0,VENDOR
04-07-2022,Adults & Health,Highland Care Uk Ltd,Home Care - Private Contractors Payment,167.65,0,VENDOR
04-07-2022,Adults & Health,Highland Care Uk Ltd,Home Care - Private Contractors Payment,167.65,0,VENDOR
04-07-2022,Adults & Health,Highland Care Uk Ltd,Home Care - Private Contractors Payment,225.13,0,VENDOR
04-07-2022,Adults & Health,Highland Care Uk Ltd,Home Care - Private Contractors Payment,301.77,0,VENDOR
04-07-2022,Adults & Health,Highland Care Uk Ltd,Home Care - Private Contractors Payment,301.77,0,VENDOR
04-07-2022,Adults & Health,Highland Care Uk Ltd,Home Care - Private Contractors Payment,301.77,0,VENDOR
04-07-2022,Housing Revenue Account,Bond Turner,Legal Fees,1000,0,INDIVIDUALS
04-07-2022,Adults & Health,Subco Trust,Daycare - Private Contractors Payment,120,0,VENDOR
04-07-2022,Adults & Health,Subco Trust,Payments To Voluntary Sector,10,0,VENDOR
04-07-2022,Adults & Health,Subco Trust,Daycare - Private Contractors Payment,120,0,VENDOR
04-07-2022,Adults & Health,Subco Trust,Payments To Voluntary Sector,10,0,VENDOR
04-07-2022,Adults & Health,Subco Trust,Daycare - Private Contractors Payment,120,0,VENDOR
04-07-2022,Adults & Health,Subco Trust,Payments To Voluntary Sector,10,0,VENDOR
04-07-2022,Adults & Health,Subco Trust,Payments To Voluntary Sector,10,0,VENDOR
04-07-2022,Adults & Health,Subco Trust,Daycare - Private Contractors Payment,120,0,VENDOR
04-07-2022,Adults & Health,Subco Trust,Payments To Voluntary Sector,10,0,VENDOR
04-07-2022,Adults & Health,Subco Trust,Payments To Voluntary Sector,10,0,VENDOR
04-07-2022,Adults & Health,Subco Trust,Daycare - Private Contractors Payment,120,0,VENDOR
04-07-2022,Adults & Health,Subco Trust,Daycare - Private Contractors Payment,120,0,VENDOR
04-07-2022,Adults & Health,Subco Trust,Daycare - Private Contractors Payment,120,0,VENDOR
04-07-2022,Adults & Health,Subco Trust,Payments To Voluntary Sector,10,0,VENDOR
04-07-2022,Adults & Health,Subco Trust,Payments To Voluntary Sector,10,0,VENDOR
04-07-2022,Adults & Health,Subco Trust,Daycare - Private Contractors Payment,120,0,VENDOR
04-07-2022,Adults & Health,Highland Care Uk Ltd,Home Care - Private Contractors Payment,134.12,0,VENDOR
04-07-2022,Adults & Health,Highland Care Uk Ltd,Home Care - Private Contractors Payment,134.12,0,VENDOR
04-07-2022,Adults & Health,Highland Care Uk Ltd,Home Care - Private Contractors Payment,134.12,0,VENDOR
04-07-2022,Adults & Health,Highland Care Uk Ltd,Home Care - Private Contractors Payment,134.12,0,VENDOR
04-07-2022,Adults & Health,Highland Care Uk Ltd,Home Care - Private Contractors Payment,301.77,0,VENDOR
04-07-2022,Adults & Health,Highland Care Uk Ltd,Home Care - Private Contractors Payment,301.77,0,VENDOR
04-07-2022,Adults & Health,Highland Care Uk Ltd,Home Care - Private Contractors Payment,301.77,0,VENDOR
04-07-2022,Adults & Health,Highland Care Uk Ltd,Home Care - Private Contractors Payment,301.77,0,VENDOR
04-07-2022,Adults & Health,Highland Care Uk Ltd,Home Care - Private Contractors Payment,753.48,0,VENDOR
04-07-2022,Adults & Health,Highland Care Uk Ltd,Home Care - Private Contractors Payment,556.92,0,VENDOR
04-07-2022,Adults & Health,Highland Care Uk Ltd,Home Care - Private Contractors Payment,556.92,0,VENDOR
04-07-2022,Adults & Health,Highland Care Uk Ltd,Home Care - Private Contractors Payment,556.92,0,VENDOR
04-07-2022,Adults & Health,Highland Care Uk Ltd,Home Care - Private Contractors Payment,556.92,0,VENDOR
04-07-2022,Adults & Health,Highland Care Uk Ltd,Home Care - Private Contractors Payment,570.01,0,VENDOR
04-07-2022,Adults & Health,Highland Care Uk Ltd,Home Care - Private Contractors Payment,570.01,0,VENDOR
04-07-2022,Adults & Health,Highland Care Uk Ltd,Home Care - Private Contractors Payment,556.92,0,VENDOR
04-07-2022,Adults & Health,Highland Care Uk Ltd,Home Care - Private Contractors Payment,562.53,0,VENDOR
04-07-2022,Adults & Health,Highland Care Uk Ltd,Home Care - Private Contractors Payment,570.01,0,VENDOR
04-07-2022,Adults & Health,Highland Care Uk Ltd,Home Care - Private Contractors Payment,570.01,0,VENDOR
04-07-2022,Adults & Health,Highland Care Uk Ltd,Home Care - Private Contractors Payment,570.01,0,VENDOR
04-07-2022,Adults & Health,Highland Care Uk Ltd,Home Care - Private Contractors Payment,570.01,0,VENDOR
04-07-2022,Adults & Health,Highland Care Uk Ltd,Home Care - Private Contractors Payment,570.01,0,VENDOR
04-07-2022,Adults & Health,Highland Care Uk Ltd,Home Care - Private Contractors Payment,570.01,0,VENDOR
04-07-2022,Adults & Health,Highland Care Uk Ltd,Home Care - Private Contractors Payment,570.01,0,VENDOR
04-07-2022,Adults & Health,Highland Care Uk Ltd,Home Care - Private Contractors Payment,570.01,0,VENDOR
04-07-2022,Adults & Health,Highland Care Uk Ltd,Home Care - Private Contractors Payment,134.12,0,VENDOR
04-07-2022,Adults & Health,Highland Care Uk Ltd,Home Care - Private Contractors Payment,402.36,0,VENDOR
04-07-2022,Adults & Health,Highland Care Uk Ltd,Home Care - Private Contractors Payment,402.36,0,VENDOR
04-07-2022,Adults & Health,Highland Care Uk Ltd,Home Care - Private Contractors Payment,402.36,0,VENDOR
04-07-2022,Adults & Health,Highland Care Uk Ltd,Daycare - Private Contractors Payment,19.16,0,VENDOR
04-07-2022,Adults & Health,Highland Care Uk Ltd,Home Care - Private Contractors Payment,201.18,0,VENDOR
04-07-2022,Adults & Health,Highland Care Uk Ltd,Daycare - Private Contractors Payment,-28.74,0,VENDOR
04-07-2022,Adults & Health,Highland Care Uk Ltd,Daycare - Private Contractors Payment,19.16,0,VENDOR
04-07-2022,Adults & Health,Highland Care Uk Ltd,Home Care - Private Contractors Payment,201.18,0,VENDOR
04-07-2022,Adults & Health,Highland Care Uk Ltd,Home Care - Private Contractors Payment,201.18,0,VENDOR
04-07-2022,Adults & Health,Highland Care Uk Ltd,Home Care - Private Contractors Payment,201.18,0,VENDOR
04-07-2022,Adults & Health,Highland Care Uk Ltd,Daycare - Private Contractors Payment,19.16,0,VENDOR
04-07-2022,Adults & Health,Highland Care Uk Ltd,Daycare - Private Contractors Payment,114.96,0,VENDOR
04-07-2022,Adults & Health,Highland Care Uk Ltd,Home Care - Private Contractors Payment,670.6,0,VENDOR
04-07-2022,Adults & Health,Highland Care Uk Ltd,Daycare - Private Contractors Payment,114.96,0,VENDOR
04-07-2022,Adults & Health,Highland Care Uk Ltd,Daycare - Private Contractors Payment,114.96,0,VENDOR
04-07-2022,Adults & Health,Highland Care Uk Ltd,Home Care - Private Contractors Payment,670.6,0,VENDOR
04-07-2022,Adults & Health,Highland Care Uk Ltd,Home Care - Private Contractors Payment,364.04,0,VENDOR
04-07-2022,Adults & Health,Highland Care Uk Ltd,Daycare - Private Contractors Payment,114.96,0,VENDOR
04-07-2022,Adults & Health,Highland Care Uk Ltd,Home Care - Private Contractors Payment,670.6,0,VENDOR
04-07-2022,Environment and Sustainable Transport,Alliance Automotive UK CV Ltd t/a C V Components,Highway Services,26.54,0,COMMERCIAL SUPPLIER
04-07-2022,Environment and Sustainable Transport,Alliance Automotive UK CV Ltd t/a C V Components,Highway Services,206.88,0,COMMERCIAL SUPPLIER
04-07-2022,Adults & Health,Highland Care Uk Ltd,Home Care - Private Contractors Payment,603.54,0,VENDOR
04-07-2022,Adults & Health,Highland Care Uk Ltd,Home Care - Private Contractors Payment,603.54,0,VENDOR
04-07-2022,Adults & Health,Highland Care Uk Ltd,Home Care - Private Contractors Payment,603.54,0,VENDOR
04-07-2022,Adults & Health,Highland Care Uk Ltd,Home Care - Private Contractors Payment,603.54,0,VENDOR
04-07-2022,RMS,Beacon Scaffolding Ltd,Private Contractors Payment - Other,835.92,0,CIS
04-07-2022,RMS,Beacon Scaffolding Ltd,Private Contractors Payment - Other,1671.84,0,CIS
04-07-2022,RMS,Beacon Scaffolding Ltd,Private Contractors Payment - Other,1671.84,0,CIS
04-07-2022,RMS,Beacon Scaffolding Ltd,Private Contractors Payment - Other,0,0,CIS
04-07-2022,RMS,Beacon Scaffolding Ltd,Private Contractors Payment - Other,1193.04,0,CIS
04-07-2022,RMS,Beacon Scaffolding Ltd,Private Contractors Payment - Other,743.04,0,CIS
04-07-2022,RMS,Beacon Scaffolding Ltd,Private Contractors Payment - Other,835.92,0,CIS
04-07-2022,RMS,Beacon Scaffolding Ltd,Private Contractors Payment - Other,1500,0,CIS
04-07-2022,RMS,Beacon Scaffolding Ltd,Private Contractors Payment - Other,4444.32,0,CIS
04-07-2022,RMS,Beacon Scaffolding Ltd,Private Contractors Payment - Other,1114.56,0,CIS
04-07-2022,Environment and Sustainable Transport,College (Uk) Co Ltd,Staff Development And Training,335,0,VENDOR
04-07-2022,Environment and Sustainable Transport,College (Uk) Co Ltd,Staff Development And Training,838.9,0,VENDOR
04-07-2022,RMS,Door-Stop International Ltd,Building Alterations And Materials,1071.63,0,VENDOR
04-07-2022,RMS,Door-Stop International Ltd,Building Alterations And Materials,1071.63,0,VENDOR
04-07-2022,RMS,Door-Stop International Ltd,"Purchase - Equipment, Furniture And Materials",555.86,0,VENDOR
04-07-2022,Children and Young People,Personal Information - Redacted,Legal Fees,300,0,COMMERCIAL SUPPLIER
04-07-2022,Adults & Health,Highland Care Uk Ltd,Home Care - Private Contractors Payment,153.28,0,VENDOR
04-07-2022,Adults & Health,Highland Care Uk Ltd,Home Care - Private Contractors Payment,153.28,0,VENDOR
04-07-2022,Adults & Health,Highland Care Uk Ltd,Home Care - Private Contractors Payment,153.28,0,VENDOR
04-07-2022,Adults & Health,Highland Care Uk Ltd,Home Care - Private Contractors Payment,153.28,0,VENDOR
04-07-2022,Adults & Health,Highland Care Uk Ltd,Home Care - Private Contractors Payment,134.12,0,VENDOR
04-07-2022,Adults & Health,Highland Care Uk Ltd,Home Care - Private Contractors Payment,134.12,0,VENDOR
04-07-2022,Adults & Health,Highland Care Uk Ltd,Home Care - Private Contractors Payment,134.12,0,VENDOR
04-07-2022,Adults & Health,Highland Care Uk Ltd,Home Care - Private Contractors Payment,134.12,0,VENDOR
04-07-2022,Adults & Health,J.C.Michael Groups Ltd,Daycare - Private Contractors Payment,74.88,0,NON COMMERCIAL SUPPLIER
04-07-2022,Adults & Health,J.C.Michael Groups Ltd,Home Care - Private Contractors Payment,46.8,0,NON COMMERCIAL SUPPLIER
04-07-2022,Adults & Health,J.C.Michael Groups Ltd,Home Care - Private Contractors Payment,304.2,0,NON COMMERCIAL SUPPLIER
04-07-2022,Adults & Health,J.C.Michael Groups Ltd,Respite Care - Private Contractors Payment,28.08,0,NON COMMERCIAL SUPPLIER
04-07-2022,Adults & Health,J.C.Michael Groups Ltd,Home Care - Private Contractors Payment,163.8,0,NON COMMERCIAL SUPPLIER
04-07-2022,Adults & Health,J.C.Michael Groups Ltd,Home Care - Private Contractors Payment,56.16,0,NON COMMERCIAL SUPPLIER
04-07-2022,Adults & Health,J.C.Michael Groups Ltd,Home Care - Private Contractors Payment,74.88,0,NON COMMERCIAL SUPPLIER
04-07-2022,Adults & Health,J.C.Michael Groups Ltd,Daycare - Private Contractors Payment,74.88,0,NON COMMERCIAL SUPPLIER
04-07-2022,Adults & Health,J.C.Michael Groups Ltd,Home Care - Private Contractors Payment,18.72,0,NON COMMERCIAL SUPPLIER
04-07-2022,Adults & Health,J.C.Michael Groups Ltd,Daycare - Private Contractors Payment,56.16,0,NON COMMERCIAL SUPPLIER
04-07-2022,Adults & Health,J.C.Michael Groups Ltd,Daycare - Private Contractors Payment,46.8,0,NON COMMERCIAL SUPPLIER
04-07-2022,Adults & Health,J.C.Michael Groups Ltd,Home Care - Private Contractors Payment,18.72,0,NON COMMERCIAL SUPPLIER
04-07-2022,Adults & Health,J.C.Michael Groups Ltd,Home Care - Private Contractors Payment,458.64,0,NON COMMERCIAL SUPPLIER
04-07-2022,Adults & Health,J.C.Michael Groups Ltd,Daycare - Private Contractors Payment,131.04,0,NON COMMERCIAL SUPPLIER
04-07-2022,Adults & Health,J.C.Michael Groups Ltd,Daycare - Private Contractors Payment,131.04,0,NON COMMERCIAL SUPPLIER
04-07-2022,Adults & Health,J.C.Michael Groups Ltd,Respite Care - Private Contractors Payment,112.32,0,NON COMMERCIAL SUPPLIER
04-07-2022,Adults & Health,J.C.Michael Groups Ltd,Home Care - Private Contractors Payment,163.8,0,NON COMMERCIAL SUPPLIER
04-07-2022,Adults & Health,J.C.Michael Groups Ltd,Home Care - Private Contractors Payment,42.12,0,NON COMMERCIAL SUPPLIER
04-07-2022,Adults & Health,J.C.Michael Groups Ltd,Home Care - Private Contractors Payment,294.84,0,NON COMMERCIAL SUPPLIER
04-07-2022,Adults & Health,J.C.Michael Groups Ltd,Home Care - Private Contractors Payment,18.72,0,NON COMMERCIAL SUPPLIER
04-07-2022,Adults & Health,J.C.Michael Groups Ltd,Home Care - Private Contractors Payment,37.44,0,NON COMMERCIAL SUPPLIER
04-07-2022,Adults & Health,J.C.Michael Groups Ltd,Home Care - Private Contractors Payment,37.44,0,NON COMMERCIAL SUPPLIER
04-07-2022,Adults & Health,J.C.Michael Groups Ltd,Home Care - Private Contractors Payment,37.44,0,NON COMMERCIAL SUPPLIER
04-07-2022,Adults & Health,J.C.Michael Groups Ltd,Home Care - Private Contractors Payment,18.72,0,NON COMMERCIAL SUPPLIER
04-07-2022,Adults & Health,J.C.Michael Groups Ltd,Daycare - Private Contractors Payment,74.88,0,NON COMMERCIAL SUPPLIER
04-07-2022,Adults & Health,J.C.Michael Groups Ltd,Home Care - Private Contractors Payment,56.16,0,NON COMMERCIAL SUPPLIER
04-07-2022,Adults & Health,J.C.Michael Groups Ltd,Daycare - Private Contractors Payment,37.44,0,NON COMMERCIAL SUPPLIER
04-07-2022,Adults & Health,J.C.Michael Groups Ltd,Daycare - Private Contractors Payment,131.04,0,NON COMMERCIAL SUPPLIER
04-07-2022,Adults & Health,J.C.Michael Groups Ltd,Home Care - Private Contractors Payment,210.6,0,NON COMMERCIAL SUPPLIER
04-07-2022,Adults & Health,J.C.Michael Groups Ltd,Home Care - Private Contractors Payment,425.88,0,NON COMMERCIAL SUPPLIER
04-07-2022,Adults & Health,J.C.Michael Groups Ltd,Home Care - Private Contractors Payment,98.28,0,NON COMMERCIAL SUPPLIER
04-07-2022,Adults & Health,J.C.Michael Groups Ltd,Home Care - Private Contractors Payment,56.16,0,NON COMMERCIAL SUPPLIER
04-07-2022,Adults & Health,J.C.Michael Groups Ltd,Daycare - Private Contractors Payment,37.44,0,NON COMMERCIAL SUPPLIER
04-07-2022,Adults & Health,J.C.Michael Groups Ltd,Home Care - Private Contractors Payment,56.16,0,NON COMMERCIAL SUPPLIER
04-07-2022,Adults & Health,J.C.Michael Groups Ltd,Daycare - Private Contractors Payment,37.44,0,NON COMMERCIAL SUPPLIER
04-07-2022,Adults & Health,J.C.Michael Groups Ltd,Home Care - Private Contractors Payment,74.88,0,NON COMMERCIAL SUPPLIER
04-07-2022,Adults & Health,J.C.Michael Groups Ltd,Home Care - Private Contractors Payment,37.44,0,NON COMMERCIAL SUPPLIER
04-07-2022,Adults & Health,J.C.Michael Groups Ltd,Home Care - Private Contractors Payment,294.84,0,NON COMMERCIAL SUPPLIER
04-07-2022,Adults & Health,J.C.Michael Groups Ltd,Home Care - Private Contractors Payment,18.72,0,NON COMMERCIAL SUPPLIER
04-07-2022,Adults & Health,J.C.Michael Groups Ltd,Home Care - Private Contractors Payment,18.72,0,NON COMMERCIAL SUPPLIER
04-07-2022,Adults & Health,J.C.Michael Groups Ltd,Daycare - Private Contractors Payment,37.44,0,NON COMMERCIAL SUPPLIER
04-07-2022,Adults & Health,J.C.Michael Groups Ltd,Respite Care - Private Contractors Payment,56.16,0,NON COMMERCIAL SUPPLIER
04-07-2022,Adults & Health,J.C.Michael Groups Ltd,Reablement,154.44,0,NON COMMERCIAL SUPPLIER
04-07-2022,Adults & Health,J.C.Michael Groups Ltd,Home Care - Private Contractors Payment,18.72,0,NON COMMERCIAL SUPPLIER
04-07-2022,Adults & Health,J.C.Michael Groups Ltd,Daycare - Private Contractors Payment,56.16,0,NON COMMERCIAL SUPPLIER
04-07-2022,Adults & Health,J.C.Michael Groups Ltd,Daycare - Private Contractors Payment,149.76,0,NON COMMERCIAL SUPPLIER
04-07-2022,Adults & Health,J.C.Michael Groups Ltd,Daycare - Private Contractors Payment,56.16,0,NON COMMERCIAL SUPPLIER
04-07-2022,Adults & Health,J.C.Michael Groups Ltd,Home Care - Private Contractors Payment,65.52,0,NON COMMERCIAL SUPPLIER
04-07-2022,Adults & Health,J.C.Michael Groups Ltd,Daycare - Private Contractors Payment,28.08,0,NON COMMERCIAL SUPPLIER
04-07-2022,Adults & Health,J.C.Michael Groups Ltd,Home Care - Private Contractors Payment,37.44,0,NON COMMERCIAL SUPPLIER
04-07-2022,Adults & Health,J.C.Michael Groups Ltd,Home Care - Private Contractors Payment,65.52,0,NON COMMERCIAL SUPPLIER
04-07-2022,Adults & Health,J.C.Michael Groups Ltd,Home Care - Private Contractors Payment,131.04,0,NON COMMERCIAL SUPPLIER
04-07-2022,Adults & Health,J.C.Michael Groups Ltd,Respite Care - Private Contractors Payment,28.08,0,NON COMMERCIAL SUPPLIER
04-07-2022,Adults & Health,J.C.Michael Groups Ltd,Home Care - Private Contractors Payment,37.44,0,NON COMMERCIAL SUPPLIER
04-07-2022,Adults & Health,J.C.Michael Groups Ltd,Home Care - Private Contractors Payment,65.52,0,NON COMMERCIAL SUPPLIER
04-07-2022,Adults & Health,J.C.Michael Groups Ltd,Daycare - Private Contractors Payment,28.08,0,NON COMMERCIAL SUPPLIER
04-07-2022,Adults & Health,J.C.Michael Groups Ltd,Daycare - Private Contractors Payment,187.2,0,NON COMMERCIAL SUPPLIER
04-07-2022,Adults & Health,J.C.Michael Groups Ltd,Home Care - Private Contractors Payment,56.16,0,NON COMMERCIAL SUPPLIER
04-07-2022,Adults & Health,J.C.Michael Groups Ltd,Daycare - Private Contractors Payment,18.72,0,NON COMMERCIAL SUPPLIER
04-07-2022,Adults & Health,J.C.Michael Groups Ltd,Daycare - Private Contractors Payment,93.6,0,NON COMMERCIAL SUPPLIER
04-07-2022,Adults & Health,J.C.Michael Groups Ltd,Home Care - Private Contractors Payment,556.92,0,NON COMMERCIAL SUPPLIER
04-07-2022,Adults & Health,J.C.Michael Groups Ltd,Daycare - Private Contractors Payment,56.16,0,NON COMMERCIAL SUPPLIER
04-07-2022,Adults & Health,J.C.Michael Groups Ltd,Home Care - Private Contractors Payment,163.8,0,NON COMMERCIAL SUPPLIER
04-07-2022,Adults & Health,J.C.Michael Groups Ltd,Daycare - Private Contractors Payment,74.88,0,NON COMMERCIAL SUPPLIER
04-07-2022,Adults & Health,J.C.Michael Groups Ltd,Daycare - Private Contractors Payment,37.44,0,NON COMMERCIAL SUPPLIER
04-07-2022,Adults & Health,J.C.Michael Groups Ltd,Home Care - Private Contractors Payment,18.72,0,NON COMMERCIAL SUPPLIER
04-07-2022,Adults & Health,J.C.Michael Groups Ltd,Home Care - Private Contractors Payment,556.92,0,NON COMMERCIAL SUPPLIER
04-07-2022,Adults & Health,J.C.Michael Groups Ltd,Daycare - Private Contractors Payment,37.44,0,NON COMMERCIAL SUPPLIER
04-07-2022,Adults & Health,J.C.Michael Groups Ltd,Home Care - Private Contractors Payment,163.8,0,NON COMMERCIAL SUPPLIER
04-07-2022,Adults & Health,J.C.Michael Groups Ltd,Daycare - Private Contractors Payment,32.76,0,NON COMMERCIAL SUPPLIER
04-07-2022,Adults & Health,J.C.Michael Groups Ltd,Home Care - Private Contractors Payment,18.72,0,NON COMMERCIAL SUPPLIER
04-07-2022,Adults & Health,J.C.Michael Groups Ltd,Daycare - Private Contractors Payment,28.08,0,NON COMMERCIAL SUPPLIER
04-07-2022,Adults & Health,J.C.Michael Groups Ltd,Home Care - Private Contractors Payment,98.28,0,NON COMMERCIAL SUPPLIER
04-07-2022,Adults & Health,J.C.Michael Groups Ltd,Home Care - Private Contractors Payment,327.6,0,NON COMMERCIAL SUPPLIER
04-07-2022,Adults & Health,J.C.Michael Groups Ltd,Home Care - Private Contractors Payment,294.84,0,NON COMMERCIAL SUPPLIER
04-07-2022,Adults & Health,J.C.Michael Groups Ltd,Home Care - Private Contractors Payment,126.36,0,NON COMMERCIAL SUPPLIER
04-07-2022,Adults & Health,J.C.Michael Groups Ltd,Home Care - Private Contractors Payment,37.44,0,NON COMMERCIAL SUPPLIER
04-07-2022,Adults & Health,J.C.Michael Groups Ltd,Daycare - Private Contractors Payment,32.76,0,NON COMMERCIAL SUPPLIER
04-07-2022,Adults & Health,J.C.Michael Groups Ltd,Respite Care - Private Contractors Payment,74.88,0,NON COMMERCIAL SUPPLIER
04-07-2022,Adults & Health,J.C.Michael Groups Ltd,Daycare - Private Contractors Payment,56.16,0,NON COMMERCIAL SUPPLIER
04-07-2022,Adults & Health,J.C.Michael Groups Ltd,Home Care - Private Contractors Payment,187.2,0,NON COMMERCIAL SUPPLIER
04-07-2022,Adults & Health,J.C.Michael Groups Ltd,Home Care - Private Contractors Payment,18.72,0,NON COMMERCIAL SUPPLIER
04-07-2022,Adults & Health,J.C.Michael Groups Ltd,Respite Care - Private Contractors Payment,56.16,0,NON COMMERCIAL SUPPLIER
04-07-2022,Adults & Health,J.C.Michael Groups Ltd,Home Care - Private Contractors Payment,18.72,0,NON COMMERCIAL SUPPLIER
04-07-2022,Adults & Health,J.C.Michael Groups Ltd,Home Care - Private Contractors Payment,18.72,0,NON COMMERCIAL SUPPLIER
04-07-2022,Adults & Health,J.C.Michael Groups Ltd,Home Care - Private Contractors Payment,210.6,0,NON COMMERCIAL SUPPLIER
04-07-2022,Adults & Health,J.C.Michael Groups Ltd,Home Care - Private Contractors Payment,93.6,0,NON COMMERCIAL SUPPLIER
04-07-2022,Adults & Health,J.C.Michael Groups Ltd,Home Care - Private Contractors Payment,294.84,0,NON COMMERCIAL SUPPLIER
04-07-2022,Adults & Health,J.C.Michael Groups Ltd,Home Care - Private Contractors Payment,37.44,0,NON COMMERCIAL SUPPLIER
04-07-2022,Adults & Health,J.C.Michael Groups Ltd,Daycare - Private Contractors Payment,37.44,0,NON COMMERCIAL SUPPLIER
04-07-2022,Adults & Health,J.C.Michael Groups Ltd,Home Care - Private Contractors Payment,37.44,0,NON COMMERCIAL SUPPLIER
04-07-2022,Adults & Health,J.C.Michael Groups Ltd,Home Care - Private Contractors Payment,163.8,0,NON COMMERCIAL SUPPLIER
04-07-2022,Adults & Health,J.C.Michael Groups Ltd,Home Care - Private Contractors Payment,56.16,0,NON COMMERCIAL SUPPLIER
04-07-2022,Adults & Health,J.C.Michael Groups Ltd,Daycare - Private Contractors Payment,56.16,0,NON COMMERCIAL SUPPLIER
04-07-2022,Adults & Health,J.C.Michael Groups Ltd,Home Care - Private Contractors Payment,37.44,0,NON COMMERCIAL SUPPLIER
04-07-2022,Adults & Health,J.C.Michael Groups Ltd,Home Care - Private Contractors Payment,56.16,0,NON COMMERCIAL SUPPLIER
04-07-2022,Adults & Health,J.C.Michael Groups Ltd,Daycare - Private Contractors Payment,131.04,0,NON COMMERCIAL SUPPLIER
04-07-2022,Adults & Health,J.C.Michael Groups Ltd,Home Care - Private Contractors Payment,18.72,0,NON COMMERCIAL SUPPLIER
04-07-2022,Adults & Health,J.C.Michael Groups Ltd,Home Care - Private Contractors Payment,46.8,0,NON COMMERCIAL SUPPLIER
04-07-2022,Adults & Health,J.C.Michael Groups Ltd,Respite Care - Private Contractors Payment,28.08,0,NON COMMERCIAL SUPPLIER
04-07-2022,Adults & Health,J.C.Michael Groups Ltd,Home Care - Private Contractors Payment,18.72,0,NON COMMERCIAL SUPPLIER
04-07-2022,Adults & Health,J.C.Michael Groups Ltd,Home Care - Private Contractors Payment,18.72,0,NON COMMERCIAL SUPPLIER
04-07-2022,Adults & Health,J.C.Michael Groups Ltd,Reablement,28.08,0,NON COMMERCIAL SUPPLIER
04-07-2022,Adults & Health,J.C.Michael Groups Ltd,Home Care - Private Contractors Payment,37.44,0,NON COMMERCIAL SUPPLIER
04-07-2022,Adults & Health,J.C.Michael Groups Ltd,Daycare - Private Contractors Payment,37.44,0,NON COMMERCIAL SUPPLIER
04-07-2022,Adults & Health,J.C.Michael Groups Ltd,Respite Care - Private Contractors Payment,74.88,0,NON COMMERCIAL SUPPLIER
04-07-2022,Adults & Health,J.C.Michael Groups Ltd,Home Care - Private Contractors Payment,187.2,0,NON COMMERCIAL SUPPLIER
04-07-2022,Adults & Health,J.C.Michael Groups Ltd,Daycare - Private Contractors Payment,46.8,0,NON COMMERCIAL SUPPLIER
04-07-2022,Adults & Health,J.C.Michael Groups Ltd,Reablement,149.76,0,NON COMMERCIAL SUPPLIER
04-07-2022,Adults & Health,J.C.Michael Groups Ltd,Home Care - Private Contractors Payment,56.16,0,NON COMMERCIAL SUPPLIER
04-07-2022,Adults & Health,J.C.Michael Groups Ltd,Home Care - Private Contractors Payment,163.8,0,NON COMMERCIAL SUPPLIER
04-07-2022,Adults & Health,J.C.Michael Groups Ltd,Home Care - Private Contractors Payment,294.84,0,NON COMMERCIAL SUPPLIER
04-07-2022,Adults & Health,J.C.Michael Groups Ltd,Home Care - Private Contractors Payment,98.28,0,NON COMMERCIAL SUPPLIER
04-07-2022,Adults & Health,J.C.Michael Groups Ltd,Home Care - Private Contractors Payment,98.28,0,NON COMMERCIAL SUPPLIER
04-07-2022,Adults & Health,J.C.Michael Groups Ltd,Reablement,93.6,0,NON COMMERCIAL SUPPLIER
04-07-2022,Adults & Health,J.C.Michael Groups Ltd,Daycare - Private Contractors Payment,74.88,0,NON COMMERCIAL SUPPLIER
04-07-2022,Adults & Health,J.C.Michael Groups Ltd,Daycare - Private Contractors Payment,56.16,0,NON COMMERCIAL SUPPLIER
04-07-2022,Adults & Health,J.C.Michael Groups Ltd,Respite Care - Private Contractors Payment,374.4,0,NON COMMERCIAL SUPPLIER
04-07-2022,Adults & Health,J.C.Michael Groups Ltd,Daycare - Private Contractors Payment,74.88,0,NON COMMERCIAL SUPPLIER
04-07-2022,Adults & Health,J.C.Michael Groups Ltd,Home Care - Private Contractors Payment,159.12,0,NON COMMERCIAL SUPPLIER
04-07-2022,Adults & Health,J.C.Michael Groups Ltd,Home Care - Private Contractors Payment,65.52,0,NON COMMERCIAL SUPPLIER
04-07-2022,Adults & Health,J.C.Michael Groups Ltd,Home Care - Private Contractors Payment,18.72,0,NON COMMERCIAL SUPPLIER
04-07-2022,Adults & Health,J.C.Michael Groups Ltd,Home Care - Private Contractors Payment,18.72,0,NON COMMERCIAL SUPPLIER
04-07-2022,Adults & Health,J.C.Michael Groups Ltd,Home Care - Private Contractors Payment,74.88,0,NON COMMERCIAL SUPPLIER
04-07-2022,Adults & Health,J.C.Michael Groups Ltd,Daycare - Private Contractors Payment,56.16,0,NON COMMERCIAL SUPPLIER
04-07-2022,Adults & Health,J.C.Michael Groups Ltd,Daycare - Private Contractors Payment,149.76,0,NON COMMERCIAL SUPPLIER
04-07-2022,Adults & Health,J.C.Michael Groups Ltd,Home Care - Private Contractors Payment,37.44,0,NON COMMERCIAL SUPPLIER
04-07-2022,Adults & Health,J.C.Michael Groups Ltd,Daycare - Private Contractors Payment,56.16,0,NON COMMERCIAL SUPPLIER
04-07-2022,Adults & Health,J.C.Michael Groups Ltd,Home Care - Private Contractors Payment,18.72,0,NON COMMERCIAL SUPPLIER
04-07-2022,Adults & Health,J.C.Michael Groups Ltd,Home Care - Private Contractors Payment,262.08,0,NON COMMERCIAL SUPPLIER
04-07-2022,Adults & Health,J.C.Michael Groups Ltd,Home Care - Private Contractors Payment,294.84,0,NON COMMERCIAL SUPPLIER
04-07-2022,Adults & Health,J.C.Michael Groups Ltd,Daycare - Private Contractors Payment,37.44,0,NON COMMERCIAL SUPPLIER
04-07-2022,Adults & Health,J.C.Michael Groups Ltd,Home Care - Private Contractors Payment,294.84,0,NON COMMERCIAL SUPPLIER
04-07-2022,Adults & Health,J.C.Michael Groups Ltd,Home Care - Private Contractors Payment,37.44,0,NON COMMERCIAL SUPPLIER
04-07-2022,Adults & Health,J.C.Michael Groups Ltd,Home Care - Private Contractors Payment,18.72,0,NON COMMERCIAL SUPPLIER
04-07-2022,Adults & Health,J.C.Michael Groups Ltd,Daycare - Private Contractors Payment,37.44,0,NON COMMERCIAL SUPPLIER
04-07-2022,Adults & Health,J.C.Michael Groups Ltd,Daycare - Private Contractors Payment,46.8,0,NON COMMERCIAL SUPPLIER
04-07-2022,Adults & Health,J.C.Michael Groups Ltd,Home Care - Private Contractors Payment,163.8,0,NON COMMERCIAL SUPPLIER
04-07-2022,Adults & Health,J.C.Michael Groups Ltd,Home Care - Private Contractors Payment,18.72,0,NON COMMERCIAL SUPPLIER
04-07-2022,Adults & Health,J.C.Michael Groups Ltd,Home Care - Private Contractors Payment,893.88,0,NON COMMERCIAL SUPPLIER
04-07-2022,Adults & Health,J.C.Michael Groups Ltd,Home Care - Private Contractors Payment,37.44,0,NON COMMERCIAL SUPPLIER
04-07-2022,Adults & Health,J.C.Michael Groups Ltd,Home Care - Private Contractors Payment,56.16,0,NON COMMERCIAL SUPPLIER
04-07-2022,Adults & Health,J.C.Michael Groups Ltd,Home Care - Private Contractors Payment,458.64,0,NON COMMERCIAL SUPPLIER
04-07-2022,Adults & Health,J.C.Michael Groups Ltd,Home Care - Private Contractors Payment,294.84,0,NON COMMERCIAL SUPPLIER
04-07-2022,Adults & Health,J.C.Michael Groups Ltd,Home Care - Private Contractors Payment,18.72,0,NON COMMERCIAL SUPPLIER
04-07-2022,Adults & Health,J.C.Michael Groups Ltd,Home Care - Private Contractors Payment,187.2,0,NON COMMERCIAL SUPPLIER
04-07-2022,Adults & Health,J.C.Michael Groups Ltd,Home Care - Private Contractors Payment,163.8,0,NON COMMERCIAL SUPPLIER
04-07-2022,Adults & Health,J.C.Michael Groups Ltd,Home Care - Private Contractors Payment,18.72,0,NON COMMERCIAL SUPPLIER
04-07-2022,Adults & Health,J.C.Michael Groups Ltd,Home Care - Private Contractors Payment,60.84,0,NON COMMERCIAL SUPPLIER
04-07-2022,Adults & Health,J.C.Michael Groups Ltd,Daycare - Private Contractors Payment,37.44,0,NON COMMERCIAL SUPPLIER
04-07-2022,Adults & Health,J.C.Michael Groups Ltd,Daycare - Private Contractors Payment,131.04,0,NON COMMERCIAL SUPPLIER
04-07-2022,Adults & Health,J.C.Michael Groups Ltd,Home Care - Private Contractors Payment,252.72,0,NON COMMERCIAL SUPPLIER
04-07-2022,Adults & Health,J.C.Michael Groups Ltd,Daycare - Private Contractors Payment,23.94,0,NON COMMERCIAL SUPPLIER
04-07-2022,Adults & Health,J.C.Michael Groups Ltd,Home Care - Private Contractors Payment,18.72,0,NON COMMERCIAL SUPPLIER
04-07-2022,Adults & Health,J.C.Michael Groups Ltd,Home Care - Private Contractors Payment,65.52,0,NON COMMERCIAL SUPPLIER
04-07-2022,Adults & Health,J.C.Michael Groups Ltd,Daycare - Private Contractors Payment,56.16,0,NON COMMERCIAL SUPPLIER
04-07-2022,Adults & Health,J.C.Michael Groups Ltd,Home Care - Private Contractors Payment,163.8,0,NON COMMERCIAL SUPPLIER
04-07-2022,Adults & Health,J.C.Michael Groups Ltd,Home Care - Private Contractors Payment,126.36,0,NON COMMERCIAL SUPPLIER
04-07-2022,Adults & Health,J.C.Michael Groups Ltd,Daycare - Private Contractors Payment,187.2,0,NON COMMERCIAL SUPPLIER
04-07-2022,Adults & Health,J.C.Michael Groups Ltd,Home Care - Private Contractors Payment,182.52,0,NON COMMERCIAL SUPPLIER
04-07-2022,Adults & Health,J.C.Michael Groups Ltd,Home Care - Private Contractors Payment,37.44,0,NON COMMERCIAL SUPPLIER
04-07-2022,Adults & Health,J.C.Michael Groups Ltd,Home Care - Private Contractors Payment,37.44,0,NON COMMERCIAL SUPPLIER
04-07-2022,Adults & Health,J.C.Michael Groups Ltd,Respite Care - Private Contractors Payment,74.88,0,NON COMMERCIAL SUPPLIER
04-07-2022,Adults & Health,J.C.Michael Groups Ltd,Home Care - Private Contractors Payment,262.08,0,NON COMMERCIAL SUPPLIER
04-07-2022,Adults & Health,J.C.Michael Groups Ltd,Daycare - Private Contractors Payment,93.6,0,NON COMMERCIAL SUPPLIER
04-07-2022,Adults & Health,J.C.Michael Groups Ltd,Daycare - Private Contractors Payment,18.72,0,NON COMMERCIAL SUPPLIER
04-07-2022,Adults & Health,J.C.Michael Groups Ltd,Home Care - Private Contractors Payment,294.84,0,NON COMMERCIAL SUPPLIER
04-07-2022,Adults & Health,J.C.Michael Groups Ltd,Home Care - Private Contractors Payment,18.72,0,NON COMMERCIAL SUPPLIER
04-07-2022,Adults & Health,J.C.Michael Groups Ltd,Daycare - Private Contractors Payment,131.04,0,NON COMMERCIAL SUPPLIER
04-07-2022,Adults & Health,J.C.Michael Groups Ltd,Home Care - Private Contractors Payment,556.92,0,NON COMMERCIAL SUPPLIER
04-07-2022,Adults & Health,J.C.Michael Groups Ltd,Daycare - Private Contractors Payment,56.16,0,NON COMMERCIAL SUPPLIER
04-07-2022,Adults & Health,J.C.Michael Groups Ltd,Home Care - Private Contractors Payment,37.44,0,NON COMMERCIAL SUPPLIER
04-07-2022,Adults & Health,J.C.Michael Groups Ltd,Daycare - Private Contractors Payment,46.8,0,NON COMMERCIAL SUPPLIER
04-07-2022,Adults & Health,J.C.Michael Groups Ltd,Home Care - Private Contractors Payment,926.64,0,NON COMMERCIAL SUPPLIER
04-07-2022,Adults & Health,J.C.Michael Groups Ltd,Home Care - Private Contractors Payment,93.6,0,NON COMMERCIAL SUPPLIER
04-07-2022,Adults & Health,J.C.Michael Groups Ltd,Daycare - Private Contractors Payment,56.16,0,NON COMMERCIAL SUPPLIER
04-07-2022,Adults & Health,J.C.Michael Groups Ltd,Home Care - Private Contractors Payment,18.72,0,NON COMMERCIAL SUPPLIER
04-07-2022,Adults & Health,J.C.Michael Groups Ltd,Daycare - Private Contractors Payment,131.04,0,NON COMMERCIAL SUPPLIER
04-07-2022,Adults & Health,J.C.Michael Groups Ltd,Daycare - Private Contractors Payment,74.88,0,NON COMMERCIAL SUPPLIER
04-07-2022,Adults & Health,J.C.Michael Groups Ltd,Respite Care - Private Contractors Payment,112.32,0,NON COMMERCIAL SUPPLIER
04-07-2022,Adults & Health,J.C.Michael Groups Ltd,Daycare - Private Contractors Payment,37.44,0,NON COMMERCIAL SUPPLIER
04-07-2022,Adults & Health,J.C.Michael Groups Ltd,Daycare - Private Contractors Payment,56.16,0,NON COMMERCIAL SUPPLIER
04-07-2022,Adults & Health,J.C.Michael Groups Ltd,Daycare - Private Contractors Payment,29.46,0,NON COMMERCIAL SUPPLIER
04-07-2022,Adults & Health,J.C.Michael Groups Ltd,Home Care - Private Contractors Payment,42.12,0,NON COMMERCIAL SUPPLIER
04-07-2022,Adults & Health,J.C.Michael Groups Ltd,Home Care - Private Contractors Payment,294.84,0,NON COMMERCIAL SUPPLIER
04-07-2022,Adults & Health,J.C.Michael Groups Ltd,Reablement,14.04,0,NON COMMERCIAL SUPPLIER
04-07-2022,Adults & Health,J.C.Michael Groups Ltd,Daycare - Private Contractors Payment,131.04,0,NON COMMERCIAL SUPPLIER
04-07-2022,Adults & Health,J.C.Michael Groups Ltd,Daycare - Private Contractors Payment,56.16,0,NON COMMERCIAL SUPPLIER
04-07-2022,Adults & Health,J.C.Michael Groups Ltd,Reablement,229.32,0,NON COMMERCIAL SUPPLIER
04-07-2022,Adults & Health,J.C.Michael Groups Ltd,Daycare - Private Contractors Payment,37.44,0,NON COMMERCIAL SUPPLIER
04-07-2022,Adults & Health,J.C.Michael Groups Ltd,Home Care - Private Contractors Payment,294.84,0,NON COMMERCIAL SUPPLIER
04-07-2022,Adults & Health,J.C.Michael Groups Ltd,Daycare - Private Contractors Payment,18.72,0,NON COMMERCIAL SUPPLIER
04-07-2022,Adults & Health,J.C.Michael Groups Ltd,Home Care - Private Contractors Payment,18.72,0,NON COMMERCIAL SUPPLIER
04-07-2022,Adults & Health,J.C.Michael Groups Ltd,Home Care - Private Contractors Payment,18.72,0,NON COMMERCIAL SUPPLIER
04-07-2022,Adults & Health,J.C.Michael Groups Ltd,Reablement,93.6,0,NON COMMERCIAL SUPPLIER
04-07-2022,Adults & Health,J.C.Michael Groups Ltd,Home Care - Private Contractors Payment,262.08,0,NON COMMERCIAL SUPPLIER
04-07-2022,Adults & Health,J.C.Michael Groups Ltd,Home Care - Private Contractors Payment,294.84,0,NON COMMERCIAL SUPPLIER
04-07-2022,Adults & Health,J.C.Michael Groups Ltd,Daycare - Private Contractors Payment,37.44,0,NON COMMERCIAL SUPPLIER
04-07-2022,Adults & Health,J.C.Michael Groups Ltd,Respite Care - Private Contractors Payment,28.08,0,NON COMMERCIAL SUPPLIER
04-07-2022,Adults & Health,J.C.Michael Groups Ltd,Daycare - Private Contractors Payment,37.44,0,NON COMMERCIAL SUPPLIER
04-07-2022,Adults & Health,J.C.Michael Groups Ltd,Daycare - Private Contractors Payment,37.44,0,NON COMMERCIAL SUPPLIER
04-07-2022,Adults & Health,J.C.Michael Groups Ltd,Home Care - Private Contractors Payment,98.28,0,NON COMMERCIAL SUPPLIER
04-07-2022,Adults & Health,J.C.Michael Groups Ltd,Reablement,28.08,0,NON COMMERCIAL SUPPLIER
04-07-2022,Adults & Health,J.C.Michael Groups Ltd,Home Care - Private Contractors Payment,163.8,0,NON COMMERCIAL SUPPLIER
04-07-2022,Adults & Health,J.C.Michael Groups Ltd,Home Care - Private Contractors Payment,304.2,0,NON COMMERCIAL SUPPLIER
04-07-2022,Adults & Health,J.C.Michael Groups Ltd,Daycare - Private Contractors Payment,56.16,0,NON COMMERCIAL SUPPLIER
04-07-2022,Adults & Health,J.C.Michael Groups Ltd,Daycare - Private Contractors Payment,56.16,0,NON COMMERCIAL SUPPLIER
04-07-2022,Adults & Health,J.C.Michael Groups Ltd,Daycare - Private Contractors Payment,32.76,0,NON COMMERCIAL SUPPLIER
04-07-2022,Adults & Health,J.C.Michael Groups Ltd,Home Care - Private Contractors Payment,458.64,0,NON COMMERCIAL SUPPLIER
04-07-2022,Adults & Health,J.C.Michael Groups Ltd,Home Care - Private Contractors Payment,37.44,0,NON COMMERCIAL SUPPLIER
04-07-2022,Adults & Health,J.C.Michael Groups Ltd,Home Care - Private Contractors Payment,18.72,0,NON COMMERCIAL SUPPLIER
04-07-2022,Adults & Health,J.C.Michael Groups Ltd,Daycare - Private Contractors Payment,74.88,0,NON COMMERCIAL SUPPLIER
04-07-2022,Adults & Health,J.C.Michael Groups Ltd,Home Care - Private Contractors Payment,74.88,0,NON COMMERCIAL SUPPLIER
04-07-2022,Adults & Health,J.C.Michael Groups Ltd,Respite Care - Private Contractors Payment,262.08,0,NON COMMERCIAL SUPPLIER
04-07-2022,Adults & Health,J.C.Michael Groups Ltd,Home Care - Private Contractors Payment,18.72,0,NON COMMERCIAL SUPPLIER
04-07-2022,Adults & Health,J.C.Michael Groups Ltd,Home Care - Private Contractors Payment,294.84,0,NON COMMERCIAL SUPPLIER
04-07-2022,Adults & Health,J.C.Michael Groups Ltd,Home Care - Private Contractors Payment,46.8,0,NON COMMERCIAL SUPPLIER
04-07-2022,Adults & Health,J.C.Michael Groups Ltd,Home Care - Private Contractors Payment,18.72,0,NON COMMERCIAL SUPPLIER
04-07-2022,Adults & Health,J.C.Michael Groups Ltd,Home Care - Private Contractors Payment,294.84,0,NON COMMERCIAL SUPPLIER
04-07-2022,Adults & Health,J.C.Michael Groups Ltd,Daycare - Private Contractors Payment,74.88,0,NON COMMERCIAL SUPPLIER
04-07-2022,Adults & Health,J.C.Michael Groups Ltd,Daycare - Private Contractors Payment,29.46,0,NON COMMERCIAL SUPPLIER
04-07-2022,Adults & Health,J.C.Michael Groups Ltd,Home Care - Private Contractors Payment,56.16,0,NON COMMERCIAL SUPPLIER
04-07-2022,Adults & Health,J.C.Michael Groups Ltd,Home Care - Private Contractors Payment,18.72,0,NON COMMERCIAL SUPPLIER
04-07-2022,Adults & Health,J.C.Michael Groups Ltd,Home Care - Private Contractors Payment,46.8,0,NON COMMERCIAL SUPPLIER
04-07-2022,Adults & Health,J.C.Michael Groups Ltd,Daycare - Private Contractors Payment,131.04,0,NON COMMERCIAL SUPPLIER
04-07-2022,Adults & Health,J.C.Michael Groups Ltd,Home Care - Private Contractors Payment,56.16,0,NON COMMERCIAL SUPPLIER
04-07-2022,Adults & Health,J.C.Michael Groups Ltd,Home Care - Private Contractors Payment,56.16,0,NON COMMERCIAL SUPPLIER
04-07-2022,Adults & Health,J.C.Michael Groups Ltd,Home Care - Private Contractors Payment,294.84,0,NON COMMERCIAL SUPPLIER
04-07-2022,Adults & Health,J.C.Michael Groups Ltd,Home Care - Private Contractors Payment,163.8,0,NON COMMERCIAL SUPPLIER
04-07-2022,Adults & Health,J.C.Michael Groups Ltd,Daycare - Private Contractors Payment,28.08,0,NON COMMERCIAL SUPPLIER
04-07-2022,Adults & Health,J.C.Michael Groups Ltd,Home Care - Private Contractors Payment,18.72,0,NON COMMERCIAL SUPPLIER
04-07-2022,Adults & Health,J.C.Michael Groups Ltd,Daycare - Private Contractors Payment,187.2,0,NON COMMERCIAL SUPPLIER
04-07-2022,Adults & Health,J.C.Michael Groups Ltd,Home Care - Private Contractors Payment,37.44,0,NON COMMERCIAL SUPPLIER
04-07-2022,Adults & Health,J.C.Michael Groups Ltd,Home Care - Private Contractors Payment,18.72,0,NON COMMERCIAL SUPPLIER
04-07-2022,Adults & Health,J.C.Michael Groups Ltd,Home Care - Private Contractors Payment,294.84,0,NON COMMERCIAL SUPPLIER
04-07-2022,Adults & Health,J.C.Michael Groups Ltd,Home Care - Private Contractors Payment,18.72,0,NON COMMERCIAL SUPPLIER
04-07-2022,Adults & Health,J.C.Michael Groups Ltd,Daycare - Private Contractors Payment,74.88,0,NON COMMERCIAL SUPPLIER
04-07-2022,Adults & Health,J.C.Michael Groups Ltd,Respite Care - Private Contractors Payment,74.88,0,NON COMMERCIAL SUPPLIER
04-07-2022,Adults & Health,J.C.Michael Groups Ltd,Respite Care - Private Contractors Payment,374.4,0,NON COMMERCIAL SUPPLIER
04-07-2022,Adults & Health,J.C.Michael Groups Ltd,Home Care - Private Contractors Payment,187.2,0,NON COMMERCIAL SUPPLIER
04-07-2022,Adults & Health,J.C.Michael Groups Ltd,Home Care - Private Contractors Payment,37.44,0,NON COMMERCIAL SUPPLIER
04-07-2022,Adults & Health,J.C.Michael Groups Ltd,Home Care - Private Contractors Payment,18.72,0,NON COMMERCIAL SUPPLIER
04-07-2022,Adults & Health,J.C.Michael Groups Ltd,Home Care - Private Contractors Payment,18.72,0,NON COMMERCIAL SUPPLIER
04-07-2022,Adults & Health,J.C.Michael Groups Ltd,Home Care - Private Contractors Payment,163.8,0,NON COMMERCIAL SUPPLIER
04-07-2022,Adults & Health,J.C.Michael Groups Ltd,Home Care - Private Contractors Payment,65.52,0,NON COMMERCIAL SUPPLIER
04-07-2022,Adults & Health,J.C.Michael Groups Ltd,Home Care - Private Contractors Payment,18.72,0,NON COMMERCIAL SUPPLIER
04-07-2022,Adults & Health,J.C.Michael Groups Ltd,Daycare - Private Contractors Payment,56.16,0,NON COMMERCIAL SUPPLIER
04-07-2022,Adults & Health,J.C.Michael Groups Ltd,Home Care - Private Contractors Payment,18.72,0,NON COMMERCIAL SUPPLIER
04-07-2022,Adults & Health,J.C.Michael Groups Ltd,Home Care - Private Contractors Payment,458.64,0,NON COMMERCIAL SUPPLIER
04-07-2022,Adults & Health,J.C.Michael Groups Ltd,Daycare - Private Contractors Payment,93.6,0,NON COMMERCIAL SUPPLIER
04-07-2022,Adults & Health,J.C.Michael Groups Ltd,Home Care - Private Contractors Payment,294.84,0,NON COMMERCIAL SUPPLIER
04-07-2022,Adults & Health,J.C.Michael Groups Ltd,Home Care - Private Contractors Payment,37.44,0,NON COMMERCIAL SUPPLIER
04-07-2022,Adults & Health,J.C.Michael Groups Ltd,Home Care - Private Contractors Payment,98.28,0,NON COMMERCIAL SUPPLIER
04-07-2022,Adults & Health,J.C.Michael Groups Ltd,Home Care - Private Contractors Payment,18.72,0,NON COMMERCIAL SUPPLIER
04-07-2022,Adults & Health,J.C.Michael Groups Ltd,Home Care - Private Contractors Payment,556.92,0,NON COMMERCIAL SUPPLIER
04-07-2022,Adults & Health,J.C.Michael Groups Ltd,Daycare - Private Contractors Payment,56.16,0,NON COMMERCIAL SUPPLIER
04-07-2022,Adults & Health,J.C.Michael Groups Ltd,Daycare - Private Contractors Payment,56.16,0,NON COMMERCIAL SUPPLIER
04-07-2022,Adults & Health,J.C.Michael Groups Ltd,Home Care - Private Contractors Payment,18.72,0,NON COMMERCIAL SUPPLIER
04-07-2022,Adults & Health,J.C.Michael Groups Ltd,Home Care - Private Contractors Payment,262.08,0,NON COMMERCIAL SUPPLIER
04-07-2022,Adults & Health,J.C.Michael Groups Ltd,Respite Care - Private Contractors Payment,56.16,0,NON COMMERCIAL SUPPLIER
04-07-2022,Adults & Health,J.C.Michael Groups Ltd,Daycare - Private Contractors Payment,187.2,0,NON COMMERCIAL SUPPLIER
04-07-2022,Adults & Health,J.C.Michael Groups Ltd,Home Care - Private Contractors Payment,14.04,0,NON COMMERCIAL SUPPLIER
04-07-2022,Adults & Health,J.C.Michael Groups Ltd,Home Care - Private Contractors Payment,18.72,0,NON COMMERCIAL SUPPLIER
04-07-2022,Adults & Health,J.C.Michael Groups Ltd,Daycare - Private Contractors Payment,56.16,0,NON COMMERCIAL SUPPLIER
04-07-2022,Adults & Health,J.C.Michael Groups Ltd,Daycare - Private Contractors Payment,56.16,0,NON COMMERCIAL SUPPLIER
04-07-2022,Adults & Health,J.C.Michael Groups Ltd,Daycare - Private Contractors Payment,93.6,0,NON COMMERCIAL SUPPLIER
04-07-2022,Adults & Health,J.C.Michael Groups Ltd,Daycare - Private Contractors Payment,131.04,0,NON COMMERCIAL SUPPLIER
04-07-2022,Adults & Health,J.C.Michael Groups Ltd,Home Care - Private Contractors Payment,37.44,0,NON COMMERCIAL SUPPLIER
04-07-2022,Adults & Health,J.C.Michael Groups Ltd,Daycare - Private Contractors Payment,37.44,0,NON COMMERCIAL SUPPLIER
04-07-2022,Adults & Health,J.C.Michael Groups Ltd,Reablement,219.96,0,NON COMMERCIAL SUPPLIER
04-07-2022,Adults & Health,J.C.Michael Groups Ltd,Respite Care - Private Contractors Payment,112.32,0,NON COMMERCIAL SUPPLIER
04-07-2022,Adults & Health,J.C.Michael Groups Ltd,Home Care - Private Contractors Payment,18.72,0,NON COMMERCIAL SUPPLIER
04-07-2022,Adults & Health,J.C.Michael Groups Ltd,Home Care - Private Contractors Payment,229.32,0,NON COMMERCIAL SUPPLIER
04-07-2022,Adults & Health,J.C.Michael Groups Ltd,Respite Care - Private Contractors Payment,56.16,0,NON COMMERCIAL SUPPLIER
04-07-2022,Adults & Health,J.C.Michael Groups Ltd,Daycare - Private Contractors Payment,131.04,0,NON COMMERCIAL SUPPLIER
04-07-2022,Adults & Health,J.C.Michael Groups Ltd,Daycare - Private Contractors Payment,18.72,0,NON COMMERCIAL SUPPLIER
04-07-2022,Adults & Health,J.C.Michael Groups Ltd,Reablement,70.2,0,NON COMMERCIAL SUPPLIER
04-07-2022,Adults & Health,J.C.Michael Groups Ltd,Respite Care - Private Contractors Payment,112.32,0,NON COMMERCIAL SUPPLIER
04-07-2022,Adults & Health,J.C.Michael Groups Ltd,Daycare - Private Contractors Payment,56.16,0,NON COMMERCIAL SUPPLIER
04-07-2022,Adults & Health,J.C.Michael Groups Ltd,Daycare - Private Contractors Payment,37.44,0,NON COMMERCIAL SUPPLIER
04-07-2022,Adults & Health,J.C.Michael Groups Ltd,Daycare - Private Contractors Payment,149.76,0,NON COMMERCIAL SUPPLIER
04-07-2022,Adults & Health,J.C.Michael Groups Ltd,Home Care - Private Contractors Payment,93.6,0,NON COMMERCIAL SUPPLIER
04-07-2022,Adults & Health,J.C.Michael Groups Ltd,Daycare - Private Contractors Payment,56.16,0,NON COMMERCIAL SUPPLIER
04-07-2022,Adults & Health,J.C.Michael Groups Ltd,Home Care - Private Contractors Payment,18.72,0,NON COMMERCIAL SUPPLIER
04-07-2022,Adults & Health,J.C.Michael Groups Ltd,Home Care - Private Contractors Payment,37.44,0,NON COMMERCIAL SUPPLIER
04-07-2022,Adults & Health,J.C.Michael Groups Ltd,Daycare - Private Contractors Payment,149.76,0,NON COMMERCIAL SUPPLIER
04-07-2022,Adults & Health,J.C.Michael Groups Ltd,Home Care - Private Contractors Payment,93.6,0,NON COMMERCIAL SUPPLIER
04-07-2022,Adults & Health,J.C.Michael Groups Ltd,Home Care - Private Contractors Payment,37.44,0,NON COMMERCIAL SUPPLIER
04-07-2022,Adults & Health,J.C.Michael Groups Ltd,Daycare - Private Contractors Payment,29.46,0,NON COMMERCIAL SUPPLIER
04-07-2022,Adults & Health,J.C.Michael Groups Ltd,Home Care - Private Contractors Payment,163.8,0,NON COMMERCIAL SUPPLIER
04-07-2022,Adults & Health,J.C.Michael Groups Ltd,Daycare - Private Contractors Payment,37.44,0,NON COMMERCIAL SUPPLIER
04-07-2022,Adults & Health,J.C.Michael Groups Ltd,Home Care - Private Contractors Payment,65.52,0,NON COMMERCIAL SUPPLIER
04-07-2022,Adults & Health,J.C.Michael Groups Ltd,Daycare - Private Contractors Payment,56.16,0,NON COMMERCIAL SUPPLIER
04-07-2022,Adults & Health,J.C.Michael Groups Ltd,Daycare - Private Contractors Payment,131.04,0,NON COMMERCIAL SUPPLIER
04-07-2022,Adults & Health,J.C.Michael Groups Ltd,Home Care - Private Contractors Payment,425.88,0,NON COMMERCIAL SUPPLIER
04-07-2022,Adults & Health,J.C.Michael Groups Ltd,Home Care - Private Contractors Payment,18.72,0,NON COMMERCIAL SUPPLIER
04-07-2022,Adults & Health,J.C.Michael Groups Ltd,Daycare - Private Contractors Payment,74.88,0,NON COMMERCIAL SUPPLIER
04-07-2022,Adults & Health,J.C.Michael Groups Ltd,Daycare - Private Contractors Payment,37.44,0,NON COMMERCIAL SUPPLIER
04-07-2022,Adults & Health,J.C.Michael Groups Ltd,Daycare - Private Contractors Payment,32.76,0,NON COMMERCIAL SUPPLIER
04-07-2022,Adults & Health,J.C.Michael Groups Ltd,Home Care - Private Contractors Payment,93.6,0,NON COMMERCIAL SUPPLIER
04-07-2022,Adults & Health,J.C.Michael Groups Ltd,Home Care - Private Contractors Payment,154.44,0,NON COMMERCIAL SUPPLIER
04-07-2022,Adults & Health,J.C.Michael Groups Ltd,Home Care - Private Contractors Payment,98.28,0,NON COMMERCIAL SUPPLIER
04-07-2022,Adults & Health,J.C.Michael Groups Ltd,Home Care - Private Contractors Payment,556.92,0,NON COMMERCIAL SUPPLIER
04-07-2022,Adults & Health,J.C.Michael Groups Ltd,Home Care - Private Contractors Payment,271.44,0,NON COMMERCIAL SUPPLIER
04-07-2022,Adults & Health,J.C.Michael Groups Ltd,Home Care - Private Contractors Payment,37.44,0,NON COMMERCIAL SUPPLIER
04-07-2022,Adults & Health,J.C.Michael Groups Ltd,Home Care - Private Contractors Payment,37.44,0,NON COMMERCIAL SUPPLIER
04-07-2022,Adults & Health,J.C.Michael Groups Ltd,Home Care - Private Contractors Payment,18.72,0,NON COMMERCIAL SUPPLIER
04-07-2022,Adults & Health,J.C.Michael Groups Ltd,Reablement,84.24,0,NON COMMERCIAL SUPPLIER
04-07-2022,Adults & Health,J.C.Michael Groups Ltd,Home Care - Private Contractors Payment,205.92,0,NON COMMERCIAL SUPPLIER
04-07-2022,Adults & Health,J.C.Michael Groups Ltd,Home Care - Private Contractors Payment,37.44,0,NON COMMERCIAL SUPPLIER
04-07-2022,Adults & Health,J.C.Michael Groups Ltd,Daycare - Private Contractors Payment,74.88,0,NON COMMERCIAL SUPPLIER
04-07-2022,Adults & Health,Subco Trust,Payments To Voluntary Sector,10,0,VENDOR
04-07-2022,Adults & Health,Subco Trust,Daycare - Private Contractors Payment,110,0,VENDOR
04-07-2022,Adults & Health,Subco Trust,Daycare - Private Contractors Payment,110,0,VENDOR
04-07-2022,Adults & Health,Subco Trust,Payments To Voluntary Sector,10,0,VENDOR
04-07-2022,Adults & Health,Subco Trust,Daycare - Private Contractors Payment,110,0,VENDOR
04-07-2022,Adults & Health,Subco Trust,Payments To Voluntary Sector,10,0,VENDOR
04-07-2022,Adults & Health,Subco Trust,Payments To Voluntary Sector,10,0,VENDOR
04-07-2022,Adults & Health,Subco Trust,Daycare - Private Contractors Payment,110,0,VENDOR
04-07-2022,Adults & Health,Subco Trust,Payments To Voluntary Sector,10,0,VENDOR
04-07-2022,Adults & Health,Subco Trust,Payments To Voluntary Sector,10,0,VENDOR
04-07-2022,Adults & Health,Subco Trust,Daycare - Private Contractors Payment,110,0,VENDOR
04-07-2022,Adults & Health,Subco Trust,Daycare - Private Contractors Payment,110,0,VENDOR
04-07-2022,Adults & Health,Subco Trust,Payments To Voluntary Sector,10,0,VENDOR
04-07-2022,Adults & Health,Subco Trust,Payments To Voluntary Sector,10,0,VENDOR
04-07-2022,Adults & Health,Subco Trust,Daycare - Private Contractors Payment,110,0,VENDOR
04-07-2022,Adults & Health,Subco Trust,Daycare - Private Contractors Payment,110,0,VENDOR
04-07-2022,Adults & Health,Highland Care Uk Ltd,Daycare - Private Contractors Payment,57.48,0,VENDOR
04-07-2022,Adults & Health,Highland Care Uk Ltd,Home Care - Private Contractors Payment,19.16,0,VENDOR
04-07-2022,Adults & Health,Highland Care Uk Ltd,Home Care - Private Contractors Payment,603.54,0,VENDOR
04-07-2022,Adults & Health,Highland Care Uk Ltd,Daycare - Private Contractors Payment,57.48,0,VENDOR
04-07-2022,Adults & Health,Highland Care Uk Ltd,Daycare - Private Contractors Payment,57.48,0,VENDOR
04-07-2022,Adults & Health,Highland Care Uk Ltd,Home Care - Private Contractors Payment,19.16,0,VENDOR
04-07-2022,Adults & Health,Highland Care Uk Ltd,Home Care - Private Contractors Payment,237.76,0,VENDOR
04-07-2022,Adults & Health,Highland Care Uk Ltd,Home Care - Private Contractors Payment,603.54,0,VENDOR
04-07-2022,Adults & Health,Highland Care Uk Ltd,Daycare - Private Contractors Payment,57.48,0,VENDOR
04-07-2022,Adults & Health,Highland Care Uk Ltd,Home Care - Private Contractors Payment,19.16,0,VENDOR
04-07-2022,Adults & Health,Highland Care Uk Ltd,Home Care - Private Contractors Payment,603.54,0,VENDOR
04-07-2022,Adults & Health,Highland Care Uk Ltd,Home Care - Private Contractors Payment,19.16,0,VENDOR
04-07-2022,Adults & Health,Subco Trust,Payments To Voluntary Sector,10,0,VENDOR
04-07-2022,Adults & Health,Subco Trust,Payments To Voluntary Sector,10,0,VENDOR
04-07-2022,Adults & Health,Subco Trust,Daycare - Private Contractors Payment,120,0,VENDOR
04-07-2022,Adults & Health,Subco Trust,Payments To Voluntary Sector,10,0,VENDOR
04-07-2022,Adults & Health,Subco Trust,Daycare - Private Contractors Payment,120,0,VENDOR
04-07-2022,Adults & Health,Subco Trust,Payments To Voluntary Sector,10,0,VENDOR
04-07-2022,Adults & Health,Subco Trust,Daycare - Private Contractors Payment,120,0,VENDOR
04-07-2022,Adults & Health,Subco Trust,Daycare - Private Contractors Payment,120,0,VENDOR
04-07-2022,Adults & Health,Subco Trust,Payments To Voluntary Sector,10,0,VENDOR
04-07-2022,Adults & Health,Subco Trust,Payments To Voluntary Sector,10,0,VENDOR
04-07-2022,Adults & Health,Subco Trust,Daycare - Private Contractors Payment,120,0,VENDOR
04-07-2022,Adults & Health,Subco Trust,Daycare - Private Contractors Payment,120,0,VENDOR
04-07-2022,Adults & Health,Subco Trust,Payments To Voluntary Sector,10,0,VENDOR
04-07-2022,Adults & Health,Subco Trust,Daycare - Private Contractors Payment,120,0,VENDOR
04-07-2022,Adults & Health,Subco Trust,Daycare - Private Contractors Payment,120,0,VENDOR
04-07-2022,Adults & Health,Subco Trust,Payments To Voluntary Sector,10,0,VENDOR
04-07-2022,Adults & Health,Subco Trust,Daycare - Private Contractors Payment,80,0,VENDOR
04-07-2022,Adults & Health,Subco Trust,Daycare - Private Contractors Payment,80,0,VENDOR
04-07-2022,Adults & Health,Subco Trust,Daycare - Private Contractors Payment,80,0,VENDOR
04-07-2022,Adults & Health,Subco Trust,Daycare - Private Contractors Payment,80,0,VENDOR
04-07-2022,Adults & Health,Highland Care Uk Ltd,Home Care - Private Contractors Payment,38.32,0,VENDOR
04-07-2022,Adults & Health,Highland Care Uk Ltd,Home Care - Private Contractors Payment,201.18,0,VENDOR
04-07-2022,Adults & Health,Highland Care Uk Ltd,Home Care - Private Contractors Payment,201.18,0,VENDOR
04-07-2022,Environment and Sustainable Transport,Andrew Pritchard Ltd,Consultancy Fees,4800,0,INDIVIDUALS
04-07-2022,Environment and Sustainable Transport,Personal Information - Redacted,Grounds Maintenance,168,0,Employee
04-07-2022,Environment and Sustainable Transport,Personal Information - Redacted,Grounds Maintenance,27.4,0,Employee
04-07-2022,Environment and Sustainable Transport,Personal Information - Redacted,Grounds Maintenance,23,0,Employee
04-07-2022,Environment and Sustainable Transport,Personal Information - Redacted,Grounds Maintenance,63.9,0,Employee
04-07-2022,Environment and Sustainable Transport,Personal Information - Redacted,Grounds Maintenance,116,0,Employee
04-07-2022,Adults & Health,Personal Information - Redacted,Employee Allowances,898,0,Employee
04-07-2022,Marketing,Personal Information - Redacted,Arts And Leisure Costs,9.99,0,Employee
04-07-2022,Housing Revenue Account,Personal Information - Redacted,Catering Equipment,29.67,0,Employee
04-07-2022,Housing Revenue Account,Personal Information - Redacted,Catering Equipment,118.67,0,Employee
04-07-2022,Housing Revenue Account,Personal Information - Redacted,"Purchase - Equipment, Furniture And Materials",9.02,0,Employee
04-07-2022,Housing Revenue Account,Personal Information - Redacted,"Purchase - Equipment, Furniture And Materials",1.81,0,Employee
04-07-2022,Housing Revenue Account,Personal Information - Redacted,Solid Fuel,132.48,0,Employee
04-07-2022,Housing Revenue Account,Personal Information - Redacted,"Purchase - Equipment, Furniture And Materials",86.55,0,Employee
04-07-2022,Housing Revenue Account,Personal Information - Redacted,"Purchase - Equipment, Furniture And Materials",17.3,0,Employee
04-07-2022,Housing Revenue Account,Personal Information - Redacted,"Purchase - Equipment, Furniture And Materials",-19.87,0,Employee
04-07-2022,Adults & Health,Highland Care Uk Ltd,Home Care - Private Contractors Payment,100.59,0,VENDOR
04-07-2022,Adults & Health,Highland Care Uk Ltd,Home Care - Private Contractors Payment,100.59,0,VENDOR
04-07-2022,Adults & Health,Highland Care Uk Ltd,Home Care - Private Contractors Payment,100.59,0,VENDOR
04-07-2022,Adults & Health,Highland Care Uk Ltd,Home Care - Private Contractors Payment,100.59,0,VENDOR
04-07-2022,Adults & Health,Highland Care Uk Ltd,Home Care - Private Contractors Payment,38.32,0,VENDOR
04-07-2022,Adults & Health,Highland Care Uk Ltd,Home Care - Private Contractors Payment,234.71,0,VENDOR
04-07-2022,Adults & Health,Highland Care Uk Ltd,Home Care - Private Contractors Payment,234.71,0,VENDOR
04-07-2022,Adults & Health,Highland Care Uk Ltd,Home Care - Private Contractors Payment,38.32,0,VENDOR
04-07-2022,Adults & Health,Highland Care Uk Ltd,Home Care - Private Contractors Payment,234.71,0,VENDOR
04-07-2022,Adults & Health,Highland Care Uk Ltd,Home Care - Private Contractors Payment,38.32,0,VENDOR
04-07-2022,Adults & Health,Highland Care Uk Ltd,Home Care - Private Contractors Payment,38.32,0,VENDOR
04-07-2022,Adults & Health,Highland Care Uk Ltd,Home Care - Private Contractors Payment,234.71,0,VENDOR
04-07-2022,Housing Revenue Account,Matthews & Co,Private Contractors Payment - Other,3060,0,COMMERCIAL SUPPLIER
04-07-2022,Housing Revenue Account,Matthews & Co,Private Contractors Payment - Other,2355,0,COMMERCIAL SUPPLIER
04-07-2022,Adults & Health,Highland Care Uk Ltd,Home Care - Private Contractors Payment,19.16,0,VENDOR
04-07-2022,Adults & Health,Highland Care Uk Ltd,Home Care - Private Contractors Payment,19.16,0,VENDOR
04-07-2022,Adults & Health,Highland Care Uk Ltd,Home Care - Private Contractors Payment,603.54,0,VENDOR
04-07-2022,Adults & Health,Highland Care Uk Ltd,Home Care - Private Contractors Payment,603.54,0,VENDOR
04-07-2022,Adults & Health,Highland Care Uk Ltd,Home Care - Private Contractors Payment,603.54,0,VENDOR
04-07-2022,Adults & Health,Highland Care Uk Ltd,Home Care - Private Contractors Payment,19.16,0,VENDOR
04-07-2022,Adults & Health,Highland Care Uk Ltd,Home Care - Private Contractors Payment,603.54,0,VENDOR
04-07-2022,Adults & Health,Highland Care Uk Ltd,Home Care - Private Contractors Payment,19.16,0,VENDOR
04-07-2022,Adults & Health,Subco Trust,Daycare - Private Contractors Payment,110,0,VENDOR
04-07-2022,Adults & Health,Subco Trust,Daycare - Private Contractors Payment,110,0,VENDOR
04-07-2022,Adults & Health,Subco Trust,Payments To Voluntary Sector,10,0,VENDOR
04-07-2022,Adults & Health,Subco Trust,Daycare - Private Contractors Payment,110,0,VENDOR
04-07-2022,Adults & Health,Subco Trust,Payments To Voluntary Sector,10,0,VENDOR
04-07-2022,Adults & Health,Subco Trust,Payments To Voluntary Sector,10,0,VENDOR
04-07-2022,Adults & Health,Subco Trust,Daycare - Private Contractors Payment,110,0,VENDOR
04-07-2022,Adults & Health,Subco Trust,Payments To Voluntary Sector,10,0,VENDOR
04-07-2022,Adults & Health,Highland Care Uk Ltd,Home Care - Private Contractors Payment,804.72,0,VENDOR
04-07-2022,Adults & Health,Highland Care Uk Ltd,Home Care - Private Contractors Payment,804.72,0,VENDOR
04-07-2022,Adults & Health,Highland Care Uk Ltd,Home Care - Private Contractors Payment,38.32,0,VENDOR
04-07-2022,Adults & Health,Highland Care Uk Ltd,Home Care - Private Contractors Payment,38.32,0,VENDOR
04-07-2022,Adults & Health,Highland Care Uk Ltd,Home Care - Private Contractors Payment,804.72,0,VENDOR
04-07-2022,Adults & Health,Highland Care Uk Ltd,Home Care - Private Contractors Payment,38.32,0,VENDOR
04-07-2022,Adults & Health,Highland Care Uk Ltd,Home Care - Private Contractors Payment,38.32,0,VENDOR
04-07-2022,Adults & Health,Highland Care Uk Ltd,Home Care - Private Contractors Payment,804.72,0,VENDOR
04-07-2022,Children and Young People,J J Fastfood Distribution,Catering And Vending Supplies,409.61,0,VENDOR
04-07-2022,Children and Young People,J J Fastfood Distribution,Catering And Vending Supplies,38.98,0,VENDOR
04-07-2022,Adults & Health,Subco Trust,Daycare - Private Contractors Payment,150,0,VENDOR
04-07-2022,Adults & Health,Subco Trust,Payments To Voluntary Sector,10,0,VENDOR
04-07-2022,Adults & Health,Subco Trust,Payments To Voluntary Sector,10,0,VENDOR
04-07-2022,Adults & Health,Subco Trust,Daycare - Private Contractors Payment,150,0,VENDOR
04-07-2022,Adults & Health,Subco Trust,Payments To Voluntary Sector,10,0,VENDOR
04-07-2022,Adults & Health,Subco Trust,Daycare - Private Contractors Payment,150,0,VENDOR
04-07-2022,Adults & Health,Subco Trust,Daycare - Private Contractors Payment,150,0,VENDOR
04-07-2022,Adults & Health,Subco Trust,Payments To Voluntary Sector,10,0,VENDOR
04-07-2022,Adults & Health,Subco Trust,Payments To Voluntary Sector,10,0,VENDOR
04-07-2022,Adults & Health,Subco Trust,Daycare - Private Contractors Payment,150,0,VENDOR
04-07-2022,Adults & Health,Subco Trust,Payments To Voluntary Sector,10,0,VENDOR
04-07-2022,Adults & Health,Subco Trust,Daycare - Private Contractors Payment,150,0,VENDOR
04-07-2022,Adults & Health,Subco Trust,Payments To Voluntary Sector,10,0,VENDOR
04-07-2022,Adults & Health,Subco Trust,Payments To Voluntary Sector,10,0,VENDOR
04-07-2022,Adults & Health,Subco Trust,Daycare - Private Contractors Payment,150,0,VENDOR
04-07-2022,Adults & Health,Subco Trust,Daycare - Private Contractors Payment,150,0,VENDOR
04-07-2022,Adults & Health,Highland Care Uk Ltd,Home Care - Private Contractors Payment,167.65,0,VENDOR
04-07-2022,Adults & Health,Highland Care Uk Ltd,Home Care - Private Contractors Payment,38.32,0,VENDOR
04-07-2022,Adults & Health,Highland Care Uk Ltd,Home Care - Private Contractors Payment,167.65,0,VENDOR
04-07-2022,Adults & Health,Highland Care Uk Ltd,Home Care - Private Contractors Payment,38.32,0,VENDOR
04-07-2022,Adults & Health,Highland Care Uk Ltd,Home Care - Private Contractors Payment,167.65,0,VENDOR
04-07-2022,Adults & Health,Highland Care Uk Ltd,Home Care - Private Contractors Payment,38.32,0,VENDOR
04-07-2022,Adults & Health,Highland Care Uk Ltd,Home Care - Private Contractors Payment,167.65,0,VENDOR
04-07-2022,Adults & Health,Highland Care Uk Ltd,Home Care - Private Contractors Payment,38.32,0,VENDOR
04-07-2022,Adults & Health,Highland Care Uk Ltd,Home Care - Private Contractors Payment,167.65,0,VENDOR
04-07-2022,Adults & Health,Highland Care Uk Ltd,Home Care - Private Contractors Payment,167.65,0,VENDOR
04-07-2022,Adults & Health,Highland Care Uk Ltd,Home Care - Private Contractors Payment,167.65,0,VENDOR
04-07-2022,Adults & Health,Highland Care Uk Ltd,Home Care - Private Contractors Payment,167.65,0,VENDOR
04-07-2022,Adults & Health,Highland Care Uk Ltd,Home Care - Private Contractors Payment,234.71,0,VENDOR
04-07-2022,Adults & Health,Highland Care Uk Ltd,Home Care - Private Contractors Payment,28.74,0,VENDOR
04-07-2022,Adults & Health,Highland Care Uk Ltd,Home Care - Private Contractors Payment,234.71,0,VENDOR
04-07-2022,Adults & Health,Highland Care Uk Ltd,Home Care - Private Contractors Payment,28.74,0,VENDOR
04-07-2022,Adults & Health,Highland Care Uk Ltd,Home Care - Private Contractors Payment,234.71,0,VENDOR
04-07-2022,Adults & Health,Highland Care Uk Ltd,Home Care - Private Contractors Payment,28.74,0,VENDOR
04-07-2022,Adults & Health,Highland Care Uk Ltd,Home Care - Private Contractors Payment,234.71,0,VENDOR
04-07-2022,Adults & Health,Highland Care Uk Ltd,Home Care - Private Contractors Payment,28.74,0,VENDOR
04-07-2022,Children and Young People,Atlantic Lodge (Housing) Ltd,Supported Other Accommodation - Private Contractors Payment,396.9,0,COMMERCIAL SUPPLIER
04-07-2022,Children and Young People,Atlantic Lodge (Housing) Ltd,Supported Other Accommodation - Private Contractors Payment,325,0,COMMERCIAL SUPPLIER
04-07-2022,Children and Young People,Atlantic Lodge (Housing) Ltd,Supported Other Accommodation - Private Contractors Payment,325,0,COMMERCIAL SUPPLIER
04-07-2022,Children and Young People,Atlantic Lodge (Housing) Ltd,Supported Other Accommodation - Private Contractors Payment,325,0,COMMERCIAL SUPPLIER
04-07-2022,Adults & Health,J.C.Michael Groups Ltd,Home Care - Private Contractors Payment,196.56,0,NON COMMERCIAL SUPPLIER
04-07-2022,Adults & Health,J.C.Michael Groups Ltd,Home Care - Private Contractors Payment,65.52,0,NON COMMERCIAL SUPPLIER
04-07-2022,Adults & Health,J.C.Michael Groups Ltd,Home Care - Private Contractors Payment,163.8,0,NON COMMERCIAL SUPPLIER
04-07-2022,Adults & Health,J.C.Michael Groups Ltd,Home Care - Private Contractors Payment,163.8,0,NON COMMERCIAL SUPPLIER
04-07-2022,Adults & Health,J.C.Michael Groups Ltd,Home Care - Private Contractors Payment,112.32,0,NON COMMERCIAL SUPPLIER
04-07-2022,Adults & Health,J.C.Michael Groups Ltd,Home Care - Private Contractors Payment,294.84,0,NON COMMERCIAL SUPPLIER
04-07-2022,Adults & Health,J.C.Michael Groups Ltd,Home Care - Private Contractors Payment,163.8,0,NON COMMERCIAL SUPPLIER
04-07-2022,Adults & Health,J.C.Michael Groups Ltd,Home Care - Private Contractors Payment,196.56,0,NON COMMERCIAL SUPPLIER
04-07-2022,Adults & Health,J.C.Michael Groups Ltd,Home Care - Private Contractors Payment,131.04,0,NON COMMERCIAL SUPPLIER
04-07-2022,Adults & Health,J.C.Michael Groups Ltd,Home Care - Private Contractors Payment,98.28,0,NON COMMERCIAL SUPPLIER
04-07-2022,Adults & Health,J.C.Michael Groups Ltd,Home Care - Private Contractors Payment,98.28,0,NON COMMERCIAL SUPPLIER
04-07-2022,Adults & Health,J.C.Michael Groups Ltd,Home Care - Private Contractors Payment,294.84,0,NON COMMERCIAL SUPPLIER
04-07-2022,Adults & Health,J.C.Michael Groups Ltd,Home Care - Private Contractors Payment,360.36,0,NON COMMERCIAL SUPPLIER
04-07-2022,Adults & Health,J.C.Michael Groups Ltd,Home Care - Private Contractors Payment,229.32,0,NON COMMERCIAL SUPPLIER
04-07-2022,Adults & Health,J.C.Michael Groups Ltd,Home Care - Private Contractors Payment,98.28,0,NON COMMERCIAL SUPPLIER
04-07-2022,Adults & Health,J.C.Michael Groups Ltd,Home Care - Private Contractors Payment,131.04,0,NON COMMERCIAL SUPPLIER
04-07-2022,Adults & Health,J.C.Michael Groups Ltd,Home Care - Private Contractors Payment,131.04,0,NON COMMERCIAL SUPPLIER
04-07-2022,Adults & Health,J.C.Michael Groups Ltd,Home Care - Private Contractors Payment,131.04,0,NON COMMERCIAL SUPPLIER
04-07-2022,Adults & Health,J.C.Michael Groups Ltd,Home Care - Private Contractors Payment,23.4,0,NON COMMERCIAL SUPPLIER
04-07-2022,Adults & Health,J.C.Michael Groups Ltd,Home Care - Private Contractors Payment,262.08,0,NON COMMERCIAL SUPPLIER
04-07-2022,Adults & Health,J.C.Michael Groups Ltd,Home Care - Private Contractors Payment,702,0,NON COMMERCIAL SUPPLIER
04-07-2022,Adults & Health,J.C.Michael Groups Ltd,Home Care - Private Contractors Payment,112.32,0,NON COMMERCIAL SUPPLIER
04-07-2022,Adults & Health,J.C.Michael Groups Ltd,Home Care - Private Contractors Payment,131.04,0,NON COMMERCIAL SUPPLIER
04-07-2022,Adults & Health,J.C.Michael Groups Ltd,Home Care - Private Contractors Payment,37.44,0,NON COMMERCIAL SUPPLIER
04-07-2022,Adults & Health,J.C.Michael Groups Ltd,Home Care - Private Contractors Payment,196.56,0,NON COMMERCIAL SUPPLIER
04-07-2022,Adults & Health,J.C.Michael Groups Ltd,Home Care - Private Contractors Payment,425.88,0,NON COMMERCIAL SUPPLIER
04-07-2022,Adults & Health,J.C.Michael Groups Ltd,Home Care - Private Contractors Payment,196.56,0,NON COMMERCIAL SUPPLIER
04-07-2022,Adults & Health,J.C.Michael Groups Ltd,Home Care - Private Contractors Payment,131.04,0,NON COMMERCIAL SUPPLIER
04-07-2022,Adults & Health,J.C.Michael Groups Ltd,Home Care - Private Contractors Payment,196.56,0,NON COMMERCIAL SUPPLIER
04-07-2022,Adults & Health,J.C.Michael Groups Ltd,Home Care - Private Contractors Payment,294.84,0,NON COMMERCIAL SUPPLIER
04-07-2022,Adults & Health,J.C.Michael Groups Ltd,Home Care - Private Contractors Payment,159.1,0,NON COMMERCIAL SUPPLIER
04-07-2022,Adults & Health,J.C.Michael Groups Ltd,Home Care - Private Contractors Payment,98.28,0,NON COMMERCIAL SUPPLIER
04-07-2022,Adults & Health,J.C.Michael Groups Ltd,Home Care - Private Contractors Payment,56.16,0,NON COMMERCIAL SUPPLIER
04-07-2022,Adults & Health,J.C.Michael Groups Ltd,Home Care - Private Contractors Payment,440.9,0,NON COMMERCIAL SUPPLIER
04-07-2022,Adults & Health,J.C.Michael Groups Ltd,Home Care - Private Contractors Payment,178.8,0,NON COMMERCIAL SUPPLIER
04-07-2022,Adults & Health,J.C.Michael Groups Ltd,Home Care - Private Contractors Payment,277.08,0,NON COMMERCIAL SUPPLIER
04-07-2022,Adults & Health,J.C.Michael Groups Ltd,Home Care - Private Contractors Payment,93.6,0,NON COMMERCIAL SUPPLIER
04-07-2022,Adults & Health,J.C.Michael Groups Ltd,Home Care - Private Contractors Payment,196.56,0,NON COMMERCIAL SUPPLIER
04-07-2022,Adults & Health,J.C.Michael Groups Ltd,Home Care - Private Contractors Payment,98.28,0,NON COMMERCIAL SUPPLIER
04-07-2022,Adults & Health,J.C.Michael Groups Ltd,Home Care - Private Contractors Payment,229.32,0,NON COMMERCIAL SUPPLIER
04-07-2022,Adults & Health,J.C.Michael Groups Ltd,Home Care - Private Contractors Payment,163.8,0,NON COMMERCIAL SUPPLIER
04-07-2022,Adults & Health,J.C.Michael Groups Ltd,Home Care - Private Contractors Payment,131.04,0,NON COMMERCIAL SUPPLIER
04-07-2022,Adults & Health,J.C.Michael Groups Ltd,Home Care - Private Contractors Payment,98.28,0,NON COMMERCIAL SUPPLIER
04-07-2022,Adults & Health,J.C.Michael Groups Ltd,Home Care - Private Contractors Payment,163.8,0,NON COMMERCIAL SUPPLIER
04-07-2022,Adults & Health,J.C.Michael Groups Ltd,Home Care - Private Contractors Payment,196.56,0,NON COMMERCIAL SUPPLIER
04-07-2022,Adults & Health,J.C.Michael Groups Ltd,Home Care - Private Contractors Payment,98.28,0,NON COMMERCIAL SUPPLIER
04-07-2022,Adults & Health,J.C.Michael Groups Ltd,Home Care - Private Contractors Payment,173.16,0,NON COMMERCIAL SUPPLIER
04-07-2022,Adults & Health,J.C.Michael Groups Ltd,Home Care - Private Contractors Payment,294.84,0,NON COMMERCIAL SUPPLIER
04-07-2022,Adults & Health,J.C.Michael Groups Ltd,Home Care - Private Contractors Payment,294.84,0,NON COMMERCIAL SUPPLIER
04-07-2022,Adults & Health,J.C.Michael Groups Ltd,Home Care - Private Contractors Payment,408.12,0,NON COMMERCIAL SUPPLIER
04-07-2022,Adults & Health,J.C.Michael Groups Ltd,Home Care - Private Contractors Payment,146.04,0,NON COMMERCIAL SUPPLIER
04-07-2022,Adults & Health,J.C.Michael Groups Ltd,Home Care - Private Contractors Payment,52.44,0,NON COMMERCIAL SUPPLIER
04-07-2022,Adults & Health,J.C.Michael Groups Ltd,Home Care - Private Contractors Payment,113.28,0,NON COMMERCIAL SUPPLIER
04-07-2022,Adults & Health,J.C.Michael Groups Ltd,Home Care - Private Contractors Payment,178.8,0,NON COMMERCIAL SUPPLIER
04-07-2022,Adults & Health,J.C.Michael Groups Ltd,Home Care - Private Contractors Payment,155.4,0,NON COMMERCIAL SUPPLIER
04-07-2022,Adults & Health,J.C.Michael Groups Ltd,Home Care - Private Contractors Payment,244.32,0,NON COMMERCIAL SUPPLIER
04-07-2022,Adults & Health,J.C.Michael Groups Ltd,Home Care - Private Contractors Payment,113.28,0,NON COMMERCIAL SUPPLIER
04-07-2022,Adults & Health,J.C.Michael Groups Ltd,Home Care - Private Contractors Payment,375.36,0,NON COMMERCIAL SUPPLIER
04-07-2022,Adults & Health,J.C.Michael Groups Ltd,Home Care - Private Contractors Payment,309.84,0,NON COMMERCIAL SUPPLIER
04-07-2022,Adults & Health,J.C.Michael Groups Ltd,Home Care - Private Contractors Payment,112.32,0,NON COMMERCIAL SUPPLIER
04-07-2022,Adults & Health,J.C.Michael Groups Ltd,Home Care - Private Contractors Payment,102.65,0,NON COMMERCIAL SUPPLIER
04-07-2022,Adults & Health,J.C.Michael Groups Ltd,Home Care - Private Contractors Payment,655.2,0,NON COMMERCIAL SUPPLIER
04-07-2022,Adults & Health,J.C.Michael Groups Ltd,Home Care - Private Contractors Payment,18.72,0,NON COMMERCIAL SUPPLIER
04-07-2022,Adults & Health,J.C.Michael Groups Ltd,Home Care - Private Contractors Payment,294.84,0,NON COMMERCIAL SUPPLIER
04-07-2022,Adults & Health,J.C.Michael Groups Ltd,Home Care - Private Contractors Payment,294.84,0,NON COMMERCIAL SUPPLIER
04-07-2022,Adults & Health,J.C.Michael Groups Ltd,Home Care - Private Contractors Payment,655.2,0,NON COMMERCIAL SUPPLIER
04-07-2022,Adults & Health,J.C.Michael Groups Ltd,Home Care - Private Contractors Payment,163.8,0,NON COMMERCIAL SUPPLIER
04-07-2022,Adults & Health,J.C.Michael Groups Ltd,Home Care - Private Contractors Payment,294.84,0,NON COMMERCIAL SUPPLIER
04-07-2022,Adults & Health,J.C.Michael Groups Ltd,Home Care - Private Contractors Payment,365.04,0,NON COMMERCIAL SUPPLIER
04-07-2022,Adults & Health,J.C.Michael Groups Ltd,Home Care - Private Contractors Payment,294.84,0,NON COMMERCIAL SUPPLIER
04-07-2022,Adults & Health,J.C.Michael Groups Ltd,Home Care - Private Contractors Payment,360.36,0,NON COMMERCIAL SUPPLIER
04-07-2022,Adults & Health,J.C.Michael Groups Ltd,Home Care - Private Contractors Payment,294.84,0,NON COMMERCIAL SUPPLIER
04-07-2022,Adults & Health,J.C.Michael Groups Ltd,Home Care - Private Contractors Payment,262.08,0,NON COMMERCIAL SUPPLIER
04-07-2022,Adults & Health,J.C.Michael Groups Ltd,Home Care - Private Contractors Payment,196.56,0,NON COMMERCIAL SUPPLIER
04-07-2022,Adults & Health,J.C.Michael Groups Ltd,Home Care - Private Contractors Payment,229.32,0,NON COMMERCIAL SUPPLIER
04-07-2022,Adults & Health,J.C.Michael Groups Ltd,Home Care - Private Contractors Payment,262.08,0,NON COMMERCIAL SUPPLIER
04-07-2022,Adults & Health,J.C.Michael Groups Ltd,Home Care - Private Contractors Payment,229.32,0,NON COMMERCIAL SUPPLIER
04-07-2022,Adults & Health,J.C.Michael Groups Ltd,Home Care - Private Contractors Payment,458.64,0,NON COMMERCIAL SUPPLIER
04-07-2022,Adults & Health,J.C.Michael Groups Ltd,Home Care - Private Contractors Payment,70.2,0,NON COMMERCIAL SUPPLIER
04-07-2022,Adults & Health,J.C.Michael Groups Ltd,Home Care - Private Contractors Payment,229.32,0,NON COMMERCIAL SUPPLIER
04-07-2022,Adults & Health,J.C.Michael Groups Ltd,Home Care - Private Contractors Payment,98.28,0,NON COMMERCIAL SUPPLIER
04-07-2022,Adults & Health,J.C.Michael Groups Ltd,Home Care - Private Contractors Payment,394.08,0,NON COMMERCIAL SUPPLIER
04-07-2022,Adults & Health,J.C.Michael Groups Ltd,Home Care - Private Contractors Payment,393.12,0,NON COMMERCIAL SUPPLIER
04-07-2022,Adults & Health,J.C.Michael Groups Ltd,Home Care - Private Contractors Payment,238.68,0,NON COMMERCIAL SUPPLIER
04-07-2022,Adults & Health,J.C.Michael Groups Ltd,Home Care - Private Contractors Payment,65.52,0,NON COMMERCIAL SUPPLIER
04-07-2022,Adults & Health,J.C.Michael Groups Ltd,Home Care - Private Contractors Payment,98.28,0,NON COMMERCIAL SUPPLIER
04-07-2022,Adults & Health,J.C.Michael Groups Ltd,Home Care - Private Contractors Payment,140.4,0,NON COMMERCIAL SUPPLIER
04-07-2022,Adults & Health,J.C.Michael Groups Ltd,Home Care - Private Contractors Payment,131.04,0,NON COMMERCIAL SUPPLIER
04-07-2022,Adults & Health,J.C.Michael Groups Ltd,Home Care - Private Contractors Payment,365.04,0,NON COMMERCIAL SUPPLIER
04-07-2022,Adults & Health,J.C.Michael Groups Ltd,Home Care - Private Contractors Payment,229.32,0,NON COMMERCIAL SUPPLIER
04-07-2022,Adults & Health,J.C.Michael Groups Ltd,Home Care - Private Contractors Payment,229.32,0,NON COMMERCIAL SUPPLIER
04-07-2022,Adults & Health,J.C.Michael Groups Ltd,Home Care - Private Contractors Payment,37.44,0,NON COMMERCIAL SUPPLIER
04-07-2022,Adults & Health,J.C.Michael Groups Ltd,Home Care - Private Contractors Payment,524.16,0,NON COMMERCIAL SUPPLIER
04-07-2022,Adults & Health,J.C.Michael Groups Ltd,Home Care - Private Contractors Payment,238.68,0,NON COMMERCIAL SUPPLIER
04-07-2022,Adults & Health,J.C.Michael Groups Ltd,Home Care - Private Contractors Payment,262.08,0,NON COMMERCIAL SUPPLIER
04-07-2022,Adults & Health,J.C.Michael Groups Ltd,Home Care - Private Contractors Payment,163.8,0,NON COMMERCIAL SUPPLIER
04-07-2022,Adults & Health,J.C.Michael Groups Ltd,Home Care - Private Contractors Payment,112.32,0,NON COMMERCIAL SUPPLIER
04-07-2022,Adults & Health,J.C.Michael Groups Ltd,Home Care - Private Contractors Payment,524.16,0,NON COMMERCIAL SUPPLIER
04-07-2022,Adults & Health,J.C.Michael Groups Ltd,Home Care - Private Contractors Payment,98.28,0,NON COMMERCIAL SUPPLIER
04-07-2022,Adults & Health,J.C.Michael Groups Ltd,Home Care - Private Contractors Payment,294.84,0,NON COMMERCIAL SUPPLIER
04-07-2022,Adults & Health,J.C.Michael Groups Ltd,Home Care - Private Contractors Payment,98.28,0,NON COMMERCIAL SUPPLIER
04-07-2022,Adults & Health,J.C.Michael Groups Ltd,Home Care - Private Contractors Payment,687.96,0,NON COMMERCIAL SUPPLIER
04-07-2022,Adults & Health,J.C.Michael Groups Ltd,Home Care - Private Contractors Payment,28.08,0,NON COMMERCIAL SUPPLIER
04-07-2022,Adults & Health,J.C.Michael Groups Ltd,Home Care - Private Contractors Payment,655.2,0,NON COMMERCIAL SUPPLIER
04-07-2022,Adults & Health,J.C.Michael Groups Ltd,Home Care - Private Contractors Payment,229.32,0,NON COMMERCIAL SUPPLIER
04-07-2022,Adults & Health,J.C.Michael Groups Ltd,Home Care - Private Contractors Payment,294.84,0,NON COMMERCIAL SUPPLIER
04-07-2022,Adults & Health,J.C.Michael Groups Ltd,Home Care - Private Contractors Payment,524.16,0,NON COMMERCIAL SUPPLIER
04-07-2022,Adults & Health,J.C.Michael Groups Ltd,Home Care - Private Contractors Payment,238.68,0,NON COMMERCIAL SUPPLIER
04-07-2022,Adults & Health,J.C.Michael Groups Ltd,Home Care - Private Contractors Payment,74.88,0,NON COMMERCIAL SUPPLIER
04-07-2022,Adults & Health,J.C.Michael Groups Ltd,Home Care - Private Contractors Payment,458.64,0,NON COMMERCIAL SUPPLIER
04-07-2022,Adults & Health,J.C.Michael Groups Ltd,Home Care - Private Contractors Payment,196.56,0,NON COMMERCIAL SUPPLIER
04-07-2022,Adults & Health,J.C.Michael Groups Ltd,Home Care - Private Contractors Payment,294.84,0,NON COMMERCIAL SUPPLIER
04-07-2022,Adults & Health,J.C.Michael Groups Ltd,Home Care - Private Contractors Payment,262.08,0,NON COMMERCIAL SUPPLIER
04-07-2022,Adults & Health,J.C.Michael Groups Ltd,Home Care - Private Contractors Payment,131.04,0,NON COMMERCIAL SUPPLIER
04-07-2022,Adults & Health,J.C.Michael Groups Ltd,Home Care - Private Contractors Payment,65.52,0,NON COMMERCIAL SUPPLIER
04-07-2022,Adults & Health,J.C.Michael Groups Ltd,Home Care - Private Contractors Payment,163.8,0,NON COMMERCIAL SUPPLIER
04-07-2022,Adults & Health,J.C.Michael Groups Ltd,Home Care - Private Contractors Payment,163.8,0,NON COMMERCIAL SUPPLIER
04-07-2022,Adults & Health,J.C.Michael Groups Ltd,Home Care - Private Contractors Payment,702,0,NON COMMERCIAL SUPPLIER
04-07-2022,Adults & Health,J.C.Michael Groups Ltd,Home Care - Private Contractors Payment,65.52,0,NON COMMERCIAL SUPPLIER
04-07-2022,Adults & Health,J.C.Michael Groups Ltd,Home Care - Private Contractors Payment,18.72,0,NON COMMERCIAL SUPPLIER
04-07-2022,Adults & Health,J.C.Michael Groups Ltd,Home Care - Private Contractors Payment,229.32,0,NON COMMERCIAL SUPPLIER
04-07-2022,Adults & Health,J.C.Michael Groups Ltd,Home Care - Private Contractors Payment,70.2,0,NON COMMERCIAL SUPPLIER
04-07-2022,Adults & Health,J.C.Michael Groups Ltd,Home Care - Private Contractors Payment,294.84,0,NON COMMERCIAL SUPPLIER
04-07-2022,Adults & Health,J.C.Michael Groups Ltd,Home Care - Private Contractors Payment,131.04,0,NON COMMERCIAL SUPPLIER
04-07-2022,Adults & Health,J.C.Michael Groups Ltd,Home Care - Private Contractors Payment,163.8,0,NON COMMERCIAL SUPPLIER
04-07-2022,Adults & Health,J.C.Michael Groups Ltd,Home Care - Private Contractors Payment,262.08,0,NON COMMERCIAL SUPPLIER
04-07-2022,Adults & Health,J.C.Michael Groups Ltd,Home Care - Private Contractors Payment,365.04,0,NON COMMERCIAL SUPPLIER
04-07-2022,Adults & Health,J.C.Michael Groups Ltd,Home Care - Private Contractors Payment,229.32,0,NON COMMERCIAL SUPPLIER
04-07-2022,Adults & Health,J.C.Michael Groups Ltd,Home Care - Private Contractors Payment,42.12,0,NON COMMERCIAL SUPPLIER
04-07-2022,Adults & Health,J.C.Michael Groups Ltd,Home Care - Private Contractors Payment,131.04,0,NON COMMERCIAL SUPPLIER
04-07-2022,Adults & Health,J.C.Michael Groups Ltd,Home Care - Private Contractors Payment,556.92,0,NON COMMERCIAL SUPPLIER
04-07-2022,Adults & Health,J.C.Michael Groups Ltd,Home Care - Private Contractors Payment,350.06,0,NON COMMERCIAL SUPPLIER
04-07-2022,Adults & Health,J.C.Michael Groups Ltd,Home Care - Private Contractors Payment,229.32,0,NON COMMERCIAL SUPPLIER
04-07-2022,Adults & Health,J.C.Michael Groups Ltd,Home Care - Private Contractors Payment,98.28,0,NON COMMERCIAL SUPPLIER
04-07-2022,Adults & Health,J.C.Michael Groups Ltd,Home Care - Private Contractors Payment,262.08,0,NON COMMERCIAL SUPPLIER
04-07-2022,Adults & Health,J.C.Michael Groups Ltd,Home Care - Private Contractors Payment,655.2,0,NON COMMERCIAL SUPPLIER
04-07-2022,Adults & Health,J.C.Michael Groups Ltd,Home Care - Private Contractors Payment,163.8,0,NON COMMERCIAL SUPPLIER
04-07-2022,Adults & Health,J.C.Michael Groups Ltd,Home Care - Private Contractors Payment,131.04,0,NON COMMERCIAL SUPPLIER
04-07-2022,Adults & Health,J.C.Michael Groups Ltd,Home Care - Private Contractors Payment,196.56,0,NON COMMERCIAL SUPPLIER
04-07-2022,Adults & Health,J.C.Michael Groups Ltd,Home Care - Private Contractors Payment,229.32,0,NON COMMERCIAL SUPPLIER
04-07-2022,Adults & Health,J.C.Michael Groups Ltd,Home Care - Private Contractors Payment,56.16,0,NON COMMERCIAL SUPPLIER
04-07-2022,Adults & Health,J.C.Michael Groups Ltd,Home Care - Private Contractors Payment,234,0,NON COMMERCIAL SUPPLIER
04-07-2022,Adults & Health,J.C.Michael Groups Ltd,Home Care - Private Contractors Payment,294.84,0,NON COMMERCIAL SUPPLIER
04-07-2022,Adults & Health,J.C.Michael Groups Ltd,Home Care - Private Contractors Payment,360.36,0,NON COMMERCIAL SUPPLIER
04-07-2022,Adults & Health,J.C.Michael Groups Ltd,Home Care - Private Contractors Payment,163.8,0,NON COMMERCIAL SUPPLIER
04-07-2022,Adults & Health,J.C.Michael Groups Ltd,Home Care - Private Contractors Payment,294.84,0,NON COMMERCIAL SUPPLIER
04-07-2022,Adults & Health,J.C.Michael Groups Ltd,Home Care - Private Contractors Payment,18.72,0,NON COMMERCIAL SUPPLIER
04-07-2022,Adults & Health,J.C.Michael Groups Ltd,Home Care - Private Contractors Payment,196.56,0,NON COMMERCIAL SUPPLIER
04-07-2022,Adults & Health,J.C.Michael Groups Ltd,Home Care - Private Contractors Payment,163.8,0,NON COMMERCIAL SUPPLIER
04-07-2022,Adults & Health,J.C.Michael Groups Ltd,Home Care - Private Contractors Payment,84.24,0,NON COMMERCIAL SUPPLIER
04-07-2022,Adults & Health,J.C.Michael Groups Ltd,Home Care - Private Contractors Payment,229.32,0,NON COMMERCIAL SUPPLIER
04-07-2022,Adults & Health,J.C.Michael Groups Ltd,Home Care - Private Contractors Payment,56.16,0,NON COMMERCIAL SUPPLIER
04-07-2022,Adults & Health,J.C.Michael Groups Ltd,Home Care - Private Contractors Payment,42.12,0,NON COMMERCIAL SUPPLIER
04-07-2022,Adults & Health,J.C.Michael Groups Ltd,Home Care - Private Contractors Payment,458.64,0,NON COMMERCIAL SUPPLIER
04-07-2022,Adults & Health,J.C.Michael Groups Ltd,Home Care - Private Contractors Payment,112.32,0,NON COMMERCIAL SUPPLIER
04-07-2022,Adults & Health,J.C.Michael Groups Ltd,Home Care - Private Contractors Payment,229.32,0,NON COMMERCIAL SUPPLIER
04-07-2022,Adults & Health,J.C.Michael Groups Ltd,Home Care - Private Contractors Payment,229.32,0,NON COMMERCIAL SUPPLIER
04-07-2022,Adults & Health,J.C.Michael Groups Ltd,Home Care - Private Contractors Payment,294.84,0,NON COMMERCIAL SUPPLIER
04-07-2022,Adults & Health,J.C.Michael Groups Ltd,Home Care - Private Contractors Payment,112.32,0,NON COMMERCIAL SUPPLIER
04-07-2022,Adults & Health,J.C.Michael Groups Ltd,Home Care - Private Contractors Payment,262.08,0,NON COMMERCIAL SUPPLIER
04-07-2022,Adults & Health,J.C.Michael Groups Ltd,Home Care - Private Contractors Payment,131.04,0,NON COMMERCIAL SUPPLIER
04-07-2022,Adults & Health,J.C.Michael Groups Ltd,Home Care - Private Contractors Payment,702,0,NON COMMERCIAL SUPPLIER
04-07-2022,Adults & Health,J.C.Michael Groups Ltd,Home Care - Private Contractors Payment,262.08,0,NON COMMERCIAL SUPPLIER
04-07-2022,Adults & Health,J.C.Michael Groups Ltd,Home Care - Private Contractors Payment,425.88,0,NON COMMERCIAL SUPPLIER
04-07-2022,Adults & Health,J.C.Michael Groups Ltd,Home Care - Private Contractors Payment,18.72,0,NON COMMERCIAL SUPPLIER
04-07-2022,Adults & Health,J.C.Michael Groups Ltd,Home Care - Private Contractors Payment,42.12,0,NON COMMERCIAL SUPPLIER
04-07-2022,Adults & Health,J.C.Michael Groups Ltd,Home Care - Private Contractors Payment,131.04,0,NON COMMERCIAL SUPPLIER
04-07-2022,Adults & Health,J.C.Michael Groups Ltd,Home Care - Private Contractors Payment,98.28,0,NON COMMERCIAL SUPPLIER
04-07-2022,Adults & Health,J.C.Michael Groups Ltd,Home Care - Private Contractors Payment,294.84,0,NON COMMERCIAL SUPPLIER
04-07-2022,Adults & Health,J.C.Michael Groups Ltd,Home Care - Private Contractors Payment,65.52,0,NON COMMERCIAL SUPPLIER
04-07-2022,Adults & Health,J.C.Michael Groups Ltd,Home Care - Private Contractors Payment,655.2,0,NON COMMERCIAL SUPPLIER
04-07-2022,Adults & Health,J.C.Michael Groups Ltd,Home Care - Private Contractors Payment,262.08,0,NON COMMERCIAL SUPPLIER
04-07-2022,Adults & Health,J.C.Michael Groups Ltd,Home Care - Private Contractors Payment,524.16,0,NON COMMERCIAL SUPPLIER
04-07-2022,Adults & Health,J.C.Michael Groups Ltd,Home Care - Private Contractors Payment,589.68,0,NON COMMERCIAL SUPPLIER
04-07-2022,Adults & Health,J.C.Michael Groups Ltd,Home Care - Private Contractors Payment,196.56,0,NON COMMERCIAL SUPPLIER
04-07-2022,Adults & Health,J.C.Michael Groups Ltd,Home Care - Private Contractors Payment,56.16,0,NON COMMERCIAL SUPPLIER
04-07-2022,Adults & Health,J.C.Michael Groups Ltd,Home Care - Private Contractors Payment,131.04,0,NON COMMERCIAL SUPPLIER
04-07-2022,Adults & Health,J.C.Michael Groups Ltd,Home Care - Private Contractors Payment,393.12,0,NON COMMERCIAL SUPPLIER
04-07-2022,Adults & Health,J.C.Michael Groups Ltd,Home Care - Private Contractors Payment,294.84,0,NON COMMERCIAL SUPPLIER
04-07-2022,Adults & Health,J.C.Michael Groups Ltd,Home Care - Private Contractors Payment,229.32,0,NON COMMERCIAL SUPPLIER
04-07-2022,Adults & Health,J.C.Michael Groups Ltd,Home Care - Private Contractors Payment,98.28,0,NON COMMERCIAL SUPPLIER
04-07-2022,Adults & Health,J.C.Michael Groups Ltd,Home Care - Private Contractors Payment,65.52,0,NON COMMERCIAL SUPPLIER
04-07-2022,Adults & Health,J.C.Michael Groups Ltd,Home Care - Private Contractors Payment,98.28,0,NON COMMERCIAL SUPPLIER
04-07-2022,Adults & Health,J.C.Michael Groups Ltd,Home Care - Private Contractors Payment,294.84,0,NON COMMERCIAL SUPPLIER
04-07-2022,Adults & Health,J.C.Michael Groups Ltd,Home Care - Private Contractors Payment,163.8,0,NON COMMERCIAL SUPPLIER
04-07-2022,Adults & Health,J.C.Michael Groups Ltd,Home Care - Private Contractors Payment,196.56,0,NON COMMERCIAL SUPPLIER
04-07-2022,Adults & Health,J.C.Michael Groups Ltd,Home Care - Private Contractors Payment,294.84,0,NON COMMERCIAL SUPPLIER
04-07-2022,Adults & Health,J.C.Michael Groups Ltd,Home Care - Private Contractors Payment,393.12,0,NON COMMERCIAL SUPPLIER
04-07-2022,Adults & Health,J.C.Michael Groups Ltd,Home Care - Private Contractors Payment,262.08,0,NON COMMERCIAL SUPPLIER
04-07-2022,Adults & Health,J.C.Michael Groups Ltd,Home Care - Private Contractors Payment,262.08,0,NON COMMERCIAL SUPPLIER
04-07-2022,Adults & Health,J.C.Michael Groups Ltd,Home Care - Private Contractors Payment,163.8,0,NON COMMERCIAL SUPPLIER
04-07-2022,Adults & Health,J.C.Michael Groups Ltd,Home Care - Private Contractors Payment,309.84,0,NON COMMERCIAL SUPPLIER
04-07-2022,Adults & Health,J.C.Michael Groups Ltd,Home Care - Private Contractors Payment,277.08,0,NON COMMERCIAL SUPPLIER
04-07-2022,Adults & Health,J.C.Michael Groups Ltd,Home Care - Private Contractors Payment,93.6,0,NON COMMERCIAL SUPPLIER
04-07-2022,Adults & Health,J.C.Michael Groups Ltd,Home Care - Private Contractors Payment,102.96,0,NON COMMERCIAL SUPPLIER
04-07-2022,Adults & Health,J.C.Michael Groups Ltd,Home Care - Private Contractors Payment,244.32,0,NON COMMERCIAL SUPPLIER
04-07-2022,Adults & Health,J.C.Michael Groups Ltd,Home Care - Private Contractors Payment,524.16,0,NON COMMERCIAL SUPPLIER
04-07-2022,Adults & Health,J.C.Michael Groups Ltd,Home Care - Private Contractors Payment,309.84,0,NON COMMERCIAL SUPPLIER
04-07-2022,Adults & Health,J.C.Michael Groups Ltd,Home Care - Private Contractors Payment,192.2,0,NON COMMERCIAL SUPPLIER
04-07-2022,Adults & Health,J.C.Michael Groups Ltd,Home Care - Private Contractors Payment,173.14,0,NON COMMERCIAL SUPPLIER
04-07-2022,Adults & Health,J.C.Michael Groups Ltd,Home Care - Private Contractors Payment,178.8,0,NON COMMERCIAL SUPPLIER
04-07-2022,Adults & Health,J.C.Michael Groups Ltd,Home Care - Private Contractors Payment,229.32,0,NON COMMERCIAL SUPPLIER
04-07-2022,Adults & Health,J.C.Michael Groups Ltd,Home Care - Private Contractors Payment,163.8,0,NON COMMERCIAL SUPPLIER
04-07-2022,Adults & Health,J.C.Michael Groups Ltd,Home Care - Private Contractors Payment,211.56,0,NON COMMERCIAL SUPPLIER
04-07-2022,Adults & Health,J.C.Michael Groups Ltd,Home Care - Private Contractors Payment,131.04,0,NON COMMERCIAL SUPPLIER
04-07-2022,Adults & Health,J.C.Michael Groups Ltd,Home Care - Private Contractors Payment,88.92,0,NON COMMERCIAL SUPPLIER
04-07-2022,Adults & Health,J.C.Michael Groups Ltd,Home Care - Private Contractors Payment,211.56,0,NON COMMERCIAL SUPPLIER
